Workbook

Sheet Intro
B3: 2025 Field Crop Budget Spreadsheet
B4: Introduction
B6: This spreadsheet contains the 2025 University of Tennessee row crop budgets. There are no protected cells in the spreadsheet, so the user should make sure that any changes made do not affect formulas. Input prices can be modified on the "Inputs, Herbicides, Insecticides, and Fungicides Tabs". Any changes made on the "Inputs, Herbicides, Insecticides, and Fungicides Tabs" will be reflected in all budgets where the input is utilized. Quantities and processes can be modified on individual budgets. This spreadsheet should not be considered representative of all circumstances and is provided as a template or guide that can be used to estimate commodity, production process, and operation specific budgets. Inputs used and prices for inputs vary tremendously from farm-to-farm, as such producers are encouraged to use their own inputs, input prices, and cost structures for planning purposes.
B9: If you have questions regarding this spreadsheet, please contact your local UT Extension Office or Dr. Aaron Smith (aaron.smith@utk.edu).
H11: Table of Contents
B13: Tab | C13: Description
B14: Inputs | C14: Contains commodity, non-chemical input prices, and other input data for all budgets
B15: Herbicides | C15: Contains commonly used herbicides and estimated prices
B16: Insecticides | C16: Contains estimates for insecticide costs
B17: Fungicides | C17: Contains estimates for fungicide costs
B18: Corn NT Non-Irr | C18: Corn, No-Till, Non-Irrigated, 175 Bushels/Acre Yield
B19: Corn CT Non-Irr | C19: Corn, Conventional Tillage, Non-Irrigated, 175 Bushels/Acre Yield
B20: Corn Irr | C20: Corn, No-Till, Irrigated, 250 Bushels/Acre Yield
B21: Soybean NT Non-Irr | C21: Soybean, No-Till, Non-Irrigated, 50 Bushels/Acre Yield
B22: Soybean Irr | C22: Soybean, No-Till, Irrigated, 65 Bushels/Acre Yield
B23: SRW Wheat | C23: Wheat, Non-Irrigated, 80 Bushels/Acre Yield
B24: Wheat & Soybean DC | C24: Wheat/Soybean Double Cropped, Non-Irrigated, 80 Bushels/Acre Yield and 40 Bushel/Acre Yield
B25: Wheat | C25: Wheat, Conventional Tillage, Non-Irrigated, 70 Bushels/Acre Yield
B26: Cotton NT | C26: Cotton, No-Till, Non-Irrigated, 1,150 lbs./Acre Yield
B27: Cotton CT | C27: Cotton, Conventional Tillage, Non-Irrigated, 1,150 lbs./Acre Yield
B28: Cotton IRR | C28: Cotton, No-Till, Irrigated, 1,500 lbs./Acre Yield
B29: G. Sorghum NT | C29: Grain Sorghum, No-Till, Non-Irrigated, 110 Bushels/Acre Yield
B30: Canola | C30: Canola, Conventional Tillage, Non-Irrigated, 50 Bushels/Acre Yield
B31: Footnotes | C31: Footnotes for the budgets
B32: Field Operations | C32: This worksheet contains cost estimates for crop operations based on machinery data
B33: Budget Summary | C33: Provides a summary of revenues, expenses, and profit for each commodity and production process
B34: Enterprise Summary | C34: Allows users to estimate revenue, expenses, and profit for specific acreage in their operations using individual budgets
B37: Note: All budgets contain yield estimates. Users can enter specific yields on each individual budget in order to represent yields specific to their farm (commodity and input prices should be modified in the "Inputs, Herbicides, Insecticides, and Fungicides Tabs").
B39: Disclaimer: Significant variability in inputs, prices, and production methods exist in the production of row crops. The information contained in this spreadsheet relies on estimates and assumptions that are "typical" in Tennessee row crop production. These budgets should not be construed as a reflection of all circumstances across the state as significant regional variability will occur. To improve accuracy, users are encouraged to use inputs, prices, and processes that are utilized on their specific farms.
B41: The University of Tennessee is an EEO/AA/Title VI/Title IX/Section 504/ADA/ADEA institution in the provision of its education and employment programs and services. All qualified applicants will receive equal consideration for employment and admission without regard to race, color, national origin, religion, sex, pregnancy, marital status, sexual orientation, gender identity, age, physical or mental disability, genetic information, veteran status, and parental status.

Sheet Inputs
B2: Commodity Prices Received by Producers
B3: Corn | C3: 4.6 | D3: bu
B4: Soybeans | C4: 10.4 | D4: bu
B5: Wheat | C5: 5.85 | D5: bu
B6: Grain Sorghum | C6: 4.7 | D6: bu
B7: Cotton | C7: 0.72 | D7: lb.
B9: Fuel, Interest Rates and Labor Costs
B10: Diesel Fuel ($/gal) | C10: 2.9 | D10: $/gal
B11: Electricity ($/kwh) | C11: 0.1031 | D11: $kwh
B12: Operator Labor ($/hr.) | C12: 20 | D12: $/hr.
B13: Management Labor ($/hr.) | C13: 25 | D13: $/hr.
B14: Operating Interest (%) | C14: 0.08 | D14: %
B15: Fixed Capital Interest (%) | C15: 0.065 | D15: %
B17: Crop Scout, Consulting, Cash Rent and Crop Insurance
B18: Crop Scout / Consulting Fee | C18: 10 | D18: acre
B19: Crop Scouting-Cotton | C19: 12 | D19: acre
B20: Drying ($/bu) | C20: 0.45 | D20: bu
B21: Cotton Wrap ($/lb.) | C21: 0.0165 | D21: lb.
B22: Irrigated Cropland Cash Rent | C22: 197 | D22: acre
B23: Non-Irrigated Cropland Cash Rent | C23: 117 | D23: acre
B24: Crop Insurance-Corn | C24: 16.66 | D24: acre
B25: Crop Insurance-Soybean | C25: 10.02 | D25: acre
B26: Crop Insurance-Wheat | C26: 9.9 | D26: acre
B27: Crop Insurance-Grain Sorghum | C27: 4.22 | D27: acre
B28: Crop Insurance-Cotton | C28: 11.15 | D28: acre
B30: Property Taxes, Non-Machinery Insurance and Management Labor
B31: Property Taxes | C31: 0 | D31: $/acre
B32: Insurance (Non-machinery and Non-crop) | C32: 0 | D32: $/acre
B33: Management Labor | C33: 25 | D33: $/acre
B35: Seed
B36: Corn | C36: 3.88 | D36: $/Thousand Seeds
B37: Soybean | C37: 0.46 | D37: $/Thousand Seeds
B38: Wheat | C38: 17 | D38: $/bu
B39: Grain Sorghum | C39: 0.32 | D39: $/Thousand Seeds
B40: Cotton | C40: 3.1 | D40: $/Thousand Seeds
B43: Fertilizer
B44: Urea | C44: 0.52 | D44: $/lb.
B45: Ammonium Nitrate | C45: 0.67 | D45: $/lb.
B46: UAN 28% | C46: 0.55 | D46: $/lb.
B47: UAN 32% | C47: 0.54 | D47: $/lb.
B48: P2O5 | C48: 0.66 | D48: $/lb.
B49: DAP (18-46-0) | C49: 0.58 | D49: $/lb.
B50: Potash | C50: 0.36 | D50: $/lb.
B51: Lime | C51: 30 | D51: $/ton
B52: Boron | C52: 0.7 | D52: $/lb.
B53: Ammonium Sulfate | C53: 0.3 | D53: $/lb.
B54: Zinc Sulfate | C54: 1.67 | D54: $/lb.
B56: Irrigation
B57: Irrigation Energy Cost | C57: 6.75 | D57: $/acre-in
B58: Irrigation System R&M & Labor | C58: 3 | D58: $/acre-in
B59: Capital Recovery (Irrigation Equipment) | C59: 100 | D59: $/acre

Sheet Herbicides
A1: Herbicides | F1: 2025 | K1: oz
B2: Price/Unit | C2: Unit | J2: gal | K2: 128
A3: 2, 4-D | B3: 3.31 | C3: $/pt. | E3: =26.5/128*K4 -> 3.3125 | F3: =62/(K2*2.5)*16 -> 3.1 | J3: qt | K3: 32
A4: Accent Q | B4: =F4 -> 23.88888889 | C4: $/oz. | F4: =430/18 -> 23.88888889 | G4: oz. | J4: pt. | K4: 16
A5: Aim EC | B5: =F5 -> 7.34375 | C5: $/oz. | F5: =235/32 -> 7.34375 | G5: oz. | J5: lb. | K5: 16 | N5: =11.48/K4 -> 0.7175
A6: Anthem ATZ | B6: 0
A7: Anthem Maxx | B7: 3.73 | C7: $/oz. | E7: =478/K2 -> 3.734375
A8: Assure II | B8: 0.8875 | C8: $/oz. | F8: =284/(2.5*K2) -> 0.8875 | G8: oz.
A9: Atrazine | B9: 3.38 | C9: $/qt. | E9: =13.5/K2*K3 -> 3.375 | F9: =49/(2.5*K2) -> 0.153125 | G9: oz. | H9: =+F9*K3 -> 4.9
A10: Authority MTZ | B10: =F10 -> 2.96875 | C10: $/oz. | F10: =570/12/K5 -> 2.96875 | G10: oz. | P10: =5/128 -> 0.0390625
A11: Authority XL | B11: =F11 -> 5 | C11: $/oz. | F11: =800/10/K5 -> 5 | G11: oz. | P11: =+P10*K3 -> 1.25
A12: Axial Bold | B12: 1.619257479 | C12: $/oz. | F12: =485/(2.34*K2) -> 1.619257479 | G12: oz.
A13: Axiom | B13: 2.4 | C13: $/oz. | F13: =960/(25*K5) -> 2.4 | G13: oz.
A14: Azoxy 2SC | B14: 0.32 | C14: $/oz. | E14: =41.5/K2 -> 0.32421875
A15: Azoxyprop | B15: 0.36 | C15: $/oz. | E15: =+AVERAGE(44,48)/K2 -> 0.359375
A16: Banvel | B16: =H16 -> 9.8 | C16: $/pt. | F16: =196/(2.5*K2) -> 0.6125 | G16: oz. | H16: =+F16*K4 -> 9.8
A17: Basagran | B17: =H17 -> 9.8 | C17: $/pt. | F17: =196/(2.5*K2) -> 0.6125 | G17: oz. | H17: =F17*K4 -> 9.8
A18: Bicep II Magnum | B18: 14.3 | C18: $/qt. | F18: =143/(2.5*K2) -> 0.446875 | G18: oz. | H18: =+F18*K3 -> 14.3
A19: Bifen 2EC | B19: 0.38 | C19: $/oz. | E19: =+AVERAGE(45,51)/128 -> 0.375
A20: Boll Opener (Ethephon) | B20: 8.97 | C20: $/acre | F20: =138*0.65/(2.5*K2) -> 0.2803125 | G20: oz.
A21: Boundary | B21: =H21 -> 12.55 | C21: $/pt. | F21: =251/(2.5*K2) -> 0.784375 | G21: oz. | H21: =F21*K4 -> 12.55
A22: Butyrac 200 | B22: =H22 -> 5.5 | C22: $/pt. | F22: =44/(K2) -> 0.34375 | G22: oz. | H22: =F22*K4 -> 5.5
A23: Callisto | B23: =F23 -> 3.09375 | C23: $/oz. | F23: =396/(K2) -> 3.09375 | G23: oz.
A24: Caparol | B24: =H24 -> 6 | C24: $/pt. | F24: =120/(2.5*K2) -> 0.375 | G24: oz. | H24: =F24*K4 -> 6
A25: Carfentrazone 2EC | B25: 3 | C25: $/oz. | E25: 3
A26: Chlorimuron | B26: 4.15 | C26: $oz | E26: 4.15
A27: Clarity 4EC | B27: =F27 -> 0.71875 | C27: $/oz. | F27: =230/(2.5*K2) -> 0.71875 | G27: oz. | H27: =F27*K4 -> 11.5
A28: Classic | B28: =F28 -> 20 | C28: $/oz. | F28: =200/10 -> 20 | G28: oz.
A29: Clethodim 2EC | B29: 0.2 | C29: $/oz. | E29: =+AVERAGE(24.5,27.9)/128 -> 0.2046875
A30: Cobra | B30: =F30 -> 1.96875 | C30: $/oz. | F30: =630/(2.5*K2) -> 1.96875 | G30: oz.
A31: Command 3ME | B31: =H31 -> 23.75 | C31: $/pt. | E31: =AVERAGE(378,389)/K3 -> 11.984375 | F31: =475/(2.5*K2) -> 1.484375 | G31: oz. | H31: =F31*K4 -> 23.75
A32: Coragen® eVo | B32: 11.98 | C32: $/qt.
A33: Cotoran 4L | B33: =H33 -> 6.25 | C33: $/pt. | F33: =125/(2.5*K2) -> 0.390625 | G33: oz. | H33: =F33*K4 -> 6.25
A34: Crossbow | B34: 16.25 | C34: $/qt. | F34: =162.5/(2.5*K2) -> 0.5078125 | G34: oz. | H34: =F34*K3 -> 16.25
A35: Defoliant | B35: 18 | C35: $/acre | G35: oz.
A36: Degree Xtra | B36: =H36 -> 15.1 | C36: $/qt. | F36: =151/(2.5*K2) -> 0.471875 | G36: oz. | H36: =F36*K3 -> 15.1
A37: Dicamba DMA totes | B37: 0.19 | C37: $/oz. | E37: =AVERAGE(24.2,25.5)/128 -> 0.194140625
A38: Dicamba DGA totes | B38: 0.23 | C38: $/oz. | E38: 0.2265625
A39: Direx 4L | B39: =H39 -> 2.9 | C39: $/pt. | F39: =58/(2.5*K2) -> 0.18125 | G39: oz. | H39: =F39*K4 -> 2.9
A40: Distinct DF | B40: =F40 -> 3.066666667 | C40: $/oz. | F40: =368/(7.5*K5) -> 3.066666667 | G40: oz.
A41: Dual Magnum | B41: =H41 -> 10.9 | C41: $/pt. | F41: =218/(2.5*K2) -> 0.68125 | H41: =F41*K4 -> 10.9
A42: Dual II Magnum | B42: =H42 -> 13.5 | C42: $/pt. | F42: =270/(2.5*K2) -> 0.84375 | H42: =F42*K4 -> 13.5
A43: Engenia | B43: =F43 -> 0.6640625 | C43: $/oz. | F43: =212.5/(2.5*K2) -> 0.6640625
A44: Enlist Duo | B44: =F44 -> 0.2078125 | C44: $/oz. | F44: =66.5/(2.5*K2) -> 0.2078125
A45: Enlist One | B45: 0.37 | C45: $/oz. | E45: =AVERAGE(45.75,48.9)/128 -> 0.3697265625 | F45: =105/(2.5*K2) -> 0.328125
A46: Envoke | B46: =+F46 -> 126.6666667 | C46: $/oz. | F46: =380/3 -> 126.6666667
A47: Finesse Cereal and Fallow | B47: 18.4 | C47: $/oz. | F47: =368/(20) -> 18.4 | G47: oz.
A48: FirstRate | B48: =F48 -> 50.91666667 | C48: $/oz. | F48: =611/(0.75*K5) -> 50.91666667 | G48: oz.
A49: Firstshot SG | B49: =F49 -> 9.95 | C49: $/oz. | F49: =199/(20) -> 9.95 | G49: oz.
A50: Flexstar GT 3.5 | B50: =H50 -> 7.65 | C50: $/pt. | F50: =153/(2.5*K2) -> 0.478125 | G50: oz. | H50: =F50*K4 -> 7.65
A51: Flexstar | B51: =H51 -> 11.3 | C51: $/pt. | F51: =226/(2.5*K2) -> 0.70625 | H51: =F51*K4 -> 11.3
A52: Flumioxazin 51 | B52: 0.97 | C52: $/oz. | E52: =+AVERAGE(14.75,16.4)/K2 -> 0.1216796875
A53: Flumioxazin 44% SC | B53: 1 | C53: $/oz. | E53: =AVERAGE(124,132)/128 -> 1
A54: Fusilade DX | B54: =F54 -> 1.3984375 | C54: $/oz. | F54: =179/K2 -> 1.3984375 | G54: oz.
A55: Glufosinate 280SL | B55: 0.13 | C55: $/oz. | E55: =+AVERAGE(16.5,17.9)/128 -> 0.134375
A56: Glyphosate | B56: 0.11 | C56: $/oz. | E56: =+AVERAGE(13.5,14.4)/128 -> 0.108984375
A57: (continued)
A59: Herbicides
A60: Goal 2XL | B60: =H60 -> 7.5 | C60: $/pt. | F60: =150/(2.5*K2) -> 0.46875 | G60: oz. | H60: =F60*K4 -> 7.5
A61: Gramoxone 3SL | B61: =F61 -> 0.3125 | C61: $/oz. | F61: =100/(2.5*K2) -> 0.3125 | G61: oz.
A62: Grazon P + D | B62: =H62 -> 4.9 | C62: $/pt. | F62: =98/(2.5*K2) -> 0.30625 | G62: oz. | H62: =F62*K4 -> 4.9
A63: Halex GT | B63: =H63 -> 9.95 | C63: $/pt. | F63: =199/(2.5*K2) -> 0.621875 | G63: oz. | H63: =F63*K4 -> 9.95
A64: Harmony Extra Total Sol | B64: =F64 -> 14.03 | C64: $/oz. | F64: =673.44/(48) -> 14.03 | G64: oz.
A65: Harness Xtra 5.6 | B65: =H65 -> 18.1 | C65: $/qt. | F65: =181/(2.5*K2) -> 0.565625 | G65: oz. | H65: =F65*K3 -> 18.1
A66: Imidacloprid 4F | B66: 0.52 | C66: $/oz. | E66: =+AVERAGE(0.47,0.56) -> 0.515
A67: Lambda Cy | B67: 0.23 | C67: $/oz. | E67: =+AVERAGE(26.4,32.35)/128 -> 0.2294921875
A68: Leadoff | B68: =F68 -> 6.666666667 | C68: $/oz. | F68: =400/(60) -> 6.666666667 | G68: oz.
A69: Liberty 280 SL | B69: =F69 -> 0.64375 | C69: $/oz. | F69: =206/(2.5*K2) -> 0.64375 | G69: oz.
A70: Mepex (Mepiquat Chloride) | B70: 2.24 | C70: $/acre | F70: =0.07*K4 -> 1.12 | G70: oz.
A71: Mesotrion | B71: 0.36 | C71: $/oz. | E71: =+AVERAGE(43.9,47.5)/128 -> 0.35703125
A72: Metribuzin 75DF | B72: =F72 -> 1.40625 | C72: $/oz. | F72: =225/(10*K5) -> 1.40625 | G72: oz.
A73: Metolachlor 8EC | B73: 0.23 | C73: $/oz. | E73: =+AVERAGE(27.15,31.8)/128 -> 0.2302734375
A74: Miravis® NEO | B74: 0.74 | C74: $/oz. | E74: =AVERAGE(15,174)/128 -> 0.73828125
A75: MSO | B75: 0.09 | C75: $/oz. | E75: =AVERAGE(10.75,12.9)/128 -> 0.0923828125
A76: Outlook | B76: 0.68 | C76: $/oz. | E76: =+AVERAGE(86,89)/128 -> 0.68359375 | F76: =458/(2.5*K2) -> 1.43125 | G76: oz.
A77: Paraquat | B77: 0.13 | C77: $/oz. | E77: =AVERAGE(15.5,17.5)/128 -> 0.12890625
A78: Permit | B78: =F78 -> 26.5 | C78: $/oz. | F78: =530/20 -> 26.5 | G78: oz.
A79: Pinzola | B79: 0.88 | C79: $/oz. | E79: =AVERAGE(108,117)/128 -> 0.87890625
A80: Poast | B80: =H80 -> 16 | C80: $/pt. | F80: =320/(2.5*K2) -> 1 | G80: oz. | H80: =F80*K4 -> 16
A81: Prefix | B81: =H81 -> 18.9 | C81: $/qt. | F81: =189/(2.5*K2) -> 0.590625 | G81: oz. | H81: =F81*K3 -> 18.9
A82: Prowl H20 | B82: 7.3 | C82: $/pt. | F82: =146/(2.5*K2) -> 0.45625 | G82: oz. | H82: =F82*K4 -> 7.3
A83: Priaxor® Xemium | B83: 2.76 | C83: $/oz. | E83: =AVERAGE(342,364)/128 -> 2.7578125
A84: Propicon 3.6 | B84: 0.37 | C84: $/oz. | E84: =AVERAGE(44.5,49)/128 -> 0.365234375
A85: Pursuit | B85: =F85 -> 3.90625 | C85: $/oz. | F85: =500/(128) -> 3.90625 | G85: oz.
A86: Python WDG | B86: =F86 -> 20.625 | C86: $/oz. | F86: =825/(2.5*K5) -> 20.625 | G86: oz.
A87: Raptor | B87: 5.0390625 | C87: $/oz. | F87: =645/(128) -> 5.0390625 | G87: oz.
A88: Realm Q | B88: 4.975 | C88: $/oz. | F88: =398/(80) -> 4.975 | G88: oz.
A89: Reflex | B89: =H89 -> 8.996212121 | C89: $/pt. | F89: =190/(2.64*K2) -> 0.5622632576 | G89: oz. | H89: =F89*K4 -> 8.996212121
A90: Resource | B90: =F90 -> 2.2109375 | C90: $/oz. | F90: =283/(128) -> 2.2109375 | G90: oz.
A91: Revytek® | B91: 2.34 | C91: $/oz. | E91: =AVERAGE(292,308)/128 -> 2.34375
A92: Roundup PowerMax 3 | B92: =F92 -> 0.4375 | C92: $/oz. | F92: =140/(2.5*K2) -> 0.4375 | G92: oz.
A93: Scepter 70DG | B93: =F93 -> 5.714285714 | C93: $/oz. | F93: =800/(8.75*K5) -> 5.714285714 | G93: oz.
A94: Select Max | B94: =F94 -> 0.96875 | C94: $/oz. | F94: =310/(2.5*K2) -> 0.96875 | G94: oz.
A95: Sequence | B95: =H95 -> 8.5 | C95: $/pt. | F95: =170/(2.5*K2) -> 0.53125 | G95: oz. | H95: =F95*K4 -> 8.5
A96: Sharpen | B96: 5.7 | C96: $/oz. | E96: =+AVERAGE(720,740)/128 -> 5.703125 | F96: =993/(128) -> 7.7578125 | G96: oz.
A97: Spur® | B97: 0.76 | C97: $/oz. | E97: =AVERAGE(96,99)/128 -> 0.76171875
A98: Status® | B98: 3.64 | C98: $/oz. | E98: =AVERAGE(3.55,3.72) -> 3.635
A99: Steadfast Q | B99: =F99 -> 14.43333333 | C99: $/oz. | F99: =866/(60) -> 14.43333333 | G99: oz.
A100: Storm | B100: =H100 -> 14.2 | C100: $/pt. | F100: =284/(2.5*K2) -> 0.8875 | G100: oz. | H100: =F100*K4 -> 14.2
A101: Sulfentrazone 4 | B101: 0.55 | C101: $/oz. | E101: =AVERAGE(66.7,72.9)/128 -> 0.5453125
A102: Surfactant | B102: 0.08 | C102: $/oz. | E102: =10.5/K2 -> 0.08203125 | G102: oz.
A103: Tebucon 3.6SC | B103: 0.28 | C103: $/oz. | E103: =+AVERAGE(34,38)/128 -> 0.28125
A104: Treaty® Extra | B104: 4.83 | C104: $/oz. | E104: =+AVERAGE(4.5,5.15) -> 4.825
A105: Treflan | B105: =H105 -> 3.375 | C105: $/pt. | F105: =67.5/(2.5*K2) -> 0.2109375 | G105: oz. | H105: =F105*K4 -> 3.375
A106: Trivapro® | B106: 1.2 | C106: $/oz. | E106: =AVERAGE(150,158)/128 -> 1.203125
A107: Ultra Blazer | B107: =H107 -> 6.8 | C107: $/pt. | F107: =136/(2.5*K2) -> 0.425 | G107: oz. | H107: =F107*K4 -> 6.8
A108: Valor | B108: =F108 -> 3.6875 | C108: $/oz. | F108: =295/(5*K5) -> 3.6875 | G108: oz.
A109: Veltyma® | B109: 2.11 | C109: $/oz. | E109: =+AVERAGE(265,274)/128 -> 2.10546875
A110: Verdict | B110: =F110 -> 2.1375 | C110: $/oz. | F110: =684/(2.5*K2) -> 2.1375 | G110: oz.
A111: Warrant | B111: =H111 -> 6.15 | C111: $/pt. | F111: =123/(2.5*K2) -> 0.384375 | G111: oz. | H111: =F111*K4 -> 6.15
A112: Xtendimax | B112: =F113 -> 0.3984375 | C112: $/oz.
A113: Zidua® Pro | B113: 3.2 | C113: $/oz. | E113: =AVERAGE(405,415)/128 -> 3.203125 | F113: =127.5/(2.5*K2) -> 0.3984375 | G113: oz.

Sheet Fungicides
A1: Fungicide Treatments
A2: Soybean-Foliar | B2: 15 | C2: $/acre
A3: Wheat-Foliar | B3: 10 | C3: $/acre
A4: Crop Oil Concentrate | B4: 10.9 | C4: $/qt.
A5: Corn-Foliar | B5: 18 | C5: $/acre
A6: Surfactant | B6: 10.5 | C6: $/gal
B8: Price/Unit | C8: Unit
A9: Aftershock
A10: Alto
A11: Approach
A12: Approach Prima
A13: Caramba
A14: Domark
A15: Evito
A16: Folicur
A17: Fortix
A18: Headline
A19: Headline AMP
A20: Priaxor
A21: Priaxor D
A22: Proline
A23: Prosaro
A24: Quadris
A25: Quadris Top
A26: Quilt Xcel
A27: Stratego YLD
A28: Tilt
A29: Topguard
A30: Topsin-M
A31: TwinLine

Sheet Print (hidden)
B1: Irrigation
B2: Irrigation Energy Cost | C2: 6.75 | D2: $/acre-in
B3: Irrigation System R&M & Labor | C3: 3 | D3: $/acre-in
B4: Capital Recovery (Irrigation Equipment) | C4: 100 | D4: $/acre
B6: Fungicide Treatments
B7: Soybean-Foliar | C7: 15 | D7: $/acre
B8: Wheat-Foliar | C8: 10 | D8: $/acre
B9: Crop Oil Concentrate | C9: 10.9 | D9: $/qt.
B10: Corn-Foliar | C10: 18 | D10: $/acre
B11: Surfactant | C11: 10.5 | D11: $/gal
B13: Insecticide Treatments
B14: Soybean-Foliar | C14: 20 | D14: $/acre
B15: Cotton-Foliar | C15: 65 | D15: $/acre
B16: Grain Sorghum-Foliar | C16: 30 | D16: $/acre
B17: Wheat-Foliar | C17: 5 | D17: $/acre
B18: Maintenance Fee (Boll Weevil Eradication) | C18: 2 | D18: $/acre

Sheet Insecticides
A1: Insecticide Treatments
A2: Soybean-Foliar | B2: 20 | C2: $/acre
A3: Cotton-Foliar | B3: 65 | C3: $/acre
A4: Grain Sorghum-Foliar | B4: 30 | C4: $/acre
A5: Wheat-Foliar | B5: 5 | C5: $/acre
A6: Maintenance Fee (Boll Weevil Eradication) | B6: 2 | C6: $/acre | E6: 1.5
B8: Price/Unit | C8: Unit
A9: Abba
A10: Acramite
A11: Ammo
A12: Asana
A13: Athena
A14: Baythroid XL
A15: Belay
A16: Belt
A17: Belt
A18: Besiege
A19: Bidrin
A20: Blackhawk
A21: Brigade/Discipline/Fanfare
A22: Brigadier
A23: Carbine
A24: Centeic
A25: Colbalt
A26: Colbalt Advanced
A27: Comite
A28: Curacon
A29: Declare
A30: Delare
A31: Delta Gold
A32: Denim
A33: Diamon
A34: Dicofol
A35: Dimethoate
A36: Dimethoate
A37: Dimilin 2
A38: Double Take
A39: Double Take
A40: Endigo ZC
A41: Fyfanon
A42: Hero
A43: Imidacloprid
A44: Intrepid
A45: Intrepid Edge
A46: Intruder
A47: Justice
A48: Karate/Warrior II
A49: Lannate
A50: Larvin
A51: Leverage 360
A52: Lorsban
A53: Lorsban Advanced
A54: Malathion
A55: Methyl
A56: Mustang Max
A57: Oberon
A58: Orthene 90S
A59: Portal
A60: Pounce
A61: Prevathon
A62: Radiant
A63: Seven XLR
A64: Sevin
A65: Stallion
A66: Steward
A67: Transform
A68: Triple Crown
A69: Vydate
A70: Warrior II
A71: Zeal

Sheet Corn NT Non-Irr
B1: 2025 Corn, No-Till, Non-Irrigated Budget | L1: Table 1. Fertilizer & Lime3
E2: Unit | F2: Quantity | G2: Price | H2: Total | J2: Your Farm | L2: Fertilizer | M2: Description | N2: Quantity (lbs.) | O2: Price ($) | P2: Total ($/Acre) | Q2: Your Farm ($/Acre)
B3: Revenue1 | E3: Gross Revenue ($/Acre) | L3: Nitrogen | M3: Urea - Planting | N3: 60 | O3: =Inputs!C44 -> 0.52 | P3: =N3*O3 -> 31.2 | Q3: _________
C4: Corn | E4: Bu/acre | F4: 175 | G4: =Inputs!C3 -> 4.6 | H4: =F4*G4 -> 805 | J4: _________ | M4: UAN 32 - Side dress | N4: 120 | O4: =Inputs!C47 -> 0.54 | P4: =N4*O4 -> 64.8 | Q4: _________
C5: Government Payments | E5: $/acre | F5: 1 | G5: 0 | H5: =F5*G5 -> 0 | J5: _________ | L5: Phosphorous | M5: P2O5 | N5: 70 | O5: =Inputs!C48 -> 0.66 | P5: =+N5*O5 -> 46.2 | Q5: _________
C6: Other Revenue | E6: $/acre | F6: 1 | G6: 0 | H6: =F6*G6 -> 0 | J6: _________ | L6: Potassium | M6: K20 | N6: 70 | O6: =Inputs!C50 -> 0.36 | P6: =+N6*O6 -> 25.2 | Q6: _________
B7: Total Revenue | H7: =SUM(H4:H6) -> 805 | J7: _________ | L7: Zinc Sulfate | N7: 15 | O7: =+Inputs!C54 -> 1.67 | P7: =+N7*O7 -> 25.05 | Q7: _________
B8: Variable Expenses | L8: Boron | N8: 1 | O8: =Inputs!C52 -> 0.7 | P8: =+N8*O8 -> 0.7 | Q8: _________
C9: Seed2 | E9: Thous. | F9: 32 | G9: =+Inputs!C36 -> 3.88 | H9: =+F9*G9 -> 124.16 | J9: _________ | L9: Lime | N9: 1000 | O9: =+Inputs!C51 -> 30 | P9: =+N9/2000*O9 -> 15 | Q9: _________
C10: Fertilizer & Lime (Table 1) | E10: Acre | F10: 1 | G10: =+P12 -> 208.15 | H10: =+F10*G10 -> 208.15 | J10: _________ | L10: Other | N10: 0 | O10: 0 | P10: =N10*O10 -> 0 | Q10: _________
C11: Chemical (Table 2) | E11: Acre | F11: 1 | G11: =S28 -> 72.27 | H11: =F11*G11 -> 72.27 | J11: _________ | L11: Other | N11: 0 | O11: 0 | P11: =N11*O11 -> 0 | Q11: _________
C12: Crop Scout or Consultant | E12: Acre | F12: 1 | G12: =+Inputs!C18 -> 10 | H12: =F12*G12 -> 10 | J12: _________ | L12: Total | P12: =SUM(P3:P11) -> 208.15 | Q12: _________
C13: Repair & Maintenance (Table 3) | E13: Acre | F13: 1 | G13: =+Q44 -> 45.97995936 | H13: =+F13*G13 -> 45.97995936 | J13: _________
C14: Fuel, Oil & Filter (Table 3) | E14: Acre | F14: 1 | G14: =+R44 -> 22.08771295 | H14: 22.08771295 | J14: _________ | L14: Table 2. Chemicals4
C15: Operator Labor (Table 3) | E15: Acre | F15: 1 | G15: =+S44 -> 13.97576654 | H15: 13.97576654 | J15: _________ | L15: Chemical | M15: Function | N15: Description | O15: Unit | P15: Number of Apps. | Q15: Quantity | R15: Price | S15: Total ($/Acre) | T15: Your Farm ($/Acre)
C16: Crop Insurance6 | E16: Acre | F16: 1 | G16: =+Inputs!C24 -> 16.66 | H16: 16.66 | J16: _________ | L16: Herbicides | M16: Burndown | N16: Roundup PowerMax | O16: oz. | P16: 1 | Q16: 32 | R16: =+Herbicides!B92 -> 0.4375 | S16: =P16*Q16*R16 -> 14 | T16: _________
C17: Machinery Rental | E17: Acre | F17: 1 | G17: 0 | H17: 0 | J17: _________ | M17: Pre-Emerge | N17: Atrazine | O17: qt. | P17: 1 | Q17: 1.5 | R17: =Herbicides!B9 -> 3.38 | S17: =P17*Q17*R17 -> 5.07 | T17: _________
C18: Custom Work | E18: Acre | F18: 1 | G18: 0 | H18: 0 | J18: _________ | N18: Other | P18: 0 | Q18: 0 | R18: 0 | S18: 0 | T18: _________
C19: Drying (Fuel/Electric) | E19: Bu | F19: =+F4 -> 175 | G19: 0 | H19: 0 | J19: _________ | M19: Post-Emerge | N19: Halex GT | O19: pt. | P19: 1 | Q19: 3.6 | R19: =Herbicides!B63 -> 9.95 | S19: 35.82 | T19: _________
C20: Other | E20: Acre | F20: 1 | G20: 0 | H20: =F20*G20 -> 0 | J20: _________ | N20: Atrazine | O20: qt. | P20: 1 | Q20: 1 | R20: =Herbicides!B9 -> 3.38 | S20: 3.38 | T20: _________
C21: Other | E21: Acre | F21: 1 | G21: 0 | H21: =F21*G21 -> 0 | J21: _________ | N21: Other | P21: 0 | Q21: 0 | R21: 0 | S21: 0 | T21: _________
C22: Operating Interest 7 | E22: % | F22: =SUM(H9:H21) -> 513.2834388 | G22: =+Inputs!C14 -> 0.08 | H22: =(F22*G22)/2 -> 20.53133755 | J22: _________ | M22: Harvest Aid | N22: Roundup PowerMax | P22: 1 | Q22: 32 | R22: =Herbicides!B92 -> 0.4375 | S22: 14 | T22: _________
B23: Total Variable Expenses | H23: =SUM(H9:H22) -> 533.8147764 | J23: _________ | N23: Other | P23: 0 | Q23: 0 | R23: 0 | S23: 0 | T23: _________
B24: Return Above Variable Expenses | H24: =H7-H23 -> 271.1852236 | J24: _________ | L24: Insecticides | N24: Other | P24: 0 | Q24: 0 | R24: 0 | S24: 0 | T24: _________
B25: Fixed Expenses | N25: Other | P25: 0 | Q25: 0 | R25: 0 | S25: 0 | T25: _________
C26: Machinery | L26: Fungicides | N26: Other | P26: 0 | Q26: 0 | R26: 0 | S26: 0 | T26: _________
C27: Capital Recovery (Table 3) | E27: Acre | F27: 1 | G27: =+P44 -> 121.6304969 | H27: =+F27*G27 -> 121.6304969 | J27: _________ | N27: Other | P27: 0 | Q27: 0 | R27: 0 | S27: =P27*Q27*R27 -> 0 | T27: _________
C28: Other Fixed Machinery Costs | E28: Acre | F28: 1 | G28: =+Inputs!C30 -> 0 | H28: =+F28*G28 -> 0 | J28: _________ | L28: Total | S28: =SUM(S16:S27) -> 72.27 | T28: _________
C29: General Overhead | E29: Acre | F29: 1 | G29: 20 | H29: =+F29*G29 -> 20 | J29: _________
C30: Cash Rent8 | E30: Acre | F30: 1 | G30: =+Inputs!C23 -> 117 | H30: 117 | J30: _________ | L30: Table 3. Machinery5
C31: Insurance (Non-Machinery) | E31: Acre | F31: 1 | G31: 0 | H31: 0 | J31: _________ | M31: Power Unit | N31: Implement | O31: Size | P31: Capital Recovery | Q31: Repairs & Maintenance | R31: Fuel, Oil & Filter | S31: Labor | T31: Total | U31: Your Farm ($/Acre)
C32: Management Labor10 | E32: Acre | F32: 1 | G32: =Inputs!C33 -> 25 | H32: =+F32*G32 -> 25 | J32: _________ | L32: Burndown | M32: SP Boom Sprayer | O32: 90' | P32: =+'Field Operations'!F11 -> 9.480901321 | Q32: =+'Field Operations'!G11 -> 0.2942877349 | R32: =+'Field Operations'!H11 -> 0.3719451389 | S32: =+'Field Operations'!I11 -> 0.318287037 | T32: =SUM(P32:S32) -> 10.46542123 | U32: _________
C33: Other | E33: Acre | F33: 1 | G33: 0 | H33: =+F33*G33 -> 0 | J33: _________ | L33: Fertilize | M33: Tractor, 215 hp | N33: Fertilize Spreader | P33: ='Field Operations'!F10 -> 5.103029692 | Q33: ='Field Operations'!G10 -> 1.596529341 | R33: ='Field Operations'!H10 -> 2.459392347 | S33: ='Field Operations'!I10 -> 1.683673469 | T33: 10.84262485 | U33: _________
B34: Total Fixed Expenses | H34: =+SUM(H27:H33) -> 283.6304969 | J34: _________ | L34: Plant | M34: Tractor, 215 hp | N34: Planter | O34: 16-row | P34: =+'Field Operations'!F8 -> 15.97084823 | Q34: =+'Field Operations'!G8 -> 2.876988318 | R34: =+'Field Operations'!H8 -> 2.317504327 | S34: =+'Field Operations'!I8 -> 1.586538462 | T34: =SUM(P34:S34) -> 22.75187934 | U34: _________
B35: Total Expenses | H35: =H23+H34 -> 817.4452733 | J35: _________ | L35: Weed Control | M35: SP Boom Sprayer | O35: 90' | P35: =+'Field Operations'!F11 -> 9.480901321 | Q35: =+'Field Operations'!G11 -> 0.2942877349 | R35: =+'Field Operations'!H11 -> 0.3719451389 | S35: =+'Field Operations'!I11 -> 0.318287037 | T35: =SUM(P35:S35) -> 10.46542123 | U35: _________
B36: Return Above Specified Expenses | H36: =H7-H35 -> -12.44527328 | J36: _________ | L36: Weed Control | M36: SP Boom Sprayer | O36: 90' | P36: =+'Field Operations'!F11 -> 9.480901321 | Q36: =+'Field Operations'!G11 -> 0.2942877349 | R36: =+'Field Operations'!H11 -> 0.3719451389 | S36: =+'Field Operations'!I11 -> 0.318287037 | T36: =SUM(P36:S36) -> 10.46542123 | U36: _________
G37: Cash Cost per Bushel | H37: =(SUM(H9:H22)+H30+H29)/F4 -> 3.833227294 | J37: _________ | L37: Weed Control | M37: SP Boom Sprayer | O37: 90' | P37: ='Field Operations'!F11 -> 9.480901321 | Q37: ='Field Operations'!G11 -> 0.2942877349 | R37: ='Field Operations'!H11 -> 0.3719451389 | S37: ='Field Operations'!I11 -> 0.318287037 | T37: =SUM(P37:S37) -> 10.46542123 | U37: _________
G38: Economic Cost per Bushel | H38: =H35/F4 -> 4.671115847 | J38: _________ | L38: Fertilize | M38: Tractor, 215 hp | N38: Fertilize Spreader | P38: =+'Field Operations'!F10 -> 5.103029692 | Q38: =+'Field Operations'!G10 -> 1.596529341 | R38: =+'Field Operations'!H10 -> 2.459392347 | S38: =+'Field Operations'!I10 -> 1.683673469 | T38: =SUM(P38:S38) -> 10.84262485 | U38: _________
L39: Fertilize | M39: Tractor, 215 hp | N39: Fertilize Spreader | P39: =+'Field Operations'!F10 -> 5.103029692 | Q39: =+'Field Operations'!G10 -> 1.596529341 | R39: =+'Field Operations'!H10 -> 2.459392347 | S39: =+'Field Operations'!I10 -> 1.683673469 | T39: =SUM(P39:S39) -> 10.84262485 | U39: _________
B40: Breakeven Price for Selected Yield | F40: Breakeven Yield for Selected Price | L40: Harvest | M40: Combine | N40: Corn Head | O40: 8-row | P40: =+'Field Operations'!F12 -> 37.72518729 | Q40: =+'Field Operations'!G12 -> 35.05079519 | R40: =+'Field Operations'!H12 -> 8.607873214 | S40: =+'Field Operations'!I12 -> 3.273809524 | T40: =SUM(P40:S40) -> 84.65766521 | U40: _________
B41: Yield | C41: Variable Cost | D41: Total Specified Cost | F41: Price | G41: Variable Cost | I41: Total Specified Cost | L41: Haul | M41: Tractor, 215 hp | N41: Grain Cart | O41: ='Field Operations'!E14 -> 800 bu | P41: =+'Field Operations'!F14 -> 7.021767002 | Q41: =+'Field Operations'!G14 -> 0.8354368884 | R41: =+'Field Operations'!H14 -> 1.506377813 | S41: =+'Field Operations'!I14 -> 1.03125 | T41: =SUM(P41:S41) -> 10.3948317 | U41: _________
B42: (bu) | C42: ($/bu) | D42: ($/bu) | F42: ($/bu) | G42: (bu) | I42: (bu) | L42: Haul | M42: ='Field Operations'!C16 -> Semi Tractor/Trailer | P42: ='Field Operations'!F16 -> 7.68 | Q42: ='Field Operations'!G16 -> 1.25 | R42: ='Field Operations'!H16 -> 0.79 | S42: ='Field Operations'!I16 -> 1.76 | T42: =SUM(P42:S42) -> 11.48 | U42: _________
B43: =SUM(B44-10) -> 125 | C43: =$H$23/B43 -> 4.270518211 | D43: =($H$23+$H$34)/B43 -> 6.539562186 | F43: =SUM(F44-0.25) -> 3.35 | G43: =+$H$23/F43 -> 159.3476944 | I43: =+($H$23+$H$34)/F43 -> 244.0135144 | L43: Other | P43: 0 | Q43: 0 | R43: 0 | S43: 0 | T43: =SUM(P43:S43) -> 0 | U43: _________
B44: =SUM(B45-10) -> 135 | C44: 3.954183529 | D44: 6.055150172 | F44: =SUM(F45-0.25) -> 3.6 | G44: 148.2818823 | I44: 227.0681315 | L44: Total | P44: =SUM(P32:P43) -> 121.6304969 | Q44: =SUM(Q32:Q43) -> 45.97995936 | R44: =SUM(R32:R43) -> 22.08771295 | S44: =SUM(S32:S43) -> 13.97576654 | T44: =SUM(T32:T43) -> 203.6739357 | U44: _________
B45: =SUM(B46-10) -> 145 | C45: 3.681481217 | D45: 5.637553609 | F45: =SUM(F46-0.25) -> 3.85 | G45: 138.6531887 | I45: 212.3234476
B46: =SUM(B47-10) -> 155 | C46: 3.443966299 | D46: 5.273840473 | F46: =SUM(F47-0.25) -> 4.1 | G46: 130.198726 | I46: 199.3768959
B47: =SUM(B48-10) -> 165 | C47: 3.235241069 | D47: 4.954213777 | F47: =SUM(F48-0.25) -> 4.35 | G47: 122.7160406 | I47: 187.9184536
B48: =+F4 -> 175 | C48: 3.050370151 | D48: 4.671115847 | F48: =+G4 -> 4.6 | G48: 116.0466905 | I48: 177.7054942
B49: =SUM(B48+10) -> 185 | C49: 2.885485278 | D49: 4.418623099 | F49: =SUM(F48+0.25) -> 4.85 | G49: 110.0649024 | I49: 168.5454172
B50: =SUM(B49+10) -> 195 | C50: 2.737511674 | D50: 4.192027042 | F50: =SUM(F49+0.25) -> 5.1 | G50: 104.669564 | I50: 160.2833869
B51: =SUM(B50+10) -> 205 | C51: 2.603974519 | D51: 3.987537918 | F51: =SUM(F50+0.25) -> 5.35 | G51: 99.77846288 | I51: 152.793509
B52: =SUM(B51+10) -> 215 | C52: 2.482859425 | D52: 3.802071039 | F52: =SUM(F51+0.25) -> 5.6 | G52: 95.32406721 | I52: 145.9723702
B53: =SUM(B52+10) -> 225 | C53: 2.372510117 | D53: 3.633090103 | F53: =SUM(F52+0.25) -> 5.85 | G53: 91.25038913 | I53: 139.7342347

Sheet Corn CT Non-Irr
B1: 2025 Corn, Conventional Tillage, Non-Irrigated Budget | L1: Table 1. Fertilizer & Lime3
E2: Unit | F2: Quantity | G2: Price | H2: Total | J2: Your Farm | L2: Fertilizer | M2: Description | N2: Quantity (lbs.) | O2: Price ($) | P2: Total ($/Acre) | Q2: Your Farm ($/Acre)
B3: Revenue1 | E3: Gross Revenue ($/Acre) | L3: Nitrogen | M3: Urea - Planting | N3: 60 | O3: =Inputs!C44 -> 0.52 | P3: =N3*O3 -> 31.2 | Q3: _________
C4: Corn | E4: Bu/acre | F4: 175 | G4: =+Inputs!C3 -> 4.6 | H4: =F4*G4 -> 805 | J4: _________ | M4: UAN 32 - Side dress | N4: 120 | O4: =Inputs!C47 -> 0.54 | P4: =N4*O4 -> 64.8 | Q4: _________
C5: Government Payments | E5: $/acre | F5: 1 | G5: 0 | H5: =F5*G5 -> 0 | J5: _________ | L5: Phosphorous | M5: P2O5 | N5: 70 | O5: =Inputs!C48 -> 0.66 | P5: =+N5*O5 -> 46.2 | Q5: _________
C6: Other Revenue | E6: $/acre | F6: 1 | G6: 0 | H6: 0 | J6: _________ | L6: Potassium | M6: K20 | N6: 70 | O6: =Inputs!C50 -> 0.36 | P6: =+N6*O6 -> 25.2 | Q6: _________
B7: Total Revenue | H7: =SUM(H4:H6) -> 805 | J7: _________ | L7: Zinc Sulfate | N7: 15 | O7: =Inputs!C54 -> 1.67 | P7: =+N7*O7 -> 25.05 | Q7: _________
B8: Variable Expenses | L8: Boron | N8: 1 | O8: =Inputs!C52 -> 0.7 | P8: =+N8*O8 -> 0.7 | Q8: _________
C9: Seed2 | E9: Thous. | F9: 32 | G9: =+Inputs!C36 -> 3.88 | H9: =+F9*G9 -> 124.16 | J9: _________ | L9: Lime | N9: 1000 | O9: =Inputs!C51 -> 30 | P9: =N9/2000*O9 -> 15 | Q9: _________
C10: Fertilizer & Lime (Table 1) | E10: Acre | F10: 1 | G10: =+P12 -> 208.15 | H10: =+F10*G10 -> 208.15 | J10: _________ | L10: Other | N10: 0 | O10: 0 | P10: =N10*O10 -> 0 | Q10: _________
C11: Chemical (Table 2) | E11: Acre | F11: 1 | G11: =S27 -> 54.27 | H11: =F11*G11 -> 54.27 | J11: _________ | L11: Other | N11: 0 | O11: 0 | P11: =N11*O11 -> 0 | Q11: _________
C12: Crop Scout or Consultant | E12: Acre | F12: 1 | G12: =+Inputs!C18 -> 10 | H12: =F12*G12 -> 10 | J12: _________ | L12: Total | P12: =SUM(P3:P11) -> 208.15 | Q12: _________
C13: Repair & Maintenance (Table 3) | E13: Acre | F13: 1 | G13: =+Q45 -> 51.47247204 | H13: =+F13*G13 -> 51.47247204 | J13: _________
C14: Fuel, Oil & Filter (Table 3) | E14: Acre | F14: 1 | G14: =+R45 -> 30.64965607 | H14: 30.64965607 | J14: _________ | L14: Table 2. Chemicals4
C15: Operator Labor (Table 3) | E15: Acre | F15: 1 | G15: =+S45 -> 19.77352303 | H15: 19.77352303 | J15: _________ | L15: Chemical | M15: Function | N15: Description | O15: Unit | P15: Number of Apps. | Q15: Quantity | R15: Price | S15: Total ($/Acre) | T15: Your Farm ($/Acre)
C16: Crop Insurance6 | E16: Acre | F16: 1 | G16: =+Inputs!C24 -> 16.66 | H16: 16.66 | J16: _________ | L16: Herbicides | M16: Pre-Emerge | N16: Atrazine | O16: qt. | P16: 1 | Q16: 1 | R16: =Herbicides!B9 -> 3.38 | S16: =P16*Q16*R16 -> 3.38 | T16: _________
C17: Machinery Rental | E17: Acre | F17: 1 | G17: 0 | H17: 0 | J17: _________ | N17: Other | P17: 0 | Q17: 0 | R17: 0 | S17: =P17*Q17*R17 -> 0 | T17: _________
C18: Custom Work | E18: Acre | F18: 1 | G18: 0 | H18: 0 | J18: _________ | M18: Post-Emerge | N18: Halex GT | O18: pt. | P18: 1 | Q18: 3.6 | R18: =Herbicides!B63 -> 9.95 | S18: =P18*Q18*R18 -> 35.82 | T18: _________
C19: Drying (Fuel/Electric) | E19: Bu | F19: =+F4 -> 175 | G19: 0 | H19: 0 | J19: _________ | N19: Atrazine | O19: qt. | P19: 1 | Q19: 1.5 | R19: =Herbicides!B9 -> 3.38 | S19: 5.07 | T19: _________
C20: Other | E20: Acre | F20: 1 | G20: 0 | H20: =F20*G20 -> 0 | J20: _________ | N20: Other | P20: 0 | Q20: 0 | R20: 0 | S20: 0 | T20: _________
C21: Other | E21: Acre | F21: 1 | G21: 0 | H21: =F21*G21 -> 0 | J21: _________ | M21: Harvest Aid | N21: Gramoxone SL | P21: 1 | Q21: 32 | R21: =Herbicides!B61 -> 0.3125 | S21: 10 | T21: _________
C22: Operating Interest 7 | E22: % | F22: =SUM(H9:H21) -> 515.1356511 | G22: =+Inputs!C14 -> 0.08 | H22: =(F22*G22)/2 -> 20.60542605 | J22: _________ | N22: Other | P22: 0 | Q22: 0 | R22: 0 | S22: 0 | T22: _________
B23: Total Variable Expenses | H23: =SUM(H9:H22) -> 535.7410772 | J23: _________ | L23: Insecticides | N23: Other | P23: 0 | Q23: 0 | R23: 0 | S23: 0 | T23: _________
B24: Return Above Variable Expenses | H24: =H7-H23 -> 269.2589228 | J24: _________ | N24: Other | P24: 0 | Q24: 0 | R24: 0 | S24: 0 | T24: _________
B25: Fixed Expenses | L25: Fungicides | N25: Other | P25: 0 | Q25: 0 | R25: 0 | S25: 0 | T25: _________
C26: Machinery | N26: Other | P26: 0 | Q26: 0 | R26: 0 | S26: =P26*Q26*R26 -> 0 | T26: _________
C27: Capital Recovery (Table 3) | E27: Acre | F27: 1 | G27: =+P45 -> 138.0227289 | H27: =+F27*G27 -> 138.0227289 | J27: _________ | L27: Total | S27: =SUM(S16:S26) -> 54.27 | T27: _________
C28: Other Fixed Machinery Costs | E28: Acre | F28: 1 | G28: =+Inputs!C30 -> 0 | H28: =+F28*G28 -> 0 | J28: _________
C29: General Overhead | E29: Acre | F29: 1 | G29: 20 | H29: 20 | J29: _________ | L29: Table 3. Machinery5
C30: Cash Rent8 | E30: Acre | F30: 1 | G30: =+Inputs!C23 -> 117 | H30: =+F30*G30 -> 117 | J30: _________ | M30: Power Unit | N30: Implement | O30: Size | P30: Capital Recovery | Q30: Repairs & Maintenance | R30: Fuel, Oil & Filter | S30: Labor | T30: Total | U30: Your Farm ($/Acre)
C31: Insurance (Non-Machinery) | E31: Acre | F31: 1 | G31: 0 | H31: 0 | J31: _________ | L31: Chisel | M31: Tractor, 215 hp | N31: Chisel Plow | O31: 21' | P31: =+'Field Operations'!F4 -> 6.95270342 | Q31: =+'Field Operations'!G4 -> 2.034898445 | R31: =+'Field Operations'!H4 -> 3.375636555 | S31: =+'Field Operations'!I4 -> 2.31092437 | T31: =SUM(P31:S31) -> 14.67416279 | U31: _________
C32: Management Labor10 | E32: Acre | F32: 1 | G32: =Inputs!C33 -> 25 | H32: =+F32*G32 -> 25 | J32: _________ | L32: Disk | M32: Tractor, 215 hp | N32: Tandem Disk | O32: 29' | P32: =+'Field Operations'!F5 -> 11.60044178 | Q32: =+'Field Operations'!G5 -> 2.015124735 | R32: =+'Field Operations'!H5 -> 2.716029412 | S32: =+'Field Operations'!I5 -> 1.859364435 | T32: 18.19096036 | U32: _________
C33: Other | E33: Acre | F33: 1 | G33: 0 | H33: =+F33*G33 -> 0 | J33: _________ | L33: Prepare Seedbed | M33: Tractor, 215 hp | N33: Do-All | O33: 26.5' | P33: =+'Field Operations'!F6 -> 7.319988101 | Q33: =+'Field Operations'!G6 -> 1.736777239 | R33: =+'Field Operations'!H6 -> 2.842222288 | S33: =+'Field Operations'!I6 -> 1.945754717 | T33: =SUM(P33:S33) -> 13.84474234 | U33: _________
B34: Total Fixed Expenses | H34: =+SUM(H27:H33) -> 300.0227289 | J34: _________ | L34: Plant | M34: Tractor, 215 hp | N34: Planter | O34: 16-row | P34: =+'Field Operations'!F8 -> 15.97084823 | Q34: =+'Field Operations'!G8 -> 2.876988318 | R34: =+'Field Operations'!H8 -> 2.317504327 | S34: =+'Field Operations'!I8 -> 1.586538462 | T34: 22.75187934 | U34: _________
B35: Total Expenses | H35: =H23+H34 -> 835.763806 | J35: _________ | L35: Fertilize | M35: Tractor, 215 hp | N35: Fertilize Spreader | P35: =+'Field Operations'!F10 -> 5.103029692 | Q35: =+'Field Operations'!G10 -> 1.596529341 | R35: =+'Field Operations'!H10 -> 2.459392347 | S35: =+'Field Operations'!I10 -> 1.683673469 | T35: 10.84262485 | U35: _________
B36: Return Above Specified Expenses | H36: =H7-H35 -> -30.76380603 | J36: _________ | L36: Fertilize | M36: Tractor, 215 hp | N36: Fertilize Spreader | P36: =+'Field Operations'!F10 -> 5.103029692 | Q36: =+'Field Operations'!G10 -> 1.596529341 | R36: =+'Field Operations'!H10 -> 2.459392347 | S36: =+'Field Operations'!I10 -> 1.683673469 | T36: =SUM(P36:S36) -> 10.84262485 | U36: _________
G37: Cash Cost per Bushel | H37: =(SUM(H9:H22)+H30+H29)/F4 -> 3.844234727 | J37: _________ | L37: Fertilize | M37: Tractor, 215 hp | N37: Fertilize Spreader | P37: ='Field Operations'!F10 -> 5.103029692 | Q37: ='Field Operations'!G10 -> 1.596529341 | R37: ='Field Operations'!H10 -> 2.459392347 | S37: ='Field Operations'!I10 -> 1.683673469 | T37: =SUM(P37:S37) -> 10.84262485 | U37: _________
G38: Economic Cost per Bushel | H38: =H35/F4 -> 4.775793177 | J38: _________ | L38: Weed Control | M38: SP Boom Sprayer | O38: 90' | P38: =P39 -> 9.480901321 | Q38: =Q39 -> 0.2942877349 | R38: 0.3719451389 | S38: 0.318287037 | T38: 10.46542123 | U38: _________
L39: Weed Control | M39: SP Boom Sprayer | O39: 90' | P39: =+'Field Operations'!F11 -> 9.480901321 | Q39: =+'Field Operations'!G11 -> 0.2942877349 | R39: =+'Field Operations'!H11 -> 0.3719451389 | S39: =+'Field Operations'!I11 -> 0.318287037 | T39: =SUM(P39:S39) -> 10.46542123 | U39: _________
B40: Breakeven Price for Selected Yield | F40: Breakeven Yield for Selected Price | L40: Weed Control | M40: SP Boom Sprayer | O40: 90' | P40: =+'Field Operations'!F11 -> 9.480901321 | Q40: =+'Field Operations'!G11 -> 0.2942877349 | R40: =+'Field Operations'!H11 -> 0.3719451389 | S40: =+'Field Operations'!I11 -> 0.318287037 | T40: =SUM(P40:S40) -> 10.46542123 | U40: _________
B41: Yield | C41: Variable Cost | D41: Total Specified Cost | F41: Price | G41: Variable Cost | I41: Total Specified Cost | L41: Harvest | M41: Combine | N41: Corn Head | O41: 8-row | P41: =+'Field Operations'!F12 -> 37.72518729 | Q41: =+'Field Operations'!G12 -> 35.05079519 | R41: =+'Field Operations'!H12 -> 8.607873214 | S41: =+'Field Operations'!I12 -> 3.273809524 | T41: =SUM(P41:S41) -> 84.65766521 | U41: _________
B42: (bu) | C42: ($/bu) | D42: ($/bu) | F42: ($/bu) | G42: (bu) | I42: (bu) | L42: Haul | M42: Tractor, 215 hp | N42: Grain Cart | O42: ='Field Operations'!E14 -> 800 bu | P42: =+'Field Operations'!F14 -> 7.021767002 | Q42: =+'Field Operations'!G14 -> 0.8354368884 | R42: =+'Field Operations'!H14 -> 1.506377813 | S42: =+'Field Operations'!I14 -> 1.03125 | T42: =SUM(P42:S42) -> 10.3948317 | U42: _________
B43: =SUM(B44-10) -> 125 | C43: =$H$23/B43 -> 4.285928617 | D43: =($H$23+$H$34)/B43 -> 6.686110448 | F43: =SUM(F44-0.25) -> 3.35 | G43: =+$H$23/F43 -> 159.9227096 | I43: =+($H$23+$H$34)/F43 -> 249.4817331 | L43: Haul | M43: ='Field Operations'!C16 -> Semi Tractor/Trailer | P43: ='Field Operations'!F16 -> 7.68 | Q43: ='Field Operations'!G16 -> 1.25 | R43: ='Field Operations'!H16 -> 0.79 | S43: ='Field Operations'!I16 -> 1.76 | T43: =SUM(P43:S43) -> 11.48 | U43: _________
B44: =SUM(B45-10) -> 135 | C44: 3.968452424 | D44: 6.190843008 | F44: =SUM(F45-0.25) -> 3.6 | G44: 148.8169659 | I44: 232.1566128 | L44: Other | P44: 0 | Q44: 0 | R44: 0 | S44: 0 | T44: =SUM(P44:S44) -> 0 | U44: _________
B45: =SUM(B46-10) -> 145 | C45: 3.694766049 | D45: 5.763888317 | F45: =SUM(F46-0.25) -> 3.85 | G45: 139.1535265 | I45: 217.0815081 | L45: Total | P45: =SUM(P31:P44) -> 138.0227289 | Q45: =SUM(Q31:Q44) -> 51.47247204 | R45: =SUM(R31:R44) -> 30.64965607 | S45: =SUM(S31:S44) -> 19.77352303 | T45: =SUM(T31:T44) -> 239.91838 | U45: _________
B46: =SUM(B47-10) -> 155 | C46: 3.456394046 | D46: 5.392024555 | F46: =SUM(F47-0.25) -> 4.1 | G46: 130.6685554 | I46: 203.8448307
B47: =SUM(B48-10) -> 165 | C47: 3.246915619 | D47: 5.065235188 | F47: =SUM(F48-0.25) -> 4.35 | G47: 123.1588683 | I47: 192.1296106
B48: =+F4 -> 175 | C48: 3.061377584 | D48: 4.775793177 | F48: =+G4 -> 4.6 | G48: 116.4654516 | I48: 181.6877839
B49: =SUM(B48+10) -> 185 | C49: 2.895897714 | D49: 4.517642195 | F49: =SUM(F48+0.25) -> 4.85 | G49: 110.4620778 | I49: 172.3224342
B50: =SUM(B49+10) -> 195 | C50: 2.747390139 | D50: 4.285968236 | F50: =SUM(F49+0.25) -> 5.1 | G50: 105.04727 | I50: 163.8752561
B51: =SUM(B50+10) -> 205 | C51: 2.613371108 | D51: 4.076896615 | F51: =SUM(F50+0.25) -> 5.35 | G51: 100.1385191 | I51: 156.2175338
B52: =SUM(B51+10) -> 215 | C52: 2.491818964 | D52: 3.887273516 | F52: =SUM(F51+0.25) -> 5.6 | G52: 95.6680495 | I52: 149.2435368
B53: =SUM(B52+10) -> 225 | C53: 2.381071454 | D53: 3.714505805 | F53: =SUM(F52+0.25) -> 5.85 | G53: 91.57967131 | I53: 142.8656079

Sheet Corn Irr
B1: 2025 Corn, No-Till, Irrigated Budget | L1: Table 1. Fertilizer & Lime3
E2: Unit | F2: Quantity | G2: Price | H2: Total | J2: Your Farm | L2: Fertilizer | M2: Description | N2: Quantity (lbs.) | O2: Price ($) | P2: Total ($/Acre) | Q2: Your Farm ($/Acre)
B3: Revenue1 | E3: Gross Revenue ($/Acre) | L3: Nitrogen | M3: Urea - Planting | N3: 80 | O3: =Inputs!C44 -> 0.52 | P3: =N3*O3 -> 41.6 | Q3: _________
C4: Corn | E4: Bu/acre | F4: 250 | G4: =+Inputs!C3 -> 4.6 | H4: =F4*G4 -> 1150 | J4: _________ | M4: UAN 32 - Side dress | N4: 160 | O4: =Inputs!C47 -> 0.54 | P4: =N4*O4 -> 86.4 | Q4: _________
C5: Government Payments | E5: $/acre | F5: 1 | G5: 0 | H5: =F5*G5 -> 0 | J5: _________ | L5: Phosphorous | M5: P2O5 | N5: 90 | O5: =Inputs!C48 -> 0.66 | P5: =+N5*O5 -> 59.4 | Q5: _________
C6: Other Revenue | E6: $/acre | F6: 1 | G6: 0 | H6: 0 | J6: _________ | L6: Potassium | M6: K20 | N6: 90 | O6: =Inputs!C50 -> 0.36 | P6: =+N6*O6 -> 32.4 | Q6: _________
B7: Total Revenue | H7: =SUM(H4:H6) -> 1150 | J7: _________ | L7: Zinc Sulfate | N7: 15 | O7: =Inputs!C54 -> 1.67 | P7: =+N7*O7 -> 25.05 | Q7: _________
B8: Variable Expenses | L8: Boron | N8: 1 | O8: =Inputs!C52 -> 0.7 | P8: =+N8*O8 -> 0.7 | Q8: _________
C9: Seed2 | E9: Thous. | F9: 36.5 | G9: =+Inputs!C36 -> 3.88 | H9: =+F9*G9 -> 141.62 | J9: _________ | L9: Lime | N9: 1000 | O9: =Inputs!C51 -> 30 | P9: =N9/2000*O9 -> 15 | Q9: _________
C10: Fertilizer & Lime (Table 1) | E10: Acre | F10: 1 | G10: =+P12 -> 260.55 | H10: =+F10*G10 -> 260.55 | J10: _________ | L10: Other | N10: 0 | O10: 0 | P10: =N10*O10 -> 0 | Q10: _________
C11: Chemical (Table 2) | E11: Acre | F11: 1 | G11: =S28 -> 72.27 | H11: =F11*G11 -> 72.27 | J11: _________ | L11: Other | N11: 0 | O11: 0 | P11: =N11*O11 -> 0 | Q11: _________
C12: Crop Scout or Consultant | E12: Acre | F12: 1 | G12: =+Inputs!C18 -> 10 | H12: =F12*G12 -> 10 | J12: _________ | L12: Total | P12: =SUM(P3:P11) -> 260.55 | Q12: _________
C13: Repair & Maintenance (Table 3) | E13: Acre | F13: 1 | G13: =+Q44 -> 46.47685377 | H13: =+F13*G13 -> 46.47685377 | J13: _________
C14: Fuel, Oil & Filter (Table 3) | E14: Acre | F14: 1 | G14: =+R44 -> 22.40175022 | H14: 22.40175022 | J14: _________ | L14: Table 2. Chemicals4
C15: Operator Labor (Table 3) | E15: Acre | F15: 1 | G15: =+S44 -> 14.67539387 | H15: 14.67539387 | J15: _________ | L15: Chemical | M15: Function | N15: Description | O15: Unit | P15: Number of Apps. | Q15: Quantity | R15: Price | S15: Total ($/Acre) | T15: Your Farm ($/Acre)
C16: Crop Insurance6 | E16: Acre | F16: 1 | G16: =+Inputs!C24 -> 16.66 | H16: 16.66 | J16: _________ | L16: Herbicides | M16: Burndown | N16: Roundup PowerMax | O16: oz. | P16: 1 | Q16: 32 | R16: =+Herbicides!B92 -> 0.4375 | S16: =P16*Q16*R16 -> 14 | T16: _________
C17: Machinery Rental | E17: Acre | F17: 1 | G17: 0 | H17: 0 | J17: _________ | M17: Pre-Emerge | N17: Atrazine | O17: qt. | P17: 1 | Q17: 1.5 | R17: =Herbicides!B9 -> 3.38 | S17: =P17*Q17*R17 -> 5.07 | T17: _________
C18: Custom Work | E18: Acre | F18: 1 | G18: 0 | H18: 0 | J18: _________ | N18: Other | P18: 0 | Q18: 0 | R18: 0 | S18: =P18*Q18*R18 -> 0 | T18: _________
C19: Drying (Fuel/Electric) | E19: Bu | F19: =+F4 -> 250 | G19: 0 | H19: 0 | J19: _________ | M19: Post-Emerge | N19: Halex GT | O19: pt. | P19: 1 | Q19: 3.6 | R19: =Herbicides!B63 -> 9.95 | S19: 35.82 | T19: _________
C20: Irrigation Energy Cost9 | E20: Ac-in | F20: 9 | G20: =+Inputs!C57 -> 6.75 | H20: =+F20*G20 -> 60.75 | J20: _________ | N20: Atrazine | O20: qt. | P20: 1 | Q20: 1 | R20: =Herbicides!B9 -> 3.38 | S20: 3.38 | T20: _________
C21: Irrigation System R&M & Labor9 | E21: Ac-in | F21: 9 | G21: =+Inputs!C58 -> 3 | H21: =+F21*G21 -> 27 | J21: _________ | N21: Other | P21: 0 | Q21: 0 | R21: 0 | S21: 0 | T21: _________
C22: Other Irrigation Costs | E22: Acre | F22: 1 | G22: 0 | H22: 0 | J22: _________ | M22: Harvest Aid | N22: Roundup PowerMax | P22: 1 | Q22: 32 | R22: =Herbicides!B92 -> 0.4375 | S22: 14 | T22: _________
C23: Other | E23: Acre | F23: 1 | G23: 0 | H23: =F23*G23 -> 0 | J23: _________ | N23: Other | P23: 0 | Q23: 0 | R23: 0 | S23: 0 | T23: _________
C24: Other | E24: Acre | F24: 1 | G24: 0 | H24: =F24*G24 -> 0 | J24: _________ | L24: Insecticides | N24: Other | P24: 0 | Q24: 0 | R24: 0 | S24: 0 | T24: _________
C25: Operating Interest7 | E25: % | F25: =SUM(H9:H24) -> 672.4039979 | G25: =+Inputs!C14 -> 0.08 | H25: =(F25*G25)/2 -> 26.89615991 | J25: _________ | N25: Other | P25: 0 | Q25: 0 | R25: 0 | S25: 0 | T25: _________
B26: Total Variable Expenses | H26: =SUM(H9:H25) -> 699.3001578 | J26: _________ | L26: Fungicides | N26: Other | P26: 0 | Q26: 0 | R26: 0 | S26: 0 | T26: _________
B27: Return Above Variable Expenses | H27: =H7-H26 -> 450.6998422 | J27: _________ | N27: Other | P27: 0 | Q27: 0 | R27: 0 | S27: =P27*Q27*R27 -> 0 | T27: _________
B28: Fixed Expenses | L28: Total | S28: =SUM(S16:S27) -> 72.27 | T28: _________
C29: Machinery
C30: Capital Recovery (Table 3) | E30: Acre | F30: 1 | G30: =+P44 -> 124.6834161 | H30: =+F30*G30 -> 124.6834161 | J30: _________ | L30: Table 3. Machinery5
C31: Other Fixed Machinery Costs | E31: Acre | F31: 1 | G31: =+Inputs!C30 -> 0 | H31: 0 | J31: _________ | M31: Power Unit | N31: Implement | O31: Size | P31: Capital Recovery | Q31: Repairs & Maintenance | R31: Fuel, Oil & Filter | S31: Labor | T31: Total | U31: Your Farm ($/Acre)
C32: Capital Recovery (Irrigation Equipment)9 | E32: Acre | F32: 1 | G32: =+Inputs!C59 -> 100 | H32: 100 | J32: _________ | L32: Burndown | M32: SP Boom Sprayer | O32: 90' | P32: =+'Field Operations'!F11 -> 9.480901321 | Q32: =+'Field Operations'!G11 -> 0.2942877349 | R32: =+'Field Operations'!H11 -> 0.3719451389 | S32: =+'Field Operations'!I11 -> 0.318287037 | T32: =SUM(P32:S32) -> 10.46542123 | U32: _________
C33: Other Fixed Irrigation Costs | E33: Acre | F33: 1 | G33: 0 | H33: 0 | J33: _________ | L33: Plant | M33: Tractor, 215 hp | N33: Planter | O33: 16-row | P33: =+'Field Operations'!F8 -> 15.97084823 | Q33: =+'Field Operations'!G8 -> 2.876988318 | R33: =+'Field Operations'!H8 -> 2.317504327 | S33: =+'Field Operations'!I8 -> 1.586538462 | T33: 22.75187934 | U33: _________
C34: General Overhead | E34: Acre | F34: 1 | G34: 25 | H34: 25 | J34: _________ | L34: Fertilize | M34: Tractor, 215 hp | N34: Fertilize Spreader | P34: ='Field Operations'!F10 -> 5.103029692 | Q34: ='Field Operations'!G10 -> 1.596529341 | R34: ='Field Operations'!H10 -> 2.459392347 | S34: ='Field Operations'!I10 -> 1.683673469 | T34: ='Field Operations'!J10 -> 10.84262485 | U34: _________
C35: Cash Rent8 | E35: Acre | F35: 1 | G35: =Inputs!C22 -> 197 | H35: 197 | J35: _________ | L35: Weed Control | M35: SP Boom Sprayer | O35: 90' | P35: ='Field Operations'!F11 -> 9.480901321 | Q35: ='Field Operations'!G11 -> 0.2942877349 | R35: ='Field Operations'!H11 -> 0.3719451389 | S35: ='Field Operations'!I11 -> 0.318287037 | T35: ='Field Operations'!J11 -> 10.46542123 | U35: _________
C36: Insurance (Non-Machinery) | E36: Acre | F36: 1 | G36: 0 | H36: 0 | J36: _________ | L36: Weed Control | M36: SP Boom Sprayer | O36: 90' | P36: =+'Field Operations'!F11 -> 9.480901321 | Q36: =+'Field Operations'!G11 -> 0.2942877349 | R36: =+'Field Operations'!H11 -> 0.3719451389 | S36: =+'Field Operations'!I11 -> 0.318287037 | T36: =SUM(P36:S36) -> 10.46542123 | U36: _________
C37: Management Labor10 | E37: Acre | F37: 1 | G37: =Inputs!C33 -> 25 | H37: =+F37*G37*2 -> 50 | J37: _________ | L37: Weed Control | M37: SP Boom Sprayer | O37: 90' | P37: =+'Field Operations'!F11 -> 9.480901321 | Q37: =+'Field Operations'!G11 -> 0.2942877349 | R37: =+'Field Operations'!H11 -> 0.3719451389 | S37: =+'Field Operations'!I11 -> 0.318287037 | T37: 10.46542123 | U37: _________
C38: Other | E38: Acre | F38: 1 | G38: 0 | H38: 0 | J38: _________ | L38: Fertilize | M38: Tractor, 215 hp | N38: Fertilize Spreader | P38: =+'Field Operations'!F10 -> 5.103029692 | Q38: =+'Field Operations'!G10 -> 1.596529341 | R38: =+'Field Operations'!H10 -> 2.459392347 | S38: =+'Field Operations'!I10 -> 1.683673469 | T38: 10.84262485 | U38: _________
B39: Total Fixed Expenses | H39: =+SUM(H30:H38) -> 496.6834161 | J39: _________ | L39: Fertilize | M39: Tractor, 215 hp | N39: Fertilize Spreader | P39: =+'Field Operations'!F10 -> 5.103029692 | Q39: =+'Field Operations'!G10 -> 1.596529341 | R39: =+'Field Operations'!H10 -> 2.459392347 | S39: =+'Field Operations'!I10 -> 1.683673469 | T39: 10.84262485 | U39: _________
B40: Total Expenses | H40: =H26+H39 -> 1195.983574 | J40: _________ | L40: Harvest | M40: Combine | N40: Corn Head | O40: 8-row | P40: =+'Field Operations'!F12 -> 37.72518729 | Q40: =+'Field Operations'!G12 -> 35.05079519 | R40: =+'Field Operations'!H12 -> 8.607873214 | S40: =+'Field Operations'!I12 -> 3.273809524 | T40: 84.65766521 | U40: _________
B41: Return Above Specified Expenses | H41: =H7-H40 -> -45.9835739 | J41: _________ | L41: Haul | M41: Tractor, 215 hp | N41: Grain Cart | O41: ='Field Operations'!E14 -> 800 bu | P41: =+'Field Operations'!F14 -> 7.021767002 | Q41: =+'Field Operations'!G14 -> 0.8354368884 | R41: =+'Field Operations'!H14 -> 1.506377813 | S41: =+'Field Operations'!I14 -> 1.03125 | T41: 10.3948317 | U41: _________
G42: Cash Cost per Bushel | H42: =(SUM(H9:H25)+G35+G34)/F4 -> 3.685200631 | J42: _________ | L42: Haul | M42: ='Field Operations'!C16 -> Semi Tractor/Trailer | P42: ='Field Operations'!F16*1.39751552795031 -> 10.73291925 | Q42: ='Field Operations'!G16*1.39751552795031 -> 1.74689441 | R42: ='Field Operations'!H16*1.39751552795031 -> 1.104037267 | S42: ='Field Operations'!I16*1.39751552795031 -> 2.459627329 | T42: =SUM(P42:S42) -> 16.04347826 | U42: _________
G43: Economic Cost per Bushel | H43: =H40/F4 -> 4.783934296 | J43: _________ | L43: Other | P43: 0 | Q43: 0 | R43: 0 | S43: 0 | T43: =SUM(P43:S43) -> 0 | U43: _________
L44: Total | P44: =SUM(P32:P43) -> 124.6834161 | Q44: =SUM(Q32:Q43) -> 46.47685377 | R44: =SUM(R32:R43) -> 22.40175022 | S44: =SUM(S32:S43) -> 14.67539387 | T44: =SUM(T32:T43) -> 208.237414 | U44: _________
B45: Breakeven Price for Selected Yield | F45: Breakeven Yield for Selected Price
B46: Yield | C46: Variable Cost | D46: Total Specified Cost | F46: Price | G46: Variable Cost | I46: Total Specified Cost
B47: (bu) | C47: ($/bu) | D47: ($/bu) | F47: ($/bu) | G47: (bu) | I47: (bu)
B48: =SUM(B49-10) -> 200 | C48: =$H$26/B48 -> 3.496500789 | D48: =($H$26+$H$39)/B48 -> 5.97991787 | F48: =SUM(F49-0.25) -> 3.35 | G48: =+$H$26/F48 -> 208.7463158 | I48: =+($H$26+$H$39)/F48 -> 357.0100221
B49: =SUM(B50-10) -> 210 | C49: 3.330000751 | D49: 5.695159876 | F49: =SUM(F50-0.25) -> 3.6 | G49: 194.2500438 | I49: 332.2176594
B50: =SUM(B51-10) -> 220 | C50: 3.178637081 | D50: 5.436288972 | F50: =SUM(F51-0.25) -> 3.85 | G50: 181.6364046 | I50: 310.6450841
B51: =SUM(B52-10) -> 230 | C51: 3.040435469 | D51: 5.199928582 | F51: =SUM(F52-0.25) -> 4.1 | G51: 170.5610141 | I51: 291.7033107
B52: =SUM(B53-10) -> 240 | C52: 2.913750657 | D52: 4.983264891 | F52: =SUM(F53-0.25) -> 4.35 | G52: 160.758657 | I52: 274.9387526
B53: =+F4 -> 250 | C53: 2.797200631 | D53: 4.783934296 | F53: =+G4 -> 4.6 | G53: 152.0217734 | I53: 259.9964291
B54: =SUM(B53+10) -> 260 | C54: 2.689615991 | D54: 4.599936823 | F54: =SUM(F53+0.25) -> 4.85 | G54: 144.1855995 | I54: 246.5945513
B55: =SUM(B54+10) -> 270 | C55: 2.590000584 | D55: 4.429568792 | F55: =SUM(F54+0.25) -> 5.1 | G55: 137.117678 | I55: 234.5065831
B56: =SUM(B55+10) -> 280 | C56: 2.497500563 | D56: 4.271369907 | F56: =SUM(F55+0.25) -> 5.35 | G56: 130.7103099 | I56: 223.5483316
B57: =SUM(B56+10) -> 290 | C57: 2.411379854 | D57: 4.124081289 | F57: =SUM(F56+0.25) -> 5.6 | G57: 124.8750282 | I57: 213.5684953
B58: =SUM(B57+10) -> 300 | C58: 2.331000526 | D58: 3.986611913 | F58: =SUM(F57+0.25) -> 5.85 | G58: 119.5384885 | I58: 204.4416366

Sheet Soybeans NT Non-Irr
B1: 2025 Soybean, No-Till, Non-Irrigated Budget | L1: Table 1. Fertilizer & Lime3
E2: Unit | F2: Quantity | G2: Price | H2: Total | J2: Your Farm | L2: Fertilizer | M2: Description | N2: Quantity (lbs.) | O2: Price ($) | P2: Total ($/Acre) | Q2: Your Farm ($/Acre)
B3: Revenue1 | E3: Gross Revenue ($/Acre) | L3: Nitrogen | N3: 0 | O3: =Inputs!C44 -> 0.52 | P3: =+N3*O3 -> 0 | Q3: _________
C4: Soybeans | E4: Bu/acre | F4: 50 | G4: =+Inputs!C4 -> 10.4 | H4: =F4*G4 -> 520 | J4: _________ | L4: Phosphorous | M4: P2O5 | N4: 30 | O4: =Inputs!C48 -> 0.66 | P4: =N4*O4 -> 19.8 | Q4: _________
C5: Government Payments | E5: $/acre | F5: 1 | G5: 0 | H5: =F5*G5 -> 0 | J5: _________ | L5: Potassium | M5: K20 | N5: 60 | O5: =Inputs!C50 -> 0.36 | P5: =N5*O5 -> 21.6 | Q5: _________
C6: Other Revenue | E6: $/acre | F6: 1 | G6: 0 | H6: 0 | J6: _________ | L6: Lime | N6: 1000 | O6: =+Inputs!C51 -> 30 | P6: =N6/2000*O6 -> 15 | Q6: _________
B7: Total Revenue | H7: =SUM(H4:H6) -> 520 | J7: _________ | L7: Boron | N7: 1 | O7: =Inputs!C52 -> 0.7 | P7: =N7*O7 -> 0.7 | Q7: _________
B8: Variable Expenses | L8: Other | N8: 0 | O8: 0 | P8: =N8*O8 -> 0 | Q8: _________
C9: Seed2 | E9: Thous. | F9: 140 | G9: =+Inputs!C37 -> 0.46 | H9: =+F9*G9 -> 64.4 | J9: _________ | L9: Other | N9: 0 | O9: 0 | P9: =+N9*O9 -> 0 | Q9: _________
C10: Fertilizer & Lime (Table 1) | E10: Acre | F10: 1 | G10: =+P10 -> 57.1 | H10: =+F10*G10 -> 57.1 | J10: _________ | L10: Total | P10: =SUM(P3:P9) -> 57.1 | Q10: _________
C11: Chemical (Table 2) | E11: Acre | F11: 1 | G11: =S26 -> 104.7125 | H11: =F11*G11 -> 104.7125 | J11: _________
C12: Crop Scout or Consultant | E12: Acre | F12: 1 | G12: =+Inputs!C18 -> 10 | H12: =F12*G12 -> 10 | J12: _________ | L12: Table 2. Chemicals4
C13: Repair & Maintenance (Table 3) | E13: Acre | F13: 1 | G13: =+Q43 -> 33.12589654 | H13: =+F13*G13 -> 33.12589654 | J13: _________ | L13: Chemical | M13: Function | N13: Description | O13: Unit | P13: Number of Apps. | Q13: Quantity | R13: Price | S13: Total ($/Acre) | T13: Your Farm ($/Acre)
C14: Fuel, Oil & Filter (Table 3) | E14: Acre | F14: 1 | G14: =+R43 -> 14.84890509 | H14: 14.84890509 | J14: _________ | L14: Herbicides | M14: Burndown | N14: Roundup PowerMax | O14: oz. | P14: 1 | Q14: 35 | R14: =+Herbicides!B92 -> 0.4375 | S14: =P14*Q14*R14 -> 15.3125 | T14: _________
C15: Operator Labor (Table 3) | E15: Acre | F15: 1 | G15: =+S43 -> 8.898254259 | H15: 8.898254259 | J15: _________ | M15: Pre-Emerge | N15: Sequence | O15: pt. | P15: 1 | Q15: 3 | R15: =Herbicides!B95 -> 8.5 | S15: =P15*Q15*R15 -> 25.5 | T15: _________
C16: Crop Insurance6 | E16: Acre | F16: 1 | G16: =+Inputs!C25 -> 10.02 | H16: =+F16*G16 -> 10.02 | J16: _________ | N16: Other | P16: 0 | Q16: 0 | R16: 0 | S16: =P16*Q16*R16 -> 0 | T16: _________
C17: Machinery Rental | E17: Acre | F17: 0 | G17: 0 | H17: =+F17*G17 -> 0 | J17: _________ | M17: Post-Emerge | N17: Roundup PowerMax | O17: oz. | P17: 1 | Q17: 32 | R17: =Herbicides!B43 -> 0.6640625 | S17: 21.25 | T17: _________
C18: Custom Work | E18: Acre | F18: 0 | G18: 0 | H18: =+F18*G18 -> 0 | J18: _________ | N18: Flexstar | O18: pt. | P18: 1 | Q18: 1 | R18: =Herbicides!B50 -> 7.65 | S18: 7.65 | T18: _________
C19: Drying (Fuel/Electric) | E19: Bu | F19: =+F4 -> 50 | G19: 0 | H19: =+F19*G19 -> 0 | J19: _________ | N19: Other | P19: 0 | Q19: 0 | R19: 0 | S19: 0 | T19: _________
C20: Other | E20: Acre | F20: 1 | G20: 0 | H20: =F20*G20 -> 0 | J20: _________ | N20: Other | P20: 0 | Q20: 0 | R20: 0 | S20: 0 | T20: _________
C21: Other | E21: Acre | F21: 1 | G21: 0 | H21: =F21*G21 -> 0 | J21: _________ | L21: Insecticides | N21: Foliar | O21: acre | P21: 1 | Q21: 1 | R21: =Insecticides!B2 -> 20 | S21: 20 | T21: _________
C22: Operating Interest7 | E22: % | F22: =SUM(H9:H21) -> 303.1055559 | G22: =+Inputs!C14 -> 0.08 | H22: =(F22*G22)/2 -> 12.12422224 | J22: _________ | L22: Fungicides | N22: Foliar | O22: acre | P22: 1 | Q22: 1 | R22: =Fungicides!B2 -> 15 | S22: 15 | T22: _________
B23: Total Variable Expenses | H23: =SUM(H9:H22) -> 315.2297781 | J23: _________ | N23: Other | P23: 0 | Q23: 0 | R23: 0 | S23: 0 | T23: _________
B24: Return Above Variable Expenses | H24: =H7-H23 -> 204.7702219 | J24: _________ | N24: Other | P24: 0 | Q24: 0 | R24: 0 | S24: 0 | T24: _________
B25: Fixed Expenses | N25: Other | P25: 0 | Q25: 0 | R25: 0 | S25: =P25*Q25*R25 -> 0 | T25: _________
C26: Machinery | J26: _________ | L26: Total | S26: =SUM(S14:S25) -> 104.7125 | T26: _________
C27: Capital Recovery (Table 3) | E27: Acre | F27: 1 | G27: =+P43 -> 109.4070933 | H27: =+F27*G27 -> 109.4070933 | J27: _________
C28: Other Fixed Machinery Costs | E28: Acre | F28: 1 | G28: 0 | H28: =F28*G28 -> 0 | J28: _________ | L28: Table 3. Machinery5
C29: General Overhead | E29: Acre | F29: 1 | G29: 20 | H29: =F29*G29 -> 20 | J29: _________ | M29: Power Unit | N29: Implement | O29: Size | P29: Capital Recovery | Q29: Repairs & Maintenance | R29: Fuel, Oil & Filter | S29: Labor | T29: Total | U29: Your Farm ($/Acre)
C30: Cash Rent8 | E30: Acre | F30: 1 | G30: =+Inputs!C23 -> 117 | H30: =F30*G30 -> 117 | J30: _________ | L30: Burndown | M30: SP Boom Sprayer | O30: 90' | P30: =+'Field Operations'!F11 -> 9.480901321 | Q30: =+'Field Operations'!G11 -> 0.2942877349 | R30: =+'Field Operations'!H11 -> 0.3719451389 | S30: =+'Field Operations'!I11 -> 0.318287037 | T30: =SUM(P30:S30) -> 10.46542123 | U30: _________
C31: Insurance (Non-Machinery) | E31: Acre | F31: 1 | G31: 0 | H31: =+F31*G31 -> 0 | J31: _________ | L31: Fertilize | M31: Tractor, 215 hp | N31: Fertilize Spreader | P31: =+'Field Operations'!F10 -> 5.103029692 | Q31: =+'Field Operations'!G10 -> 1.596529341 | R31: =+'Field Operations'!H10 -> 2.459392347 | S31: =+'Field Operations'!I10 -> 1.683673469 | T31: =SUM(P31:S31) -> 10.84262485 | U31: _________
C32: Management Labor10 | E32: Acre | F32: 1 | G32: =Inputs!C33 -> 25 | H32: =+F32*G32 -> 25 | J32: _________ | L32: Plant | M32: Tractor, 215 hp | N32: Planter | O32: 16-row | P32: =+'Field Operations'!F8 -> 15.97084823 | Q32: =+'Field Operations'!G8 -> 2.876988318 | R32: =+'Field Operations'!H8 -> 2.317504327 | S32: =+'Field Operations'!I8 -> 1.586538462 | T32: =SUM(P32:S32) -> 22.75187934 | U32: _________
C33: Other | E33: Acre | F33: 1 | G33: 0 | H33: =+F33*G33 -> 0 | J33: _________ | L33: Pre-Emerge | M33: SP Boom Sprayer | O33: 90' | P33: =+'Field Operations'!F11 -> 9.480901321 | Q33: =+'Field Operations'!G11 -> 0.2942877349 | R33: =+'Field Operations'!H11 -> 0.3719451389 | S33: =+'Field Operations'!I11 -> 0.318287037 | T33: 10.46542123 | U33: _________
B34: Total Fixed Expenses | H34: =+SUM(H26:H33) -> 271.4070933 | J34: _________ | L34: Post-Emerge | M34: SP Boom Sprayer | O34: 90' | P34: =+'Field Operations'!F11 -> 9.480901321 | Q34: =+'Field Operations'!G11 -> 0.2942877349 | R34: =+'Field Operations'!H11 -> 0.3719451389 | S34: =+'Field Operations'!I11 -> 0.318287037 | T34: 10.46542123 | U34: _________
E35: Total Expenses | H35: =SUM(H23+H34) -> 586.6368714 | J35: _________ | L35: Post-Emerge | M35: SP Boom Sprayer | O35: 90' | P35: =+'Field Operations'!F11 -> 9.480901321 | Q35: =+'Field Operations'!G11 -> 0.2942877349 | R35: =+'Field Operations'!H11 -> 0.3719451389 | S35: =+'Field Operations'!I11 -> 0.318287037 | T35: 10.46542123 | U35: _________
B36: Return Above Specified Expenses | H36: =H7-H35 -> -66.6368714 | J36: _________ | L36: Fungicide | M36: SP Boom Sprayer | O36: 90' | P36: =+'Field Operations'!F11 -> 9.480901321 | Q36: =+'Field Operations'!G11 -> 0.2942877349 | R36: =+'Field Operations'!H11 -> 0.3719451389 | S36: =+'Field Operations'!I11 -> 0.318287037 | T36: 10.46542123 | U36: _________
G37: Cash Cost per Bushel | H37: =(SUM(H9:H22)+H29+H30)/F4 -> 9.044595562 | J37: _________ | L37: Harvest | M37: Combine | N37: Grain Head | O37: 30' | P37: =+'Field Operations'!F13 -> 27.99694175 | Q37: =+'Field Operations'!G13 -> 26.02550332 | R37: =+'Field Operations'!H13 -> 6.455904911 | S37: =+'Field Operations'!I13 -> 2.455357143 | T37: =SUM(P37:S37) -> 62.93370712 | U37: _________
G38: Economic Cost per Bushel | H38: =H35/F4 -> 11.73273743 | J38: _________ | L38: Haul | M38: Tractor, 215 hp | N38: Grain Cart | O38: =+'Field Operations'!E14 -> 800 bu | P38: =+'Field Operations'!F14 -> 7.021767002 | Q38: =+'Field Operations'!G14 -> 0.8354368884 | R38: =+'Field Operations'!H14 -> 1.506377813 | S38: =+'Field Operations'!I14 -> 1.03125 | T38: 10.3948317 | U38: _________
L39: Haul | M39: Semi Tractor/Trailer | P39: ='Field Operations'!F15 -> 5.91 | Q39: ='Field Operations'!G15 -> 0.32 | R39: ='Field Operations'!H15 -> 0.25 | S39: ='Field Operations'!I15 -> 0.55 | T39: 7.03 | U39: _________
B40: Breakeven Price for Selected Yield | F40: Breakeven Yield for Selected Price | L40: Other | P40: 0 | Q40: 0 | R40: 0 | S40: 0 | T40: 0 | U40: _________
B41: Yield (bu) | C41: Variable Cost ($/bu) | D41: Total Specified Cost ($/bu) | F41: Price ($/bu) | G41: Variable Cost (bu) | I41: Total Specified Cost (bu) | L41: Other | P41: 0 | Q41: 0 | R41: 0 | S41: 0 | T41: 0 | U41: _________
B42: =SUM(B43-5) -> 30 | C42: =$H$23/B42 -> 10.50765927 | D42: =($H$23+$H$34)/B42 -> 19.55456238 | F42: =SUM(F43-0.5) -> 8.4 | G42: =+$H$23/F42 -> 37.52735454 | I42: =+($H$23+$H$34)/F42 -> 69.83772279 | L42: Other | P42: 0 | Q42: 0 | R42: 0 | S42: 0 | T42: 0 | U42: _________
B43: 35 | C43: 9.006565089 | D43: 16.76105347 | F43: 8.9 | G43: =+$H$23/F43 -> 35.41907619 | I43: 65.91425521 | L43: Total | P43: =SUM(P30:P42) -> 109.4070933 | Q43: =SUM(Q30:Q42) -> 33.12589654 | R43: =SUM(R30:R42) -> 14.84890509 | S43: =SUM(S30:S42) -> 8.898254259 | T43: =SUM(T30:T42) -> 166.2801492 | U43: _________
B44: 40 | C44: 7.880744453 | D44: 14.66592179 | F44: 9.4 | G44: 33.53508278 | I44: 62.40817781
B45: =SUM(B46-5) -> 45 | C45: 7.005106181 | D45: 13.03637492 | F45: =SUM(F46-0.5) -> 9.9 | G45: 31.84139173 | I45: 59.25624964
B46: =+F4 -> 50 | C46: 6.304595562 | D46: 11.73273743 | F46: =+G4 -> 10.4 | G46: 30.31055559 | I46: 56.40739148
B47: =SUM(B46+5) -> 55 | C47: 5.731450511 | D47: 10.66612493 | F47: =SUM(F46+0.5) -> 10.9 | G47: 28.92016313 | I47: 53.81989646
B48: =SUM(B47+5) -> 60 | C48: 5.253829635 | D48: 9.77728119 | F48: =SUM(F47+0.5) -> 11.4 | G48: 27.65173492 | I48: 51.45937468
B49: 65 | C49: 4.849688894 | D49: 9.025182637 | F49: 11.9 | G49: 26.48989732 | I49: 49.29721608
B50: 70 | C50: 4.503282545 | D50: 8.380526734 | F50: 12.4 | G50: 25.4217563 | I50: 47.30942511

Sheet Soybeans Irr
B1: 2025 Soybean, No-Till, Irrigated Budget | L1: Table 1. Fertilizer & Lime3
E2: Unit | F2: Quantity | G2: Price | H2: Total | J2: Your Farm | L2: Fertilizer | M2: Description | N2: Quantity (lbs.) | O2: Price ($) | P2: Total ($/Acre) | Q2: Your Farm ($/Acre)
B3: Revenue1 | E3: Gross Revenue ($/Acre) | L3: Nitrogen | M3: Urea | N3: 0 | O3: =+Inputs!C44 -> 0.52 | P3: =+N3*O3 -> 0 | Q3: _________
C4: Soybeans | E4: Bu/acre | F4: 65 | G4: =+Inputs!C4 -> 10.4 | H4: =F4*G4 -> 676 | J4: _________ | L4: Phosphorous | M4: P2O5 | N4: 40 | O4: =Inputs!C48 -> 0.66 | P4: =+N4*O4 -> 26.4 | Q4: _________
C5: Government Payments | E5: $/acre | F5: 1 | G5: 0 | H5: =F5*G5 -> 0 | J5: _________ | L5: Potassium | M5: K20 | N5: 80 | O5: =+Inputs!C50 -> 0.36 | P5: =+N5*O5 -> 28.8 | Q5: _________
C6: Other Revenue | E6: $/acre | F6: 1 | G6: 0 | H6: 0 | J6: _________ | L6: Lime | M6: Limestone | N6: 1000 | O6: =+Inputs!C51 -> 30 | P6: =+N6/2000*O6 -> 15 | Q6: _________
B7: Total Revenue | H7: =SUM(H4:H6) -> 676 | J7: _________ | L7: Boron | N7: 1 | O7: =Inputs!C52 -> 0.7 | P7: 0.7 | Q7: _________
B8: Variable Expenses | L8: Other | N8: 0 | O8: 0 | P8: 0 | Q8: _________
C9: Seed2 | E9: Thous. | F9: 150 | G9: =+Inputs!C37 -> 0.46 | H9: =+F9*G9 -> 69 | J9: _________ | L9: Other | N9: 0 | O9: 0 | P9: 0 | Q9: _________
C10: Fertilizer & Lime (Table 1) | E10: Acre | F10: 1 | G10: =+P10 -> 70.9 | H10: =+F10*G10 -> 70.9 | J10: _________ | L10: Total | P10: =SUM(P3:P9) -> 70.9 | Q10: _________
C11: Chemical (Table 2) | E11: Acre | F11: 1 | G11: =S28 -> 104.7125 | H11: =F11*G11 -> 104.7125 | J11: _________
C12: Crop Scout or Consultant | E12: Acre | F12: 1 | G12: =+Inputs!C18 -> 10 | H12: =F12*G12 -> 10 | J12: _________ | L12: Table 2. Chemicals4
C13: Repair & Maintenance (Table 3) | E13: Acre | F13: 1 | G13: =+Q45 -> 33.25807045 | H13: =+F13*G13 -> 33.25807045 | J13: _________ | L13: Chemical | M13: Function | N13: Description | O13: Unit | P13: Number of Apps. | Q13: Quantity | R13: Price | S13: Total ($/Acre) | T13: Your Farm ($/Acre)
C14: Fuel, Oil & Filter (Table 3) | E14: Acre | F14: 1 | G14: =+R45 -> 14.95216596 | H14: 14.95216596 | J14: _________ | L14: Herbicides | M14: Burndown | N14: Roundup PowerMax | O14: oz. | P14: 1 | Q14: 35 | R14: =Herbicides!B92 -> 0.4375 | S14: =P14*Q14*R14 -> 15.3125 | T14: _________
C15: Operator Labor (Table 3) | E15: Acre | F15: 1 | G15: =+S45 -> 9.125428172 | H15: 9.125428172 | J15: _________ | M15: Pre-Emerge | N15: Sequence | O15: pt. | P15: 1 | Q15: 3 | R15: =Herbicides!B95 -> 8.5 | S15: =P15*Q15*R15 -> 25.5 | T15: _________
C16: Crop Insurance6 | E16: Acre | F16: 1 | G16: =+Inputs!C25 -> 10.02 | H16: =+F16*G16 -> 10.02 | J16: _________ | N16: Other | O16: qt. | P16: 0 | Q16: 0 | R16: 0 | S16: =P16*Q16*R16 -> 0 | T16: _________
C17: Machinery Rental | E17: Acre | F17: 0 | G17: 0 | H17: 0 | J17: _________ | M17: Post-Emerge | N17: Roundup PowerMax | O17: oz. | P17: 1 | Q17: 32 | R17: =Herbicides!B43 -> 0.6640625 | S17: =P17*Q17*R17 -> 21.25 | T17: _________
C18: Custom Work | E18: Acre | F18: 0 | G18: 0 | H18: 0 | J18: _________ | N18: Flexstar | O18: pt. | P18: 1 | Q18: 1 | R18: =Herbicides!B50 -> 7.65 | S18: =P18*Q18*R18 -> 7.65 | T18: _________
C19: Drying (Fuel/Electric) | E19: Bu | F19: =+F4 -> 65 | G19: 0 | H19: 0 | J19: _________ | N19: Other | P19: 0 | Q19: 0 | R19: 0 | S19: =P19*Q19*R19 -> 0 | T19: _________
C20: Irrigation Energy Cost9 | E20: Ac-In | F20: 4.5 | G20: =+Inputs!C57 -> 6.75 | H20: 30.375 | J20: _________ | N20: Other | P20: 0 | Q20: 0 | R20: 0 | S20: =P20*Q20*R20 -> 0 | T20: _________
C21: Irrigation System R&M & Labor9 | E21: Ac-In | F21: =F20 -> 4.5 | G21: =+Inputs!C58 -> 3 | H21: 13.5 | J21: _________ | L21: Insecticides | N21: Foliar | O21: acre | P21: 1 | Q21: 1 | R21: =Insecticides!B2 -> 20 | S21: =P21*Q21*R21 -> 20 | T21: _________
C22: Other Irrigation Costs | E22: Acre | F22: 1 | G22: 0 | H22: 0 | J22: _________ | L22: Fungicides | N22: Foliar | O22: acre | P22: 1 | Q22: 1 | R22: =Fungicides!B2 -> 15 | S22: =+P22*Q22*R22 -> 15 | T22: _________
C23: Other | E23: Acre | F23: 1 | G23: 0 | H23: =F23*G23 -> 0 | J23: _________ | N23: Other | P23: 0 | Q23: 0 | R23: 0 | S23: =P23*Q23*R23 -> 0 | T23: _________
C24: Other | E24: Acre | F24: 1 | G24: 0 | H24: =F24*G24 -> 0 | J24: _________ | N24: Other | P24: 0 | Q24: 0 | R24: 0 | S24: 0 | T24: _________
C25: Operating Interest7 | E25: % | F25: =SUM(H9:H24) -> 365.8431646 | G25: =+Inputs!C14 -> 0.08 | H25: =(F25*G25)/2 -> 14.63372658 | J25: _________ | N25: Other | P25: 0 | Q25: 0 | R25: 0 | S25: =P25*Q25*R25 -> 0 | T25: _________
C26: Total Variable Expenses | H26: =SUM(H9:H25) -> 380.4768912 | J26: _________ | N26: Other | P26: 0 | Q26: 0 | R26: 0 | S26: =P26*Q26*R26 -> 0 | T26: _________
B27: Return Above Variable Expenses | H27: =H7-H26 -> 295.5231088 | J27: _________ | N27: Other | P27: 0 | Q27: 0 | R27: 0 | S27: 0 | T27: _________
B28: Fixed Expenses | L28: Total | S28: =SUM(S14:S27) -> 104.7125 | T28: _________
C29: Machinery
C30: Capital Recovery (Table 3) | E30: Acre | F30: 1 | G30: =+P45 -> 111.8481802 | H30: =+F30*G30 -> 111.8481802 | J30: _________ | L30: Table 3. Machinery5
C31: Other Fixed Machinery Costs | E31: Acre | F31: 1 | G31: 0 | H31: 0 | J31: _________ | M31: Power Unit | N31: Implement | O31: Size | P31: Capital Recovery | Q31: Repairs & Maintenance | R31: Fuel, Oil & Filter | S31: Labor | T31: Total | U31: Your Farm ($/Acre)
C32: Capital Recovery (Irrigation Equipment)9 | E32: Acre | F32: 1 | G32: =+Inputs!C59 -> 100 | H32: =+F32*G32 -> 100 | J32: _________ | L32: Burndown | M32: SP Boom Sprayer | O32: 90' | P32: =+'Field Operations'!F11 -> 9.480901321 | Q32: =+'Field Operations'!G11 -> 0.2942877349 | R32: =+'Field Operations'!H11 -> 0.3719451389 | S32: =+'Field Operations'!I11 -> 0.318287037 | T32: =SUM(P32:S32) -> 10.46542123 | U32: _________
C33: Other Irrigation Costs | E33: Acre | F33: 1 | G33: 0 | H33: 0 | J33: _________ | L33: Fertilize | M33: Tractor, 215 hp | N33: Fertilize Spreader | P33: =+'Field Operations'!F10 -> 5.103029692 | Q33: =+'Field Operations'!G10 -> 1.596529341 | R33: =+'Field Operations'!H10 -> 2.459392347 | S33: =+'Field Operations'!I10 -> 1.683673469 | T33: =SUM(P33:S33) -> 10.84262485 | U33: _________
C34: General Overhead | E34: Acre | F34: 1 | G34: 20 | H34: 20 | J34: _________ | L34: Plant | M34: Tractor, 215 hp | N34: Planter | O34: 16-row | P34: =+'Field Operations'!F8 -> 15.97084823 | Q34: =+'Field Operations'!G8 -> 2.876988318 | R34: =+'Field Operations'!H8 -> 2.317504327 | S34: =+'Field Operations'!I8 -> 1.586538462 | T34: =SUM(P34:S34) -> 22.75187934 | U34: _________
C35: Cash Rent8 | E35: Acre | F35: 1 | G35: =Inputs!C22 -> 197 | H35: 197 | J35: _________ | L35: Pre-Emerge | M35: SP Boom Sprayer | O35: 90' | P35: =+'Field Operations'!F11 -> 9.480901321 | Q35: =+'Field Operations'!G11 -> 0.2942877349 | R35: =+'Field Operations'!H11 -> 0.3719451389 | S35: =+'Field Operations'!I11 -> 0.318287037 | T35: 10.46542123 | U35: _________
C36: Insurance (Non-Machinery) | E36: Acre | F36: 1 | G36: =+Inputs!C32 -> 0 | H36: 0 | J36: _________ | L36: Post-Emerge | M36: SP Boom Sprayer | O36: 90' | P36: =+'Field Operations'!F11 -> 9.480901321 | Q36: =+'Field Operations'!G11 -> 0.2942877349 | R36: =+'Field Operations'!H11 -> 0.3719451389 | S36: =+'Field Operations'!I11 -> 0.318287037 | T36: =SUM(P36:S36) -> 10.46542123 | U36: _________
C37: Management Labor10 | E37: Acre | F37: 1 | G37: =Inputs!C33 -> 25 | H37: =+F37*G37*2 -> 50 | J37: _________ | L37: Post-Emerge | M37: SP Boom Sprayer | O37: 90' | P37: =+'Field Operations'!F11 -> 9.480901321 | Q37: =+'Field Operations'!G11 -> 0.2942877349 | R37: =+'Field Operations'!H11 -> 0.3719451389 | S37: =+'Field Operations'!I11 -> 0.318287037 | T37: 10.46542123 | U37: _________
C38: Other | E38: Acre | F38: 1 | G38: 0 | H38: 0 | J38: _________ | L38: Fungicide | M38: SP Boom Sprayer | O38: 90' | P38: =+'Field Operations'!F11 -> 9.480901321 | Q38: =+'Field Operations'!G11 -> 0.2942877349 | R38: =+'Field Operations'!H11 -> 0.3719451389 | S38: =+'Field Operations'!I11 -> 0.318287037 | T38: 10.46542123 | U38: _________
B39: Total Fixed Expenses | H39: =+SUM(H29:H38) -> 478.8481802 | J39: _________ | L39: Harvest | M39: Combine | N39: Grain Head | O39: 30' | P39: =+'Field Operations'!F13 -> 27.99694175 | Q39: =+'Field Operations'!G13 -> 26.02550332 | R39: =+'Field Operations'!H13 -> 6.455904911 | S39: =+'Field Operations'!I13 -> 2.455357143 | T39: 62.93370712 | U39: _________
G40: Total Expenses | H40: =SUM(H26+H39) -> 859.3250714 | J40: _________
B41: Return Above Specified Expenses | H41: =H7-H40 -> -183.3250714 | J41: _________ | L41: Haul | M41: Tractor, 215 hp | N41: Grain Cart | O41: =+'Field Operations'!E14 -> 800 bu | P41: =+'Field Operations'!F14 -> 7.021767002 | Q41: =+'Field Operations'!G14 -> 0.8354368884 | R41: =+'Field Operations'!H14 -> 1.506377813 | S41: =+'Field Operations'!I14 -> 1.03125 | T41: 10.3948317 | U41: _________
G42: Cash Cost per Bushel | H42: =(SUM(H9:H25)+H34+H35)/F4 -> 9.191952172 | J42: _________ | L42: Haul | M42: ='Field Operations'!C15 -> Semi Tractor/Trailer | P42: =+'Field Operations'!F15*1.41304347826087 -> 8.351086957 | Q42: =+'Field Operations'!G15*1.41304347826087 -> 0.452173913 | R42: =+'Field Operations'!H15*1.41304347826087 -> 0.3532608696 | S42: =+'Field Operations'!I15*1.41304347826087 -> 0.777173913 | T42: =SUM(P42:S42) -> 9.933695652 | U42: _________
G43: Economic Cost per Bushel | H43: =H40/F4 -> 13.22038571 | J43: _________ | L43: Other | P43: 0 | Q43: 0 | R43: 0 | S43: 0 | T43: =SUM(P43:S43) -> 0 | U43: _________
L44: Other | P44: 0 | Q44: 0 | R44: 0 | S44: 0 | T44: =SUM(P44:S44) -> 0 | U44: _________
B45: Breakeven Price for Selected Yield | F45: Breakeven Yield for Selected Price | L45: Total | P45: =SUM(P32:P44) -> 111.8481802 | Q45: =SUM(Q32:Q44) -> 33.25807045 | R45: =SUM(R32:R44) -> 14.95216596 | S45: =SUM(S32:S44) -> 9.125428172 | T45: =SUM(T32:T44) -> 169.1838448 | U45: _________
B46: Yield (bu) | C46: Variable Cost ($/bu) | D46: Total Specified Cost ($/bu) | F46: Price ($/bu) | G46: Variable Cost (bu) | I46: Total Specified Cost (bu)
B47: =SUM(B48-5) -> 45 | C47: =$H$26/B47 -> 8.455042026 | D47: =($H$26+$H$39)/B47 -> 19.0961127 | F47: =SUM(F48-0.5) -> 8.4 | G47: =+$H$26/F47 -> 45.294868 | I47: =+($H$26+$H$39)/F47 -> 102.3006037
B48: 50 | C48: 7.609537823 | D48: 17.18650143 | F48: 8.9 | G48: 42.75021249 | I48: 96.55337881
B49: 55 | C49: 6.917761658 | D49: 15.62409221 | F49: 9.4 | G49: 40.47626502 | I49: 91.41756079
B50: =SUM(B51-5) -> 60 | C50: 6.341281519 | D50: 14.32208452 | F50: =SUM(F51-0.5) -> 9.9 | G50: 38.43200921 | I50: 86.80051226
B51: =+F4 -> 65 | C51: 5.853490633 | D51: 13.22038571 | F51: =+G4 -> 10.4 | G51: 36.58431646 | I51: 82.62741071
B52: =SUM(B51+5) -> 70 | C52: 5.43538416 | D52: 12.27607245 | F52: =SUM(F51+0.5) -> 10.9 | G52: 34.9061368 | I52: 78.83716251
B53: =SUM(B52+5) -> 75 | C53: 5.073025216 | D53: 11.45766762 | F53: =SUM(F52+0.5) -> 11.4 | G53: 33.37516589 | I53: 75.37939223
B54: 80 | C54: 4.75596114 | D54: 10.74156339 | F54: 11.9 | G54: 31.972848 | I54: 72.21219087
B55: 85 | C55: 4.47619872 | D55: 10.10970672 | F55: 12.4 | G55: 30.68362026 | I55: 69.30040898

Sheet SRW Wheat
B1: 2025 Winter Wheat, Non-Irrigated Budget | L1: Table 1. Fertilizer & Lime3
E2: Unit | F2: Quantity | G2: Price | H2: Total | J2: Your Farm | L2: Fertilizer | M2: Description | N2: Quantity (lbs.) | O2: Price ($) | P2: Total ($/Acre) | Q2: Your Farm ($/Acre)
B3: Revenue1 | E3: Gross Revenue ($/Acre) | L3: Nitrogen | M3: Urea - Planting/Fall | N3: 15 | O3: =Inputs!C44 -> 0.52 | P3: =N3*O3 -> 7.8 | Q3: _________
C4: Wheat | E4: Bu/acre | F4: 80 | G4: =+Inputs!C5 -> 5.85 | H4: =F4*G4 -> 468 | J4: _________ | M4: UAN 32 - Post-Emerge/Spring | N4: 90 | O4: =Inputs!C47 -> 0.54 | P4: =N4*O4 -> 48.6 | Q4: _________
C5: Government Payments | E5: $/acre | F5: 1 | G5: 0 | H5: =F5*G5 -> 0 | J5: _________ | L5: Phosphorous | M5: P2O5 | N5: 40 | O5: =Inputs!C48 -> 0.66 | P5: =+N5*O5 -> 26.4 | Q5: _________
C6: Other Revenue | E6: $/acre | F6: 1 | G6: 0 | H6: 0 | J6: _________ | L6: Potassium | M6: K20 | N6: 40 | O6: =Inputs!C50 -> 0.36 | P6: =+N6*O6 -> 14.4 | Q6: _________
B7: Total Revenue | H7: =SUM(H4:H6) -> 468 | J7: _________ | L7: Lime | N7: 1000 | O7: =Inputs!C51 -> 30 | P7: =N7/2000*O7 -> 15 | Q7: _________
B8: Variable Expenses | L8: Other | N8: 0 | O8: 0 | P8: =+N8/2000*O8 -> 0 | Q8: _________
C9: Seed2 | E9: Bu | F9: 2.5 | G9: =+Inputs!C38 -> 17 | H9: =+F9*G9 -> 42.5 | J9: _________ | L9: Other | N9: 0 | O9: 0 | P9: =N9*O9 -> 0 | Q9: _________
C10: Fertilizer & Lime (Table 1) | E10: Acre | F10: 1 | G10: =+P11 -> 112.2 | H10: =+F10*G10 -> 112.2 | J10: _________ | L10: Other | N10: 0 | O10: 0 | P10: =+N10*O10 -> 0 | Q10: _________
C11: Chemical (Table 2) | E11: Acre | F11: 1 | G11: =S23 -> 55.53975 | H11: =F11*G11 -> 55.53975 | J11: _________ | L11: Total | P11: =SUM(P3:P10) -> 112.2 | Q11: _________
C12: Crop Scout or Consultant | E12: Acre | F12: 1 | G12: =+Inputs!C18 -> 10 | H12: =F12*G12 -> 10 | J12: _________ | L12: Table 2. Chemicals4
C13: Repair & Maintenance (Table 3) | E13: Acre | F13: 1 | G13: =+Q38 -> 36.95583023 | H13: =+F13*G13 -> 36.95583023 | J13: _________ | L13: Chemical | M13: Function | N13: Description | O13: Unit | P13: Number of Apps. | Q13: Quantity | R13: Price | S13: Total ($/Acre) | T13: Your Farm ($/Acre)
C14: Fuel, Oil & Filter (Table 3) | E14: Acre | F14: 1 | G14: =+R38 -> 19.02278458 | H14: 19.02278458 | J14: _________ | L14: Herbicides- | M14: Burndown | N14: Gramoxone SL | O14: oz. | P14: 1 | Q14: 40 | R14: =Herbicides!B61 -> 0.3125 | S14: =P14*Q14*R14 -> 12.5 | T14: _________
C15: Operator Labor (Table 3) | E15: Acre | F15: 1 | G15: =+S38 -> 11.8435308 | H15: 11.8435308 | J15: _________ | L15: Wheat | N15: Other | O15: qt. | P15: 0 | Q15: 0 | R15: 0 | S15: =P15*Q15*R15 -> 0 | T15: _________
C16: Crop Insurance6 | E16: Acre | F16: 1 | G16: =Inputs!C26 -> 9.9 | H16: =+F16*G16 -> 9.9 | J16: _________ | M16: Post-Emerge | N16: Harmony | O16: oz. | P16: 1 | Q16: 0.7 | R16: =Herbicides!B64 -> 14.03 | S16: =P16*Q16*R16 -> 9.821 | T16: _________
C17: Machinery Rental | E17: Acre | F17: 0 | G17: 0 | H17: =+F17*G17 -> 0 | J17: _________ | N17: Metribuzin | O17: oz. | P17: 1 | Q17: 3 | R17: =Herbicides!B72 -> 1.40625 | S17: 4.21875 | T17: _________
C18: Custom Work | E18: Acre | F18: 0 | G18: 0 | H18: =+F18*G18 -> 0 | J18: _________ | N18: Roundup PowerMax | O18: oz. | P18: 1 | Q18: 32 | R18: =Herbicides!B92 -> 0.4375 | S18: 14 | T18: _________
C19: Drying (Fuel/Electric) | E19: Bu | F19: =+F4 -> 80 | G19: 0 | H19: =+F19*G19 -> 0 | J19: _________ | N19: Other | P19: 0 | Q19: 0 | R19: 0 | S19: 0 | T19: _________
C20: Other | E20: Acre | F20: 1 | G20: 0 | H20: =F20*G20 -> 0 | J20: _________ | L20: Insecticides | N20: Wheat-Foliar | O20: acre | P20: 1 | Q20: 1 | R20: =+Insecticides!B5 -> 5 | S20: 5 | T20: _________
C21: Other | E21: Acre | F21: 1 | G21: 0 | H21: =F21*G21 -> 0 | J21: _________ | L21: Fungicide | N21: Wheat-foliar | O21: acre | P21: 1 | Q21: 1 | R21: =+Fungicides!$B$3 -> 10 | S21: 10 | T21: _________
C22: Other | E22: Acre | F22: 1 | G22: 0 | H22: =F22*G22 -> 0 | J22: _________ | L22: Other | N22: Other | P22: 0 | Q22: 0 | R22: 0 | S22: =P22*Q22*R22 -> 0 | T22: _________
C23: Operating Interest7 | E23: % | F23: =SUM(H9:H22) -> 297.9618956 | G23: =+Inputs!C14 -> 0.08 | H23: =(F23*G23)/2 -> 11.91847582 | J23: _________ | L23: Total | S23: =SUM(S14:S22) -> 55.53975 | T23: _________
B24: Total Variable Expenses | H24: =SUM(H9:H23) -> 309.8803714 | J24: _________ | L24: Table 3. Machinery5
B25: Return Above Variable Expenses | H25: =H7-H24 -> 158.1196286 | J25: _________ | M25: Power Unit | N25: Implement | O25: Size | P25: Capital Recovery | Q25: Repairs & Maintenance | R25: Fuel, Oil & Filter | S25: Labor | T25: Total | U25: Your Farm ($/Acre)
B26: Fixed Expenses | L26: Burndown | M26: SP Boom Sprayer | O26: 90' | P26: =+'Field Operations'!$F$11 -> 9.480901321 | Q26: =+'Field Operations'!$G$11 -> 0.2942877349 | R26: =+'Field Operations'!$H$11 -> 0.3719451389 | S26: =+'Field Operations'!$I$11 -> 0.318287037 | T26: =SUM(P26:S26) -> 10.46542123 | U26: _________
C27: Machinery | J27: _________ | L27: Fertilize | M27: Tractor, 215 hp | N27: Fertilize Spreader | P27: ='Field Operations'!F10 -> 5.103029692 | Q27: ='Field Operations'!G10 -> 1.596529341 | R27: ='Field Operations'!H10 -> 2.459392347 | S27: ='Field Operations'!I10 -> 1.683673469 | T27: =SUM(P27:S27) -> 10.84262485 | U27: _________
C28: Capital Recovery (Table 3) | E28: Acre | F28: 1 | G28: =+P38 -> 101.8040134 | H28: =+F28*G28 -> 101.8040134 | J28: _________ | L28: Plant | M28: Tractor, 215 hp | N28: Grain Drill | O28: 20' | P28: =+'Field Operations'!$F$9 -> 12.48563996 | Q28: =+'Field Operations'!$G$9 -> 5.294680402 | R28: =+'Field Operations'!$H$9 -> 4.303936607 | S28: =+'Field Operations'!$I$9 -> 2.946428571 | T28: =SUM(P28:S28) -> 25.03068554 | U28: _________
C29: Other Fixed Machinery Costs | E29: Acre | F29: 1 | G29: 0 | H29: 0 | J29: _________ | L29: Fertilize | M29: Tractor, 215 hp | N29: Fertilize Spreader | P29: ='Field Operations'!F10 -> 5.103029692 | Q29: ='Field Operations'!G10 -> 1.596529341 | R29: ='Field Operations'!H10 -> 2.459392347 | S29: ='Field Operations'!I10 -> 1.683673469 | T29: ='Field Operations'!J10 -> 10.84262485 | U29: _________
C30: General Overhead | E30: Acre | F30: 1 | G30: 20 | H30: =F30*G30 -> 20 | J30: _________ | L30: Weed Control | M30: SP Boom Sprayer | O30: 90' | P30: =+'Field Operations'!$F$11 -> 9.480901321 | Q30: =+'Field Operations'!$G$11 -> 0.2942877349 | R30: =+'Field Operations'!$H$11 -> 0.3719451389 | S30: =+'Field Operations'!$I$11 -> 0.318287037 | T30: =SUM(P30:S30) -> 10.46542123 | U30: _________
C31: Cash Rent8 | E31: Acre | F31: 1 | G31: =+Inputs!C23 -> 117 | H31: =F31*G31 -> 117 | J31: _________ | L31: Fungicide | M31: SP Boom Sprayer | O31: 90' | P31: =+'Field Operations'!$F$11 -> 9.480901321 | Q31: =+'Field Operations'!$G$11 -> 0.2942877349 | R31: =+'Field Operations'!$H$11 -> 0.3719451389 | S31: =+'Field Operations'!$I$11 -> 0.318287037 | T31: 10.46542123 | U31: _________
C32: Insurance (Non-Machinery) | E32: Acre | F32: 1 | G32: =+Inputs!C32 -> 0 | H32: =+F32*G32 -> 0 | J32: _________ | L32: Insect Control | M32: SP Boom Sprayer | O32: 90' | P32: =+'Field Operations'!$F$11 -> 9.480901321 | Q32: =+'Field Operations'!$G$11 -> 0.2942877349 | R32: =+'Field Operations'!$H$11 -> 0.3719451389 | S32: =+'Field Operations'!$I$11 -> 0.318287037 | T32: 10.46542123 | U32: _________
C33: Management Labor10 | E33: Acre | F33: 1 | G33: =Inputs!C33 -> 25 | H33: =+F33*G33 -> 25 | J33: _________ | L33: Harvest | M33: Combine | N33: Grain Head | O33: 30' | P33: =+'Field Operations'!$F$13 -> 27.99694175 | Q33: =+'Field Operations'!$G$13 -> 26.02550332 | R33: =+'Field Operations'!$H$13 -> 6.455904911 | S33: =+'Field Operations'!$I$13 -> 2.455357143 | T33: 62.93370712 | U33: _________
C34: Other | E34: Acre | F34: 1 | G34: 0 | H34: =+F34*G34 -> 0 | J34: _________ | L34: Haul | M34: Tractor, 215 hp | N34: Grain Cart | P34: =+'Field Operations'!$F$14 -> 7.021767002 | Q34: =+'Field Operations'!$G$14 -> 0.8354368884 | R34: =+'Field Operations'!$H$14 -> 1.506377813 | S34: =+'Field Operations'!$I$14 -> 1.03125 | T34: 10.3948317 | U34: _________
B35: Total Fixed Expenses | H35: =+SUM(H28:H34) -> 263.8040134 | J35: _________ | L35: Haul | M35: ='Field Operations'!C17 -> Semi Tractor/Trailer | P35: ='Field Operations'!F17 -> 6.17 | Q35: ='Field Operations'!G17 -> 0.43 | R35: ='Field Operations'!H17 -> 0.35 | S35: ='Field Operations'!I17 -> 0.77 | T35: 7.72 | U35: _________
B36: Total Expenses | H36: =+SUM(H24+H35) -> 573.6843848 | J36: _________ | L36: Other | P36: 0 | Q36: 0 | R36: 0 | S36: 0 | T36: 0 | U36: _________
B37: Return Above Specified Expenses | H37: =H7-H36 -> -105.6843848 | J37: _________ | L37: Other | P37: 0 | Q37: 0 | R37: 0 | S37: 0 | T37: 0 | U37: _________
G38: Cash Cost per Bushel | H38: =(SUM(H9:H23)+H30+H31)/F4 -> 5.586004643 | J38: _________ | L38: Total | P38: =SUM(P26:P37) -> 101.8040134 | Q38: =SUM(Q26:Q37) -> 36.95583023 | R38: =SUM(R26:R37) -> 19.02278458 | S38: =SUM(S26:S37) -> 11.8435308 | T38: =SUM(T26:T37) -> 169.626159 | U38: _________
G39: Economic Cost per Bushel | H39: =H36/F4 -> 7.17105481 | J39: _________
B41: Breakeven Price for Selected Wheat Yield | F41: Breakeven Yield for Selected Soybean Price
B42: Yield (bu) | C42: Variable Cost ($/bu) | D42: Total Specified Cost ($/bu) | F42: Price ($/bu) | G42: Variable Cost (bu) | I42: Total Specified Cost (bu)
B43: =+B44-5 -> 60 | C43: =$H$24/B43 -> 5.164672857 | D43: =($H$24+$H$35)/B43 -> 9.561406413 | F43: =+F44-0.5 -> 3.85 | G43: =+$H$24/F43 -> 80.48840816 | I43: =+($H$24+$H$35)/F43 -> 149.0089311
B44: 65 | C44: 4.76739033 | D44: 8.825913612 | F44: 4.35 | G44: 71.236867 | I44: 131.8814678
B45: 70 | C45: 4.426862449 | D45: 8.195491212 | F45: 4.85 | G45: 63.89286009 | I45: 118.2854402
B46: =+B47-5 -> 75 | C46: 4.131738286 | D46: 7.649125131 | F46: =+F47-0.5 -> 5.35 | G46: 57.92156475 | I46: 107.2307261
B47: =+F4 -> 80 | C47: 3.873504643 | D47: 7.17105481 | F47: =+G4 -> 5.85 | G47: 52.97100366 | I47: 98.0657068
B48: =+B47+5 -> 85 | C48: 3.645651429 | D48: 6.749228057 | F48: =+F47+0.5 -> 6.35 | G48: 48.80005849 | I48: 90.34399761
B49: =+B48+5 -> 90 | C49: 3.443115238 | D49: 6.374270942 | F49: =+F48+0.5 -> 6.85 | G49: 45.23801043 | I49: 83.74954523
B50: 95 | C50: 3.261898647 | D50: 6.038782998 | F50: 7.35 | G50: 42.16059475 | I50: 78.05229725
B51: 100 | C51: 3.098803714 | D51: 5.736843848 | F51: 7.85 | G51: 39.47520655 | I51: 73.08081335

Sheet Wheat & Soybean DC
B1: 2025 Wheat/Soybean Double Cropped, Non-Irrigated Budget | L1: Table 1. Fertilizer & Lime3
E2: Unit | F2: Quantity | G2: Price | H2: Total | J2: Your Farm | L2: Fertilizer | M2: Description | N2: Quantity (lbs.) | O2: Price ($) | P2: Total ($/Acre) | Q2: Your Farm ($/Acre)
B3: Revenue1 | E3: Gross Revenue ($/Acre) | L3: Nitrogen | M3: Urea - Planting/Fall | N3: 15 | O3: =Inputs!C44 -> 0.52 | P3: =N3*O3 -> 7.8 | Q3: _________
C4: Soybeans | E4: Bu/acre | F4: 40 | G4: =+Inputs!C4 -> 10.4 | H4: =F4*G4 -> 416 | J4: _________ | M4: UAN 32 - Post-Emerge/Spring | N4: 90 | O4: =Inputs!C47 -> 0.54 | P4: =N4*O4 -> 48.6 | Q4: _________
C5: Wheat | E5: Bu/acre | F5: 80 | G5: =+Inputs!C5 -> 5.85 | H5: =F5*G5 -> 468 | J5: _________ | L5: Phosphorous | M5: P2O5 | N5: 60 | O5: =Inputs!C48 -> 0.66 | P5: =+N5*O5 -> 39.6 | Q5: _________
C6: Government Payments | E6: $/acre | F6: 1 | G6: 0 | H6: =F6*G6 -> 0 | J6: _________ | L6: Potassium | M6: K20 | N6: 60 | O6: =Inputs!C50 -> 0.36 | P6: =+N6*O6 -> 21.6 | Q6: _________
C7: Other Revenue | E7: $/acre | F7: 1 | G7: 0 | H7: 0 | J7: _________ | L7: Boron | N7: 1 | O7: =Inputs!C52 -> 0.7 | P7: =N7*O7 -> 0.7 | Q7: _________
B8: Total Revenue | H8: =SUM(H4:H7) -> 884 | J8: _________ | L8: Lime | N8: 1000 | O8: =+Inputs!C51 -> 30 | P8: =+N8/2000*O8 -> 15 | Q8: _________
B9: Variable Expenses | L9: Other | N9: 0 | O9: 0 | P9: =N9*O9 -> 0 | Q9: _________
C10: Seed, Soybeans2 | E10: Thous. | F10: 140 | G10: =+Inputs!C37 -> 0.46 | H10: =+F10*G10 -> 64.4 | J10: _________ | L10: Other | N10: 0 | O10: 0 | P10: =+N10*O10 -> 0 | Q10: _________
C11: Seed, Wheat2 | E11: Bu | F11: 2.5 | G11: =+Inputs!C38 -> 17 | H11: =+F11*G11 -> 42.5 | J11: _________ | L11: Total | P11: =SUM(P3:P10) -> 133.3 | Q11: _________
C12: Fertilizer & Lime (Table 1) | E12: Acre | F12: 1 | G12: =+P11 -> 133.3 | H12: =+F12*G12 -> 133.3 | J12: _________ | L12: Table 2. Chemicals4
C13: Chemical (Table 2) | E13: Acre | F13: 1 | G13: =S31 -> 123.68975 | H13: =F13*G13 -> 123.68975 | J13: _________ | L13: Chemical | M13: Function | N13: Description | O13: Unit | P13: Number of Apps. | Q13: Quantity | R13: Price | S13: Total ($/Acre) | T13: Your Farm ($/Acre)
C14: Crop Scout or Consultant | E14: Acre | F14: 1 | G14: =+Inputs!C18 -> 10 | H14: =F14*G14 -> 10 | J14: _________ | L14: Herbicides- | M14: Burndown | N14: Gramoxone SL | O14: oz. | P14: 1 | Q14: 40 | R14: =Herbicides!B61 -> 0.3125 | S14: =P14*Q14*R14 -> 12.5 | T14: _________
C15: Repair & Maintenance (Table 3) | E15: Acre | F15: 1 | G15: =+Q57 -> 71.80256377 | H15: =+F15*G15 -> 71.80256377 | J15: _________ | L15: Wheat | N15: Other | P15: 0 | Q15: 0 | R15: 0 | S15: =P15*Q15*R15 -> 0 | T15: _________
C16: Fuel, Oil & Filter (Table 3) | E16: Acre | F16: 1 | G16: =+R57 -> 36.21577394 | H16: 36.21577394 | J16: _________ | M16: Post-Emerge | N16: Harmony | O16: oz. | P16: 1 | Q16: 0.7 | R16: =Herbicides!B64 -> 14.03 | S16: =P16*Q16*R16 -> 9.821 | T16: _________
C17: Operator Labor (Table 3) | E17: Acre | F17: 1 | G17: =+S57 -> 22.28286246 | H17: 22.28286246 | J17: _________ | N17: Metribuzin | O17: oz. | P17: 1 | Q17: 3 | R17: =Herbicides!B72 -> 1.40625 | S17: 4.21875 | T17: _________
C18: Crop Insurance6 | E18: Acre | F18: 1 | G18: =+Inputs!C25+Inputs!C26 -> 19.92 | H18: =+F18*G18 -> 19.92 | J18: _________ | N18: Other | P18: 0 | Q18: 0 | R18: 0 | S18: 0 | T18: _________
C19: Machinery Rental | E19: Acre | F19: 0 | G19: 0 | H19: =+F19*G19 -> 0 | J19: _________ | L19: Herbicides- | M19: Pre-Emerge | N19: Sequence | O19: pt. | P19: 1 | Q19: 3 | R19: =Herbicides!B95 -> 8.5 | S19: 25.5 | T19: _________
C20: Custom Work | E20: Acre | F20: 0 | G20: 0 | H20: =+F20*G20 -> 0 | J20: _________ | L20: Soybeans | N20: Other | P20: 0 | Q20: 0 | R20: 0 | S20: 0 | T20: _________
C21: Drying (Fuel/Electric) | E21: Bu | F21: =+F5 -> 80 | G21: 0 | H21: =+F21*G21 -> 0 | J21: _________ | M21: Post-Emerge | N21: Roundup PowerMax | O21: oz. | P21: 1 | Q21: 32 | R21: =+Herbicides!B92 -> 0.4375 | S21: 14 | T21: _________
C22: Other | E22: Acre | F22: 1 | G22: 0 | H22: =F22*G22 -> 0 | J22: _________ | N22: Flexstar | O22: pt. | P22: 1 | Q22: 1 | R22: =Herbicides!B50 -> 7.65 | S22: 7.65 | T22: _________
C23: Other | E23: Acre | F23: 1 | G23: 0 | H23: =F23*G23 -> 0 | J23: _________ | N23: Other | P23: 0 | Q23: 0 | R23: 0 | S23: 0 | T23: _________
C24: Other | E24: Acre | F24: 1 | G24: 0 | H24: =F24*G24 -> 0 | J24: _________ | N24: Other | P24: 0 | Q24: 0 | R24: 0 | S24: 0 | T24: _________
C25: Operating Interest7 | E25: % | F25: =SUM(H10:H24) -> 524.1109502 | G25: =+Inputs!C14 -> 0.08 | H25: =(F25*G25)/2 -> 20.96443801 | J25: _________ | L25: Insecticides | N25: Wheat-Foliar | O25: acre | P25: 1 | Q25: 1 | R25: =+Insecticides!B5 -> 5 | S25: =P25*Q25*R25 -> 5 | T25: _________
B26: Total Variable Expenses | H26: =SUM(H10:H25) -> 545.0753882 | J26: _________ | N26: Soybeans-Foliar | O26: acre | P26: 1 | Q26: 1 | R26: =+Insecticides!$B$2 -> 20 | S26: 20 | T26: _________
B27: Return Above Variable Expenses | H27: =H8-H26 -> 338.9246118 | J27: _________ | N27: Other | P27: 0 | Q27: 0 | R27: 0 | S27: 0 | T27: _________
B28: Fixed Expenses | L28: Fungicides | N28: Soybeans-Foliar | O28: acre | P28: 1 | Q28: 1 | R28: =+Fungicides!$B$2 -> 15 | S28: 15 | T28: _________
C29: Machinery | J29: _________ | N29: Wheat-foliar | O29: acre | P29: 1 | Q29: 1 | R29: =+Fungicides!$B$3 -> 10 | S29: 10 | T29: _________
C30: Capital Recovery (Table 3) | E30: Acre | F30: 1 | G30: =+P57 -> 213.3306471 | H30: =+F30*G30 -> 213.3306471 | J30: _________ | N30: Other | P30: 0 | Q30: 0 | R30: 0 | S30: 0 | T30: _________
C31: Other Fixed Machinery Costs | E31: Acre | F31: 1 | G31: 0 | H31: 0 | J31: _________ | L31: Total | S31: =SUM(S14:S30) -> 123.68975 | T31: _________
C32: General Overhead | E32: Acre | F32: 1 | G32: 30 | H32: =F32*G32 -> 30 | J32: _________
C33: Cash Rent8 | E33: Acre | F33: 1 | G33: =+Inputs!C23 -> 117 | H33: =F33*G33 -> 117 | J33: _________ | L33: Table 3. Machinery5
C34: Insurance (Non-Machinery) | E34: Acre | F34: 1 | G34: =+Inputs!C32 -> 0 | H34: =+F34*G34 -> 0 | J34: _________ | M34: Power Unit | N34: Implement | O34: Size | P34: Capital Recovery | Q34: Repairs & Maintenance | R34: Fuel, Oil & Filter | S34: Labor | T34: Total | U34: Your Farm ($/Acre)
C35: Management Labor10 | E35: Acre | F35: 1 | G35: =Inputs!C33 -> 25 | H35: =+F35*G35 -> 25 | J35: _________ | L35: Disk | M35: Tractor, 215 hp | N35: Tandem Disk | O35: 29' | P35: =+'Field Operations'!$F$5 -> 11.60044178 | Q35: =+'Field Operations'!$G$5 -> 2.015124735 | R35: =+'Field Operations'!$H$5 -> 2.716029412 | S35: =+'Field Operations'!$I$5 -> 1.859364435 | T35: =SUM(P35:S35) -> 18.19096036 | U35: _________
C36: Other | E36: Acre | F36: 1 | G36: 0 | H36: =+F36*G36 -> 0 | J36: _________ | L36: Burndown | M36: SP Boom Sprayer | O36: 90' | P36: =+'Field Operations'!$F$11 -> 9.480901321 | Q36: =+'Field Operations'!$G$11 -> 0.2942877349 | R36: =+'Field Operations'!$H$11 -> 0.3719451389 | S36: =+'Field Operations'!$I$11 -> 0.318287037 | T36: =SUM(P36:S36) -> 10.46542123 | U36: _________
B37: Total Fixed Expenses | H37: =+SUM(H29:H36) -> 385.3306471 | J37: _________ | L37: Fertilize | M37: Tractor, 215 hp | N37: Fertilize Spreader | P37: ='Field Operations'!F10 -> 5.103029692 | Q37: ='Field Operations'!G10 -> 1.596529341 | R37: ='Field Operations'!H10 -> 2.459392347 | S37: ='Field Operations'!I10 -> 1.683673469 | T37: =SUM(P37:S37) -> 10.84262485 | U37: _________
B38: Total Expenses | H38: =+SUM(H26+H37) -> 930.4060353 | J38: _________ | L38: Plant | M38: Tractor, 215 hp | N38: Grain Drill | O38: 20' | P38: =+'Field Operations'!$F$9 -> 12.48563996 | Q38: =+'Field Operations'!$G$9 -> 5.294680402 | R38: =+'Field Operations'!$H$9 -> 4.303936607 | S38: =+'Field Operations'!$I$9 -> 2.946428571 | T38: =SUM(P38:S38) -> 25.03068554 | U38: _________
B39: Return Above Specified Expenses | H39: =H8-H38 -> -46.40603529 | J39: _________ | L39: Fertilize | M39: Tractor, 215 hp | N39: Fertilize Spreader | P39: ='Field Operations'!F10 -> 5.103029692 | Q39: ='Field Operations'!G10 -> 1.596529341 | R39: ='Field Operations'!H10 -> 2.459392347 | S39: ='Field Operations'!I10 -> 1.683673469 | T39: ='Field Operations'!J10 -> 10.84262485 | U39: _________
L40: Weed Control | M40: SP Boom Sprayer | O40: 90' | P40: =+'Field Operations'!$F$11 -> 9.480901321 | Q40: =+'Field Operations'!$G$11 -> 0.2942877349 | R40: =+'Field Operations'!$H$11 -> 0.3719451389 | S40: =+'Field Operations'!$I$11 -> 0.318287037 | T40: =SUM(P40:S40) -> 10.46542123 | U40: _________
B41: Breakeven Price for Selected Soybean Yield | F41: Breakeven Yield for Selected Soybean Price | L41: Fungicide | M41: SP Boom Sprayer | O41: 90' | P41: =+'Field Operations'!$F$11 -> 9.480901321 | Q41: =+'Field Operations'!$G$11 -> 0.2942877349 | R41: =+'Field Operations'!$H$11 -> 0.3719451389 | S41: =+'Field Operations'!$I$11 -> 0.318287037 | T41: =SUM(P41:S41) -> 10.46542123 | U41: _________
B42: Yield (bu) | C42: Variable Cost ($/bu) | D42: Total Specified Cost ($/bu) | F42: Price ($/bu) | G42: Variable Cost (bu) | I42: Total Specified Cost (bu) | L42: Insect Control | M42: SP Boom Sprayer | O42: 90' | P42: =+'Field Operations'!$F$11 -> 9.480901321 | Q42: =+'Field Operations'!$G$11 -> 0.2942877349 | R42: =+'Field Operations'!$H$11 -> 0.3719451389 | S42: =+'Field Operations'!$I$11 -> 0.318287037 | T42: 10.46542123 | U42: _________
B43: =+B44-5 -> 20 | C43: =$H$26/2/B43 -> 13.6268847 | D43: =($H$26+$H$37)/2/B43 -> 23.26015088 | F43: =+F44-0.5 -> 8.4 | G43: =+$H$26/2/F43 -> 32.44496358 | I43: =+($H$26+$H$37)/2/F43 -> 55.38131162 | L43: Harvest | M43: Combine | N43: Grain Head | O43: 30' | P43: =+'Field Operations'!$F$13 -> 27.99694175 | Q43: =+'Field Operations'!$G$13 -> 26.02550332 | R43: =+'Field Operations'!$H$13 -> 6.455904911 | S43: =+'Field Operations'!$I$13 -> 2.455357143 | T43: 62.93370712 | U43: _________
B44: 25 | C44: 10.90150776 | D44: 18.60812071 | F44: 8.9 | G44: 30.62221282 | I44: 52.27000198 | L44: Haul | M44: Tractor, 215 hp | N44: Grain Cart | P44: =+'Field Operations'!$F$14 -> 7.021767002 | Q44: =+'Field Operations'!$G$14 -> 0.8354368884 | R44: =+'Field Operations'!$H$14 -> 1.506377813 | S44: =+'Field Operations'!$I$14 -> 1.03125 | T44: 10.3948317 | U44: _________
B45: 30 | C45: 9.084589803 | D45: 15.50676725 | F45: 9.4 | G45: 28.99337171 | I45: 49.48968273 | L45: Haul | M45: ='Field Operations'!C17 -> Semi Tractor/Trailer | P45: ='Field Operations'!F17 -> 6.17 | Q45: ='Field Operations'!G17 -> 0.43 | R45: ='Field Operations'!H17 -> 0.35 | S45: ='Field Operations'!I17 -> 0.77 | T45: 7.72 | U45: _________
B46: =+B47-5 -> 35 | C46: 7.78679126 | D46: 13.29151479 | F46: =+F47-0.5 -> 9.9 | G46: 27.52906001 | I46: 46.9902038 | L46: Plant | M46: Tractor, 215 hp | N46: Planter | O46: 16-row | P46: =+'Field Operations'!$F$8 -> 15.97084823 | Q46: =+'Field Operations'!$G$8 -> 2.876988318 | R46: =+'Field Operations'!$H$8 -> 2.317504327 | S46: =+'Field Operations'!$I$8 -> 1.586538462 | T46: 22.75187934 | U46: _________
B47: =+F4 -> 40 | C47: 6.813442352 | D47: 11.63007544 | F47: =+G4 -> 10.4 | G47: 26.20554751 | I47: 44.73105939 | L47: Fertilize | M47: Tractor, 215 hp | N47: Fertilize Spreader | P47: ='Field Operations'!F10 -> 5.103029692 | Q47: ='Field Operations'!G10 -> 1.596529341 | R47: ='Field Operations'!H10 -> 2.459392347 | S47: ='Field Operations'!I10 -> 1.683673469 | T47: 10.84262485 | U47: _________
B48: =+B47+5 -> 45 | C48: 6.056393202 | D48: 10.33784484 | F48: =+F47+0.5 -> 10.9 | G48: 25.00345817 | I48: 42.67917593 | L48: Weed Control | M48: SP Boom Sprayer | O48: 90' | P48: =+'Field Operations'!$F$11 -> 9.480901321 | Q48: =+'Field Operations'!$G$11 -> 0.2942877349 | R48: =+'Field Operations'!$H$11 -> 0.3719451389 | S48: =+'Field Operations'!$I$11 -> 0.318287037 | T48: =SUM(P48:S48) -> 10.46542123 | U48: _________
B49: =+B48+5 -> 50 | C49: 5.450753882 | D49: 9.304060353 | F49: =+F48+0.5 -> 11.4 | G49: 23.90681527 | I49: 40.80728225 | L49: Weed Control | M49: SP Boom Sprayer | O49: 90' | P49: =+'Field Operations'!$F$11 -> 9.480901321 | Q49: =+'Field Operations'!$G$11 -> 0.2942877349 | R49: =+'Field Operations'!$H$11 -> 0.3719451389 | S49: =+'Field Operations'!$I$11 -> 0.318287037 | T49: 10.46542123 | U49: _________
B50: 55 | C50: 4.955230802 | D50: 8.458236684 | F50: 11.9 | G50: 22.90232723 | I50: 39.09269056 | L50: Weed Control | M50: SP Boom Sprayer | O50: 90' | P50: =+'Field Operations'!$F$11 -> 9.480901321 | Q50: =+'Field Operations'!$G$11 -> 0.2942877349 | R50: =+'Field Operations'!$H$11 -> 0.3719451389 | S50: =+'Field Operations'!$I$11 -> 0.318287037 | T50: 10.46542123 | U50: _________
B51: 60 | C51: 4.542294901 | D51: 7.753383627 | F51: 12.4 | G51: 21.9788463 | I51: 37.51637239 | L51: Fungicide | M51: SP Boom Sprayer | O51: 90' | P51: =+'Field Operations'!$F$11 -> 9.480901321 | Q51: =+'Field Operations'!$G$11 -> 0.2942877349 | R51: =+'Field Operations'!$H$11 -> 0.3719451389 | S51: =+'Field Operations'!$I$11 -> 0.318287037 | T51: =SUM(P51:S51) -> 10.46542123 | U51: _________
L52: Harvest | M52: Combine | N52: Grain Head | O52: 30' | P52: =+'Field Operations'!$F$13 -> 27.99694175 | Q52: =+'Field Operations'!$G$13 -> 26.02550332 | R52: =+'Field Operations'!$H$13 -> 6.455904911 | S52: =+'Field Operations'!$I$13 -> 2.455357143 | T52: 62.93370712 | U52: _________
B53: Breakeven Price for Selected Wheat Yield | F53: Breakeven Yield for Selected Wheat Price | L53: Haul | M53: Tractor, 215 hp | N53: Grain Cart | O53: =+'Field Operations'!$E$14 -> 800 bu | P53: =+'Field Operations'!$F$14 -> 7.021767002 | Q53: =+'Field Operations'!$G$14 -> 0.8354368884 | R53: =+'Field Operations'!$H$14 -> 1.506377813 | S53: =+'Field Operations'!$I$14 -> 1.03125 | T53: 10.3948317 | U53: _________
B54: Yield (bu) | C54: Variable Cost ($/bu) | D54: Total Specified Cost ($/bu) | F54: Price ($/bu) | G54: Variable Cost (bu) | I54: Total Specified Cost (bu) | L54: Haul | M54: ='Field Operations'!C15 -> Semi Tractor/Trailer | P54: ='Field Operations'!F15 -> 5.91 | Q54: ='Field Operations'!G15 -> 0.32 | R54: ='Field Operations'!H15 -> 0.25 | S54: ='Field Operations'!I15 -> 0.55 | T54: 7.03 | U54: _________
B55: =+B56-5 -> 60 | C55: =$H$26/2/B55 -> 4.542294901 | D55: =($H$26+$H$37)/2/B55 -> 7.753383627 | F55: =+F56-0.5 -> 3.85 | G55: =+$H$26/2/F55 -> 70.78901145 | I55: =+($H$26+$H$37)/2/F55 -> 120.8319526 | L55: Other | P55: 0 | Q55: 0 | R55: 0 | S55: 0 | T55: 0 | U55: _________
B56: 65 | C56: 4.192887601 | D56: 7.156969502 | F56: 4.35 | G56: 62.65234347 | I56: 106.9432224 | L56: Other | P56: 0 | Q56: 0 | R56: 0 | S56: 0 | T56: 0 | U56: _________
B57: 70 | C57: 3.89339563 | D57: 6.645757395 | F57: 4.85 | G57: 56.19333899 | I57: 95.91814797 | L57: Total | P57: =SUM(P35:P56) -> 213.3306471 | Q57: =SUM(Q35:Q56) -> 71.80256377 | R57: =SUM(R35:R56) -> 36.21577394 | S57: =SUM(S35:S56) -> 22.28286246 | T57: =SUM(T35:T56) -> 343.6318473 | U57: _________
B58: =+B59-5 -> 75 | C58: 3.633835921 | D58: 6.202706902 | F58: =+F59-0.5 -> 5.35 | G58: 50.94162506 | I58: 86.95383507
B59: =+F5 -> 80 | C59: 3.406721176 | D59: 5.815037721 | F59: =G5 -> 5.85 | G59: 46.58764002 | I59: 79.52188336
B60: =+B59+5 -> 85 | C60: 3.206325813 | D60: 5.472976678 | F60: =+F59+0.5 -> 6.35 | G60: 42.9193219 | I60: 73.26031774
B61: =+B60+5 -> 90 | C61: 3.028196601 | D61: 5.168922418 | F61: =+F60+0.5 -> 6.85 | G61: 39.78652468 | I61: 67.91284929
B62: 95 | C62: 2.868817833 | D62: 4.89687387 | F62: 7.35 | G62: 37.07995838 | I62: 63.29292757
B63: 100 | C63: 2.725376941 | D63: 4.652030176 | F63: 7.85 | G63: 34.71817759 | I63: 59.26153091

Sheet Wheat (hidden)
B1: 2019 Wheat, Conventional Tillage, Non-Irrigated Budget | L1: Table 1. Fertilizer & Lime
E2: Unit | F2: Quantity | G2: Price | H2: Total | J2: Your Farm | L2: Fertilizer | M2: Description | N2: Quantity (lbs) | O2: Price ($) | P2: Total ($/Acre) | Q2: Your Farm ($/Acre)
B3: Revenue | E3: Gross Revenue ($/Acre) | L3: Nitrogen | M3: Urea - Planting/Fall | N3: 30 | O3: =Inputs!C44 -> 0.52 | P3: =+N3*O3 -> 15.6 | Q3: _________
C4: Wheat1 | E4: Bu | F4: 70 | G4: =+Inputs!C5 -> 5.85 | H4: =F4*G4 -> 409.5 | J4: _________ | M4: UAN 32 - Post-Emerge/Spring | N4: 70 | O4: =Inputs!C47 -> 0.54 | P4: =O4*N4 -> 37.8 | Q4: _________
B5: Total Revenue | H5: =SUM(H4:H4) -> 409.5 | J5: _________ | L5: Phosphorous | M5: P2O5 | N5: 40 | O5: =Inputs!C48 -> 0.66 | P5: =+N5*O5 -> 26.4 | Q5: _________
B6: Variable Expenses | L6: Potassium | M6: K20 | N6: 20 | O6: =+Inputs!C50 -> 0.36 | P6: =+N6*O6 -> 7.2 | Q6: _________
C7: Seed | E7: Bu | F7: 2.5 | G7: =+Inputs!C38 -> 17 | H7: =+F7*G7 -> 42.5 | J7: _________ | L7: Lime | M7: Limestone | N7: 1000 | O7: =+Inputs!C51 -> 30 | P7: =+N7/2000*O7 -> 15 | Q7: _________
C8: Fertilizer & Lime (Table 1) | E8: Acre | F8: 1 | G8: =P9 -> 118.7 | H8: =+F8*G8 -> 118.7 | J8: _________ | L8: Sulfur | M8: Sulfur | N8: 10 | O8: =Inputs!C54 -> 1.67 | P8: =N8*O8 -> 16.7 | Q8: _________
C9: Chemical (Table 2) 2,3 | E9: Acre | F9: 1 | G9: =S22 ->  | H9: =F9*G9 ->  | J9: _________ | L9: Total | P9: =SUM(P3:P8) -> 118.7 | Q9: _________
C10: Crop Scout | E10: Acre | F10: 1 | G10: =+Inputs!C18 -> 10 | H10: =F10*G10 -> 10 | J10: _________ | L10: Table 2. Chemicals2,3
C11: Repair & Maintenance (Table 3) 4 | E11: Acre | F11: 1 | G11: =+Q36 -> 37.66871336 | H11: =+F11*G11 -> 37.66871336 | J11: _________ | L11: Chemical | M11: Function | N11: Description | O11: Unit | P11: Number of Apps. | Q11: Quantity | R11: Price | S11: Total ($/Acre) | T11: Your Farm ($/Acre)
C12: Fuel, Oil & Filter (Table 3) 4 | E12: Acre | F12: 1 | G12: =+R36 -> 19.65136678 | H12: 19.65136678 | J12: _________ | L12: Herbicides | M12: Burndown | N12: Gramoxone | O12: oz. | P12: 1 | Q12: 40 | R12: =Herbicides!B61 -> 0.3125 | S12: =P12*Q12*R12 -> 12.5 | T12: _________
C13: Operator Labor (Table 3) 4 | E13: Acre | F13: 1 | G13: =+S36 -> 12.3375088 | H13: 12.3375088 | J13: _________ | N13: Roundup | O13: qt. | P13: 1 | Q13: 1 | R13: =Herbicides!B92 -> 0.4375 | S13: =P13*Q13*R13 -> 0.4375 | T13: _________
C14: Machinery Rental | E14: Acre | F14: 0 | G14: 0 | H14: 0 | J14: _________ | M14: Post-Emerge | N14: Harmony | O14: oz. | P14: 1 | Q14: 0.75 | R14: =Herbicides!B64 -> 14.03 | S14: 10.5225 | T14: _________
C15: Custom Work | E15: Acre | F15: 0 | G15: 0 | H15: 0 | J15: _________ | N15: Metribuzin | O15: oz. | P15: 1 | Q15: 3 | R15: =Herbicides!B72 -> 1.40625 | S15: =P15*Q15*R15 -> 4.21875 | T15: _________
C16: Drying (Fuel/Electric) | E16: Bu | F16: =+F4 -> 70 | G16: =+Inputs!C20 -> 0.45 | H16: 31.5 | J16: _________ | N16: Surfactant | O16: pt. | P16: 1 | Q16: 0.1 | R16: =Herbicides!B102 -> 0.08 | S16: 0.008 | T16: _________
C17: Cash Rent 5 | E17: Acre | F17: 1 | G17: =+Inputs!C23 -> 117 | H17: =F17*G17 -> 117 | J17: _________ | N17: Other | S17: 0 | T17: _________
C18: Crop Insurance 6 | E18: Acre | F18: 1 | G18: =+Inputs!C26 -> 9.9 | H18: =F18*G18 -> 9.9 | J18: _________ | L18: Seed Treatment | N18: Seed Treatment | O18: acre | P18: 1 | Q18: 1 | R18: =Insecticides!#REF! ->  | T18: _________
C19: Operating Interest 7 | E19: % | F19: =SUM(H7:H18,H20) ->  | G19: =+Inputs!C14 -> 0.08 | H19: =(F19*G19)/2 ->  | J19: _________ | L19: Insecticides | N19: Foliar | O19: acre | P19: 1 | Q19: 1 | R19: =Insecticides!B5 -> 5 | S19: =P19*Q19*R19 -> 5 | T19: _________
C20: Other Variable Costs | E20: Acre | F20: 1 | G20: 0 | H20: =F20*G20 -> 0 | J20: _________ | L20: Fungicides | N20: Foliar | O20: acre | P20: 1 | Q20: 1 | R20: =+Fungicides!$B$3 -> 10 | S20: =P20*Q20*R20 -> 10 | T20: _________
B21: Total Variable Expenses | H21: =SUM(H7:H20) ->  | J21: _________ | N21: Other | S21: =P21*Q21*R21 -> 0 | T21: _________
B22: Return Above Variable Expenses | H22: =H5-H21 ->  | J22: _________ | L22: Total | S22: =SUM(S12:S21) ->  | T22: _________
B23: Fixed Expenses | L23: Table 3. Machinery 4
C24: Machinery 4 | M24: Power Unit | N24: Implement | O24: Size | P24: Capital Recovery | Q24: Repairs & Maintenance | R24: Fuel, Oil & Filter | S24: Labor | T24: Total | U24: Your Farm ($/Acre)
C25: Capital Recovery (Table 3) | E25: Acre | F25: 1 | G25: =+P36 -> 117.7823268 | H25: =+F25*G25 -> 117.7823268 | J25: _________ | L25: Disk | M25: Tractor, 215 hp | N25: Tandem Disk | O25: 29' | P25: =+'Field Operations'!F5 -> 11.60044178 | Q25: =+'Field Operations'!G5 -> 2.015124735 | R25: =+'Field Operations'!H5 -> 2.716029412 | S25: =+'Field Operations'!I5 -> 1.859364435 | T25: =SUM(P25:S25) -> 18.19096036 | U25: _________
C26: Other Fixed Machinery Costs | E26: Acre | F26: 1 | G26: 0 | H26: =+F26*G26 -> 0 | J26: _________ | L26: Burndown | M26: SP Boom Sprayer | O26: 90' | P26: =+'Field Operations'!F11 -> 9.480901321 | Q26: =+'Field Operations'!G11 -> 0.2942877349 | R26: =+'Field Operations'!H11 -> 0.3719451389 | S26: =+'Field Operations'!I11 -> 0.318287037 | T26: =SUM(P26:S26) -> 10.46542123 | U26: _________
C27: Property Taxes | E27: Acre | F27: 1 | G27: =+Inputs!C31 -> 0 | H27: =+F27*G27 -> 0 | J27: _________ | L27: Fertilize | M27: Tractor, 215 hp | N27: Fertilize Spreader | O27: 900# | P27: =+'Field Operations'!F10 -> 5.103029692 | Q27: =+'Field Operations'!G10 -> 1.596529341 | R27: =+'Field Operations'!H10 -> 2.459392347 | S27: =+'Field Operations'!I10 -> 1.683673469 | T27: =SUM(P27:S27) -> 10.84262485 | U27: _________
C28: Insurance (Non-Machinery) | E28: Acre | F28: 1 | G28: =+Inputs!C32 -> 0 | H28: =+F28*G28 -> 0 | J28: _________ | L28: Plant | M28: Tractor, 215 hp | N28: Grain Drill | O28: 20 ft | P28: =+'Field Operations'!F9 -> 12.48563996 | Q28: =+'Field Operations'!G9 -> 5.294680402 | R28: =+'Field Operations'!H9 -> 4.303936607 | S28: =+'Field Operations'!I9 -> 2.946428571 | T28: =SUM(P28:S28) -> 25.03068554 | U28: _________
C29: Management Labor | E29: Acre | F29: 1 | G29: =Inputs!C33 -> 25 | H29: =+F29*G29 -> 25 | J29: _________ | L29: Weed Control | M29: SP Boom Sprayer | O29: 90' | P29: =+'Field Operations'!F11 -> 9.480901321 | Q29: =+'Field Operations'!G11 -> 0.2942877349 | R29: =+'Field Operations'!H11 -> 0.3719451389 | S29: =+'Field Operations'!I11 -> 0.318287037 | T29: =SUM(P29:S29) -> 10.46542123 | U29: _________
C30: Other Fixed Costs | E30: Acre | F30: 1 | G30: 0 | H30: =+F30*G30 -> 0 | J30: _________ | L30: Fertilize | M30: SP Boom Sprayer | O30: 90' | P30: =+'Field Operations'!F11 -> 9.480901321 | Q30: =+'Field Operations'!G11 -> 0.2942877349 | R30: =+'Field Operations'!H11 -> 0.3719451389 | S30: =+'Field Operations'!I11 -> 0.318287037 | T30: =SUM(P30:S30) -> 10.46542123 | U30: _________
B31: Total Fixed Expenses | H31: =+SUM(H24:H29) -> 142.7823268 | J31: _________ | L31: Fungicide | M31: SP Boom Sprayer | O31: 90' | P31: =+'Field Operations'!F11 -> 9.480901321 | Q31: =+'Field Operations'!G11 -> 0.2942877349 | R31: =+'Field Operations'!H11 -> 0.3719451389 | S31: =+'Field Operations'!I11 -> 0.318287037 | T31: =SUM(P31:S31) -> 10.46542123 | U31: _________
B32: Return Above All Specified Expenses | H32: =H5-H21-H31 ->  | J32: _________ | L32: Insecticide | M32: SP Boom Sprayer | O32: 90' | P32: =+'Field Operations'!F11 -> 9.480901321 | Q32: =+'Field Operations'!G11 -> 0.2942877349 | R32: =+'Field Operations'!H11 -> 0.3719451389 | S32: =+'Field Operations'!I11 -> 0.318287037 | T32: =SUM(P32:S32) -> 10.46542123 | U32: _________
L33: Harvest | M33: Combine | N33: Grain Head | O33: 30 ft | P33: =+'Field Operations'!$F$13 -> 27.99694175 | Q33: =+'Field Operations'!$G$13 -> 26.02550332 | R33: =+'Field Operations'!$H$13 -> 6.455904911 | S33: =+'Field Operations'!$I$13 -> 2.455357143 | T33: =SUM(P33:S33) -> 62.93370712 | U33: _________
B34: Breakeven Price for Selected Yield | F34: Breakeven Yield for Selected Price | L34: Haul | M34: Tractor, 215 hp | N34: Grain Cart | P34: =+'Field Operations'!$F$14 -> 7.021767002 | Q34: =+'Field Operations'!$G$14 -> 0.8354368884 | R34: =+'Field Operations'!$H$14 -> 1.506377813 | S34: =+'Field Operations'!$I$14 -> 1.03125 | T34: =SUM(P34:S34) -> 10.3948317 | U34: _________
B35: Yield (bu) | C35: Variable Cost ($/bu) | D35: Total Specified Cost ($/bu) | F35: Price ($/bu) | G35: Variable Cost (bu) | I35: Total Specified Cost (bu) | L35: Haul | M35: Semi Tractor/Trailer | O35: ='Field Operations'!E14 -> 800 bu | P35: ='Field Operations'!$F$17 -> 6.17 | Q35: ='Field Operations'!$G$17 -> 0.43 | R35: ='Field Operations'!$H$17 -> 0.35 | S35: ='Field Operations'!$I$17 -> 0.77 | T35: ='Field Operations'!J17 -> 7.72 | U35: _________
B36: =SUM(B37-5) -> 50 | C36: =$H$21/B36 ->  | D36: =($H$21+$H$31)/B36 ->  | F36: =SUM(F37-0.25) -> 4.85 | G36: =+$H$21/F36 ->  | I36: =+($H$21+$H$31)/F36 ->  | L36: Total | P36: =SUM(P25:P35) -> 117.7823268 | Q36: =SUM(Q25:Q35) -> 37.66871336 | R36: 19.65136678 | S36: =SUM(S25:S35) -> 12.3375088 | T36: 187.4399157 | U36: _________
B37: 55 | F37: 5.1 | G37: =+$H$21/F37 -> 
B38: 60 | F38: 5.35
B39: =SUM(B40-5) -> 65 | F39: =SUM(F40-0.25) -> 5.6
B40: =+F4 -> 70 | F40: =+G4 -> 5.85
B41: =SUM(B40+5) -> 75 | F41: =SUM(F40+0.25) -> 6.1
B42: =SUM(B41+5) -> 80 | F42: =SUM(F41+0.25) -> 6.35
B43: 85 | F43: 6.6
B44: 90 | F44: 6.85
B46: FOOTNOTES
B47: 1) Wheat price was estimated using weighted average futures prices from July 2018 to May 2019 on December 29, 2018, adjusted by average monthly basis in Tennessee. Wheat yield is the predicted 2018 linear trend line yield for wheat in Tennessee using state average yields from 1980-2018. If a market for straw is available, add an appropriate amount to return to land, management, and risk, based on the expected yield and price of the straw, less harvest and marketing costs.
B48: 2) Seed treatment is to protect against Barley Yellow Dwarf virus.
B49: 3) Cost may vary depending on fungicide used and application rate per acre. Check with farm suppliers for rebates, discounts, and incentives for seed and chemicals. Substantial cost savings may be available.
B50: 4) Machinery expenses will vary dramatically by operation, financial resources, and land base. The machinery cost estimates provided in Table 3 are provided as an estimate of cost of ownership and operation for specified pieces of machinery that would be available to a "representative" row-crop farm in Tennessee. To estimate machinery costs for a specific set of equipment, interested parties can utilize the Excel version of the budgets and modify the Machinery Assumptions Table.
B51: 5) Cash rental rates are the 2018 USDA-NASS reported cash rental rates for cropland in Tennessee. Substantial differences may exist in cash rental rates reported by NASS and the prevailing rate in your location.
B52: 6) Crop insurance is an estimate and will vary by policy, county, and coverage election. The estimate provided is the average premium paid per insured acre of wheat in Tennessee for the previous production year as reported by USDA RMA's Summary of Business Report.
B53: 7) Operating interest is assumed to be charged on half of all variable expenses.

Sheet Cotton NT
B1: 2025 Cotton, No-Till, Non-Irrigated Budget | L1: Table 1. Fertilizer & Lime3
E2: Unit | F2: Quantity | G2: Price | H2: Total | J2: Your Farm | L2: Fertilizer | M2: Description | N2: Quantity (lbs.) | O2: Price ($) | P2: Total ($/Acre) | Q2: Your Farm ($/Acre)
B3: Revenue1 | E3: Gross Revenue ($/Acre) | L3: Nitrogen | M3: Urea | N3: 35 | O3: =+Inputs!C44 -> 0.52 | P3: =+N3*O3 -> 18.2 | Q3: _________
C4: Cotton | E4: lb. | F4: 1150 | G4: =+Inputs!C7 -> 0.72 | H4: =F4*G4 -> 828 | J4: _________ | M4: UAN 32% | N4: 35 | O4: =Inputs!C47 -> 0.54 | P4: =+N4*O4 -> 18.9 | Q4: _________
C5: Government Payments | E5: $/acre | F5: 1 | G5: 0 | H5: =F5*G5 -> 0 | J5: _________ | L5: Phosphorous | M5: P2O5 | N5: 60 | O5: =+Inputs!C48 -> 0.66 | P5: =+N5*O5 -> 39.6 | Q5: _________
C6: Cotton Seed or Gin Rebate | E6: $/acre | F6: 1 | G6: 0 | H6: 0 | J6: _________ | L6: Potassium | M6: K20 | N6: 90 | O6: =+Inputs!C50 -> 0.36 | P6: =+N6*O6 -> 32.4 | Q6: _________
B7: Total Revenue | H7: =SUM(H4:H6) -> 828 | J7: _________ | L7: Sulfur | N7: 10 | O7: =Inputs!C53 -> 0.3 | P7: =+N7*O7 -> 3 | Q7: _________
B8: Variable Expenses | L8: Boron | N8: 0.5 | O8: =Inputs!$C$52 -> 0.7 | P8: =N8*O8 -> 0.35 | Q8: _________
C9: Seed2 | E9: Thous. | F9: 50 | G9: =+Inputs!C40 -> 3.1 | H9: =+F9*G9 -> 155 | J9: _________ | L9: Lime | N9: 1000 | O9: =+Inputs!$C$51 -> 30 | P9: =+N9/2000*O9 -> 15 | Q9: _________
C10: Wrap | E10: lb. | F10: =F4 -> 1150 | G10: =+Inputs!C21 -> 0.0165 | H10: =+F10*G10 -> 18.975 | J10: _________ | L10: Other | N10: 0 | O10: 0 | P10: =N10*O10 -> 0 | Q10: _________
C11: Fertilizer & Lime (Table 1) | E11: Acre | F11: 1 | G11: =+P12 -> 127.45 | H11: 127.45 | J11: _________ | L11: Other | N11: 0 | O11: 0 | P11: =+N11*O11 -> 0 | Q11: _________
C12: Chemical (Table 2) | E12: Acre | F12: 1 | G12: =S32 -> 174.6475 | H12: 174.6475 | J12: _________ | L12: Total | P12: =SUM(P3:P11) -> 127.45 | Q12: _________
C13: Crop Scout or Consultant | E13: Acre | F13: 1 | G13: =+Inputs!C19 -> 12 | H13: 12 | J13: _________
C14: Repair & Maintenance (Table 3) | E14: Acre | F14: 1 | G14: =$Q$52 -> 32.66115153 | H14: 32.66115153 | J14: _________ | L14: Table 2. Chemicals4
C15: Fuel, Oil & Filter (Table 3) | E15: Acre | F15: 1 | G15: =$R$52 -> 28.10393187 | H15: 28.10393187 | J15: _________ | L15: Chemical | M15: Function | N15: Description | O15: Unit | P15: Number of Apps. | Q15: Quantity | R15: Price | S15: Total ($/Acre) | T15: Your Farm ($/Acre)
C16: Operator Labor (Table 3) | E16: Acre | F16: 1 | G16: =$S$52 -> 15.43808188 | H16: 15.43808188 | J16: _________ | L16: Herbicides | M16: Burndown | N16: Roundup PowerMax | O16: oz. | P16: 1 | Q16: 32 | R16: =Herbicides!B92 -> 0.4375 | S16: =P16*Q16*R16 -> 14 | T16: _________
C17: Crop Insurance6 | E17: Acre | F17: 1 | G17: =+Inputs!C28 -> 11.15 | H17: =+F17*G17 -> 11.15 | J17: _________ | N17: Other | O17: oz. | P17: 0 | Q17: 0 | R17: 0 | S17: =P17*Q17*R17 -> 0 | T17: _________
C18: Machinery Rental | E18: Acre | F18: 1 | G18: 0 | H18: 0 | J18: _________ | M18: At-Planting | N18: Cotoran 4L | O18: pt. | P18: 1 | Q18: 1 | R18: =+Herbicides!B33 -> 6.25 | S18: =P18*Q18*R18 -> 6.25 | T18: _________
C19: Custom Work | E19: Acre | F19: 1 | G19: 0 | H19: 0 | J19: _________ | N19: Caparol 4L | O19: pt. | P19: 1 | Q19: 1 | R19: =+Herbicides!B24 -> 6 | S19: 6 | T19: _________
C20: Other Transportation Costs | E20: Acre | F20: 1 | G20: 0 | H20: 0 | J20: _________ | M20: Post-Emerge | N20: Sequence | O20: pt. | P20: 1 | Q20: 2.5 | R20: =+Herbicides!B95 -> 8.5 | S20: 21.25 | T20: _________
C21: Other | E21: Acre | F21: 0 | G21: 0 | H21: =F21*G21 -> 0 | J21: _________ | N21: Roundup PowerMax | O21: oz. | P21: 1 | Q21: 31 | R21: =+Herbicides!B92 -> 0.4375 | S21: 13.5625 | T21: _________
C22: Other | E22: Acre | F22: 0 | G22: 0 | H22: =F22*G22 -> 0 | J22: _________ | N22: Caparol | O22: pt. | P22: 1 | Q22: 2 | R22: =Herbicides!B24 -> 6 | S22: 12 | T22: _________
C23: Operating Interest7 | E23: % | F23: =SUM(H9:H22) -> 575.4256653 | G23: =+Inputs!C14 -> 0.08 | H23: =(F23*G23)/2 -> 23.01702661 | J23: _________ | N23: Valor | O23: oz. | P23: 1 | Q23: 2 | R23: =+Herbicides!B108 -> 3.6875 | S23: 7.375 | T23: _________
B24: Total Variable Expenses | H24: =SUM(H9:H23) -> 598.4426919 | J24: _________ | N24: Other | P24: 0 | Q24: 0 | R24: 0 | S24: =P24*Q24*R24 -> 0 | T24: _________
B25: Return Above Variable Expenses | H25: =H7-H24 -> 229.5573081 | J25: _________ | L25: Growth Regulator | N25: Mepex (Mepiquat Chloride) | O25: acre | P25: 1 | Q25: 1 | R25: =+Herbicides!$B$70 -> 2.24 | S25: =P25*Q25*R25 -> 2.24 | T25: _________
B26: Fixed Expenses | L26: Defoliant | N26: Defoliant | O26: acre | P26: 1 | Q26: 1 | R26: =+Herbicides!$B$35 -> 18 | S26: =P26*Q26*R26 -> 18 | T26: _________
C27: Machinery | L27: Boll Opener | N27: Ethephon | O27: acre | P27: 1 | Q27: 1 | R27: =+Herbicides!$B$20 -> 8.97 | S27: =P27*Q27*R27 -> 8.97 | T27: _________
C28: Capital Recovery (Table 3) | E28: Acre | F28: 1 | G28: =+P52 -> 171.7158342 | H28: =+F28*G28 -> 171.7158342 | J28: _________ | L28: Insecticides | N28: Foliar | O28: acre | P28: 1 | Q28: 1 | R28: =+Insecticides!$B$3 -> 65 | S28: =P28*Q28*R28 -> 65 | T28: _________
C29: Other Fixed Machinery Costs | E29: Acre | F29: 1 | G29: 0 | H29: =+F29*G29 -> 0 | J29: _________ | N29: Other | P29: 0 | Q29: 0 | R29: 0 | S29: =P29*Q29*R29 -> 0 | T29: _________
C30: General Overhead | E30: Acre | F30: 1 | G30: 20 | H30: 20 | J30: _________ | L30: Fungicides | N30: Other | P30: 0 | Q30: 0 | R30: 0 | S30: =P30*Q30*R30 -> 0 | T30: _________
C31: Cash Rent8 | E31: Acre | F31: 1 | G31: =+Inputs!C23 -> 117 | H31: 117 | J31: _________ | N31: Other | P31: 0 | Q31: 0 | R31: 0 | S31: =P31*Q31*R31 -> 0 | T31: _________
C32: Insurance (Non-Machinery) | E32: Acre | F32: 1 | G32: =+Inputs!C32 -> 0 | H32: 0 | J32: _________ | L32: Total | S32: =SUM(S16:S31) -> 174.6475 | T32: _________
C33: Management Labor10 | E33: Acre | F33: 1 | G33: =Inputs!C33 -> 25 | H33: 25 | J33: _________
C34: Other Fixed Costs | E34: Acre | F34: 1 | G34: 0 | H34: 0 | J34: _________ | L34: Table 3. Machinery5
B35: Total Fixed Expenses | H35: =+SUM(H28:H34) -> 333.7158342 | J35: _________ | M35: Power Unit | N35: Implement | O35: Size | P35: Capital Recovery | Q35: Repairs & Maintenance | R35: Fuel, Oil & Filter | S35: Labor | T35: Total | U35: Your Farm ($/Acre)
B36: Total Expenses | H36: =+SUM(H24+H35) -> 932.1585261 | J36: _________ | L36: Chop Stalks | M36: Tractor, 215 hp | N36: Rotary Mower | O36: 15' | P36: =+'Field Operations'!$F$18 -> 8.038168676 | Q36: =+'Field Operations'!$G$18 -> 4.215707908 | R36: =+'Field Operations'!$H$18 -> 3.586613839 | S36: =+'Field Operations'!$I$18 -> 2.455357143 | T36: =SUM(P36:S36) -> 18.29584757 | U36: _________
B37: Return Above Specified Expenses | H37: =H7-H36 -> -104.1585261 | J37: _________ | L37: Burndown | M37: SP Boom Sprayer | O37: 90' | P37: =+'Field Operations'!$F$11 -> 9.480901321 | Q37: =+'Field Operations'!$G$11 -> 0.2942877349 | R37: =+'Field Operations'!$H$11 -> 0.3719451389 | S37: =+'Field Operations'!$I$11 -> 0.318287037 | T37: 10.46542123 | U37: _________
G38: Cash Cost per lb | H38: =(SUM(H9:H23)+H30+H31)/F4 -> 0.6395153842 | J38: _________ | L38: Plant | M38: Tractor, 215 hp | N38: Planter | O38: =+'Field Operations'!E19 -> 12-row | P38: =+'Field Operations'!$F$19 -> 13.31452689 | Q38: =+'Field Operations'!$G$19 -> 5.022235859 | R38: =+'Field Operations'!$H$19 -> 3.090005769 | S38: =+'Field Operations'!$I$19 -> 2.115384615 | T38: =SUM(P38:S38) -> 23.54215313 | U38: _________
G39: Economic Cost per lb | H39: =H36/F4 -> 0.8105726313 | J39: _________ | L39: Fertilize | M39: Tractor, 215 hp | N39: Fertilize Spreader | P39: =+'Field Operations'!$F$10 -> 5.103029692 | Q39: =+'Field Operations'!$G$10 -> 1.596529341 | R39: =+'Field Operations'!$H$10 -> 2.459392347 | S39: =+'Field Operations'!$I$10 -> 1.683673469 | T39: =SUM(P39:S39) -> 10.84262485 | U39: _________
L40: Weed Control | M40: SP Boom Sprayer | O40: 90' | P40: =+'Field Operations'!$F$11 -> 9.480901321 | Q40: =+'Field Operations'!$G$11 -> 0.2942877349 | R40: =+'Field Operations'!$H$11 -> 0.3719451389 | S40: =+'Field Operations'!$I$11 -> 0.318287037 | T40: =SUM(P40:S40) -> 10.46542123 | U40: _________
B41: Breakeven Price for Selected Yield | F41: Breakeven Yield for Selected Price | L41: Weed Control | M41: SP Boom Sprayer | O41: 90' | P41: =+'Field Operations'!$F$11 -> 9.480901321 | Q41: =+'Field Operations'!$G$11 -> 0.2942877349 | R41: =+'Field Operations'!$H$11 -> 0.3719451389 | S41: =+'Field Operations'!$I$11 -> 0.318287037 | T41: 10.46542123 | U41: _________
B42: Yield (lb.) | C42: Variable Cost ($/lb.) | D42: Total Specified Cost ($/lb.) | F42: Price ($/lb.) | G42: Variable Cost (lb.) | I42: Total Specified Cost (lb.) | L42: Weed Control | M42: SP Boom Sprayer | O42: 90' | P42: =+'Field Operations'!$F$11 -> 9.480901321 | Q42: =+'Field Operations'!$G$11 -> 0.2942877349 | R42: =+'Field Operations'!$H$11 -> 0.3719451389 | S42: =+'Field Operations'!$I$11 -> 0.318287037 | T42: =SUM(P42:S42) -> 10.46542123 | U42: _________
B43: =SUM(B44-50) -> 900 | C43: =$H$24/B43 -> 0.6649363243 | D43: =($H$24+$H$35)/B43 -> 1.035731696 | F43: =SUM(F44-0.05) -> 0.47 | G43: =+$H$24/F43 -> 1273.282323 | I43: =+($H$24+$H$35)/F43 -> 1983.316013 | L43: Weed Control | M43: Tractor, 215 hp | N43: Hooded Sprayer | P43: =+'Field Operations'!$F$20 -> 2.334950274 | Q43: =+'Field Operations'!$G$20 -> 0.3788848373 | R43: =+'Field Operations'!$H$20 -> 0.8583349359 | S43: =+'Field Operations'!$I$20 -> 0.5876068376 | T43: 4.159776885 | U43: _________
B44: 950 | C44: 0.6299396757 | D44: 0.9812195011 | F44: 0.52 | G44: 1150.851331 | I44: 1792.61255 | L44: Fertilize | M44: Tractor, 215 hp | N44: Fertilize Spreader | P44: ='Field Operations'!F10 -> 5.103029692 | Q44: ='Field Operations'!G10 -> 1.596529341 | R44: ='Field Operations'!H10 -> 2.459392347 | S44: ='Field Operations'!I10 -> 1.683673469 | T44: =SUM(P44:S44) -> 10.84262485 | U44: _________
B45: 1000 | C45: 0.5984426919 | D45: 0.9321585261 | F45: 0.57 | G45: 1049.899459 | I45: 1635.365835 | L45: Spray | M45: SP Boom Sprayer | O45: 90' | P45: =+'Field Operations'!$F$11 -> 9.480901321 | Q45: =+'Field Operations'!$G$11 -> 0.2942877349 | R45: =+'Field Operations'!$H$11 -> 0.3719451389 | S45: =+'Field Operations'!$I$11 -> 0.318287037 | T45: 10.46542123 | U45: _________
B46: 1050 | C46: 0.5699454208 | D46: 0.8877700248 | F46: 0.62 | G46: 965.2301482 | I46: 1503.481494 | L46: Spray | M46: SP Boom Sprayer | O46: 90' | P46: =+'Field Operations'!$F$11 -> 9.480901321 | Q46: =+'Field Operations'!$G$11 -> 0.2942877349 | R46: =+'Field Operations'!$H$11 -> 0.3719451389 | S46: =+'Field Operations'!$I$11 -> 0.318287037 | T46: 10.46542123 | U46: _________
B47: =SUM(B48-50) -> 1100 | C47: 0.5440388108 | D47: 0.8474168419 | F47: =SUM(F48-0.05) -> 0.67 | G47: 893.1980476 | I47: 1391.281382 | L47: Spray | M47: SP Boom Sprayer | O47: 90' | P47: =+'Field Operations'!$F$11 -> 9.480901321 | Q47: =+'Field Operations'!$G$11 -> 0.2942877349 | R47: =+'Field Operations'!$H$11 -> 0.3719451389 | S47: =+'Field Operations'!$I$11 -> 0.318287037 | T47: 10.46542123 | U47: _________
B48: =+F4 -> 1150 | C48: 0.5203849495 | D48: 0.8105726313 | F48: =+G4 -> 0.72 | G48: 831.1704054 | I48: 1294.66462 | L48: Harvest | M48: Picker/Module Builder (Round) | O48: 6-row | P48: =+'Field Operations'!$F$24 -> 68.17960813 | Q48: =+'Field Operations'!$G$24 -> 16.95163302 | R48: =+'Field Operations'!$H$24 -> 10.76570661 | S48: =+'Field Operations'!$I$24 -> 3.122918055 | T48: 99.01986581 | U48: _________
B49: =SUM(B48+50) -> 1200 | C49: 0.4987022432 | D49: 0.7767987717 | F49: =SUM(F48+0.05) -> 0.77 | G49: 777.1983011 | I49: 1210.595488 | L49: Harvest | M49: Tractor, 215 hp | N49: Module Handler | P49: =+'Field Operations'!$F$25 -> 3.276211575 | Q49: =+'Field Operations'!$G$25 -> 0.8396170809 | R49: =+'Field Operations'!$H$25 -> 2.280870045 | S49: =+'Field Operations'!$I$25 -> 1.561459027 | T49: 7.958157728 | U49: _________
B50: =SUM(B49+50) -> 1250 | C50: 0.4787541535 | D50: 0.7457268208 | F50: =SUM(F49+0.05) -> 0.82 | G50: 729.8081608 | I50: 1136.77869 | L50: Other | P50: 0 | Q50: 0 | R50: 0 | S50: 0 | T50: 0 | U50: _________
B51: 1300 | C51: 0.4603405322 | D51: 0.71704502 | F51: 0.87 | G51: 687.8651631 | I51: 1071.446582 | L51: Other | P51: 0 | Q51: 0 | R51: 0 | S51: 0 | T51: =SUM(P51:S51) -> 0 | U51: _________
B52: 1350 | C52: 0.4432908829 | D52: 0.6904877971 | F52: 0.92 | G52: 650.4811868 | I52: 1013.215789 | L52: Total | P52: =SUM(P36:P51) -> 171.7158342 | Q52: =SUM(Q36:Q51) -> 32.66115153 | R52: =SUM(R36:R51) -> 28.10393187 | S52: =SUM(S36:S51) -> 15.43808188 | T52: =SUM(T36:T51) -> 247.9189994 | U52: _________
B53: 1400 | C53: 0.4274590656 | D53: 0.6658275186 | F53: 0.97 | G53: 616.9512287 | I53: 960.9881712

Sheet Cotton CT
B1: 2025 Cotton, Conventional Tillage, Non-Irrigated Budget | L1: Table 1. Fertilizer & Lime3
E2: Unit | F2: Quantity | G2: Price | H2: Total | J2: Your Farm | L2: Fertilizer | M2: Description | N2: Quantity (lbs.) | O2: Price ($) | P2: Total ($/Acre) | Q2: Your Farm ($/Acre)
B3: Revenue1 | E3: Gross Revenue ($/Acre) | L3: Nitrogen | M3: Urea | N3: 35 | O3: =+Inputs!C44 -> 0.52 | P3: =+N3*O3 -> 18.2 | Q3: _________
C4: Cotton | E4: lb. | F4: 1150 | G4: =+Inputs!C7 -> 0.72 | H4: =F4*G4 -> 828 | J4: _________ | M4: UAN 32% | N4: 35 | O4: =Inputs!C47 -> 0.54 | P4: =+N4*O4 -> 18.9 | Q4: _________
C5: Government Payments | E5: $/acre | F5: 1 | G5: 0 | H5: =F5*G5 -> 0 | J5: _________ | L5: Phosphorous | M5: P2O5 | N5: 60 | O5: =+Inputs!C48 -> 0.66 | P5: =+N5*O5 -> 39.6 | Q5: _________
C6: Other Revenue | E6: $/acre | F6: 1 | G6: 0 | H6: 0 | J6: _________ | L6: Potassium | M6: K20 | N6: 90 | O6: =+Inputs!C50 -> 0.36 | P6: =+N6*O6 -> 32.4 | Q6: _________
B7: Total Revenue | H7: =SUM(H4:H6) -> 828 | J7: _________ | L7: Sulfur | N7: 10 | O7: =Inputs!C53 -> 0.3 | P7: 3 | Q7: _________
B8: Variable Expenses | L8: Boron | N8: 0.5 | O8: =+Inputs!$C$52 -> 0.7 | P8: 0.35 | Q8: _________
C9: Seed2 | E9: Thous. | F9: 50 | G9: =+Inputs!C40 -> 3.1 | H9: =+F9*G9 -> 155 | J9: _________ | L9: Lime | N9: 1000 | O9: =+Inputs!$C$51 -> 30 | P9: =+N9/2000*O9 -> 15 | Q9: _________
C10: Wrap | E10: lb. | F10: =F4 -> 1150 | G10: =+Inputs!C21 -> 0.0165 | H10: =+F10*G10 -> 18.975 | J10: _________ | L10: Other | N10: 0 | O10: 0 | P10: =N10*O10 -> 0 | Q10: _________
C11: Fertilizer & Lime (Table 1) | E11: Acre | F11: 1 | G11: =+P12 -> 127.45 | H11: 127.45 | J11: _________ | L11: Other | N11: 0 | O11: 0 | P11: =+N11*O11 -> 0 | Q11: _________
C12: Chemical (Table 2) | E12: Acre | F12: 1 | G12: =S30 -> 156.6266667 | H12: 156.6266667 | J12: _________ | L12: Total | P12: =SUM(P3:P11) -> 127.45 | Q12: _________
C13: Crop Scout or Consultant | E13: Acre | F13: 1 | G13: =+Inputs!C19 -> 12 | H13: 12 | J13: _________
C14: Repair & Maintenance (Table 3) | E14: Acre | F14: 1 | G14: =$Q$54 -> 38.69508355 | H14: 38.69508355 | J14: _________ | L14: Table 2. Chemicals4
C15: Fuel, Oil & Filter (Table 3) | E15: Acre | F15: 1 | G15: =$R$54 -> 37.58959723 | H15: 37.58959723 | J15: _________ | L15: Chemical | M15: Function | N15: Description | O15: Unit | P15: Number of Apps. | Q15: Quantity | R15: Price | S15: Total ($/Acre) | T15: Your Farm ($/Acre)
C16: Operator Labor (Table 3) | E16: Acre | F16: 1 | G16: =$S$54 -> 21.86820864 | H16: 21.86820864 | J16: _________ | L16: Herbicides | M16: Pre-Emerge | N16: Cotoran | O16: pt. | P16: 1 | Q16: 2 | R16: =Herbicides!B33 -> 6.25 | S16: =P16*Q16*R16 -> 12.5 | T16: _________
C17: Crop Insurance6 | E17: Acre | F17: 1 | G17: =+Inputs!C28 -> 11.15 | H17: =+F17*G17 -> 11.15 | J17: _________ | N17: Gramoxone | O17: oz. | P17: 1 | Q17: 32 | R17: =Herbicides!B61 -> 0.3125 | S17: =P17*Q17*R17 -> 10 | T17: _________
C18: Machinery Rental | E18: Acre | F18: 1 | G18: 0 | H18: 0 | J18: _________ | N18: Other | P18: 0 | Q18: 0 | R18: 0 | S18: =P18*Q18*R18 -> 0 | T18: _________
C19: Custom Work | E19: Acre | F19: 1 | G19: 0 | H19: 0 | J19: _________ | M19: Post-Emerge | N19: Sequence | O19: pt. | P19: 1 | Q19: 2.5 | R19: =Herbicides!B95 -> 8.5 | S19: 21.25 | T19: _________
C20: Other Transportation Costs | E20: Acre | F20: 1 | G20: 0 | H20: 0 | J20: _________ | N20: Envoke | O20: oz. | P20: 1 | Q20: 0.1 | R20: =Herbicides!B46 -> 126.6666667 | S20: 12.66666667 | T20: _________
C21: Other | E21: Acre | F21: 0 | G21: 0 | H21: =F21*G21 -> 0 | J21: _________ | N21: Caparol | O21: pt. | P21: 1 | Q21: 1 | R21: =Herbicides!B24 -> 6 | S21: 6 | T21: _________
C22: Other | E22: Acre | F22: 0 | G22: 0 | H22: =F22*G22 -> 0 | J22: _________ | N22: Other | P22: 0 | Q22: 0 | R22: 0 | S22: 0 | T22: _________
C23: Operating Interest7 | E23: % | F23: =SUM(H9:H22) -> 579.3545561 | G23: =+Inputs!C14 -> 0.08 | H23: =(F23*G23)/2 -> 23.17418224 | J23: _________ | L23: Growth Regulator | N23: Mepex (Mepiquat Chloride) | O23: acre | P23: 1 | Q23: 1 | R23: =+Herbicides!$B$70 -> 2.24 | S23: 2.24 | T23: _________
B24: Total Variable Expenses | H24: =SUM(H9:H23) -> 602.5287383 | J24: _________ | L24: Defoliant | N24: Other | O24: acre | P24: 1 | Q24: 1 | R24: =+Herbicides!$B$35 -> 18 | S24: 18 | T24: _________
B25: Return Above Variable Expenses | H25: =H7-H24 -> 225.4712617 | J25: _________ | L25: Boll Opener | N25: Ethephon | O25: acre | P25: 1 | Q25: 1 | R25: =+Herbicides!$B$20 -> 8.97 | S25: 8.97 | T25: _________
B26: Fixed Expenses | L26: Insecticides | N26: Foliar | O26: acre | P26: 1 | Q26: 1 | R26: =+Insecticides!$B$3 -> 65 | S26: =P26*Q26*R26 -> 65 | T26: _________
C27: Machinery | N27: Other | P27: 0 | Q27: 0 | R27: 0 | S27: 0 | T27: _________
C28: Capital Recovery (Table 3) | E28: Acre | F28: 1 | G28: =$P$54 -> 189.0251311 | H28: =+F28*G28 -> 189.0251311 | J28: _________ | L28: Fungicides | N28: Other | P28: 0 | Q28: 0 | R28: 0 | S28: 0 | T28: _________
C29: Other Fixed Machinery Costs | E29: Acre | F29: 1 | G29: =+Inputs!C32 -> 0 | H29: =+F29*G29 -> 0 | J29: _________ | N29: Other | P29: 0 | Q29: 0 | R29: 0 | S29: =P29*Q29*R29 -> 0 | T29: _________
C30: General Overhead | E30: Acre | F30: 1 | G30: 20 | H30: =+F30*G30 -> 20 | J30: _________ | L30: Total | S30: =SUM(S16:S29) -> 156.6266667 | T30: _________
C31: Cash Rent8 | E31: Acre | F31: 1 | G31: =+Inputs!C23 -> 117 | H31: =+F31*G31 -> 117 | J31: _________
C32: Insurance (Non-Machinery) | E32: Acre | F32: 1 | G32: =+Inputs!C32 -> 0 | H32: =+F32*G32 -> 0 | J32: _________ | L32: Table 3. Machinery5
C33: Management Labor10 | E33: Acre | F33: 1 | G33: =Inputs!C33 -> 25 | H33: =+F33*G33 -> 25 | J33: _________ | M33: Power Unit | N33: Implement | O33: Size | P33: Capital Recovery | Q33: Repairs & Maintenance | R33: Fuel, Oil & Filter | S33: Labor | T33: Total | U33: Your Farm ($/Acre)
C34: Other Fixed Costs | E34: Acre | F34: 1 | G34: 0 | H34: =+F34*G34 -> 0 | J34: _________ | L34: Chop Stalks | M34: Tractor, 215 hp | N34: Rotary Mower | O34: 15' | P34: =+'Field Operations'!$F$18 -> 8.038168676 | Q34: =+'Field Operations'!$G$18 -> 4.215707908 | R34: =+'Field Operations'!$H$18 -> 3.586613839 | S34: =+'Field Operations'!$I$18 -> 2.455357143 | T34: =SUM(P34:S34) -> 18.29584757 | U34: _________
B35: Total Fixed Expenses | H35: =+SUM(H27:H34) -> 351.0251311 | J35: _________ | L35: Chisel | M35: Tractor, 215 hp | N35: Chisel Plow | O35: 21' | P35: =+'Field Operations'!$F$4 -> 6.95270342 | Q35: =+'Field Operations'!$G$4 -> 2.034898445 | R35: =+'Field Operations'!$H$4 -> 3.375636555 | S35: =+'Field Operations'!$I$4 -> 2.31092437 | T35: =SUM(P35:S35) -> 14.67416279 | U35: _________
B36: Total Expenses | H36: =+SUM(H24+H35) -> 953.5538695 | J36: _________ | L36: Disk | M36: Tractor, 215 hp | N36: Tandem Disk | O36: 29' | P36: =+'Field Operations'!$F$5 -> 11.60044178 | Q36: =+'Field Operations'!$G$5 -> 2.015124735 | R36: =+'Field Operations'!$H$5 -> 2.716029412 | S36: =+'Field Operations'!$I$5 -> 1.859364435 | T36: =SUM(P36:S36) -> 18.19096036 | U36: _________
B37: Return Above Specified Expenses | H37: =H7-H36 -> -125.5538695 | J37: _________ | L37: Prepare Seedbed | M37: Tractor, 215 hp | N37: Cultimulcher | O37: 20' | P37: =+'Field Operations'!$F$7 -> 8.237053087 | Q37: =+'Field Operations'!$G$7 -> 2.27819658 | R37: =+'Field Operations'!$H$7 -> 3.765944531 | S37: =+'Field Operations'!$I$7 -> 2.578125 | T37: =SUM(P37:S37) -> 16.8593192 | U37: _________
G38: Cash Cost per lb | H38: =(SUM(H9:H23)+H30+H31)/F4 -> 0.6430684681 | J38: _________
G39: Economic Cost per lb | H39: =H36/F4 -> 0.8291772778 | J39: _________
L40: Fertilize | M40: Tractor, 215 hp | N40: Fertilize Spreader | P40: =+'Field Operations'!$F$10 -> 5.103029692 | Q40: =+'Field Operations'!$G$10 -> 1.596529341 | R40: =+'Field Operations'!$H$10 -> 2.459392347 | S40: =+'Field Operations'!$I$10 -> 1.683673469 | T40: =SUM(P40:S40) -> 10.84262485 | U40: _________
B41: Breakeven Price for Selected Yield | F41: Breakeven Yield for Selected Price | L41: Plant | M41: Tractor, 215 hp | N41: Planter | O41: =+'Field Operations'!E19 -> 12-row | P41: =+'Field Operations'!$F$19 -> 13.31452689 | Q41: =+'Field Operations'!$G$19 -> 5.022235859 | R41: =+'Field Operations'!$H$19 -> 3.090005769 | S41: =+'Field Operations'!$I$19 -> 2.115384615 | T41: 23.54215313 | U41: _________
B42: Yield (lb.) | C42: Variable Cost ($/lb.) | D42: Total Specified Cost ($/lb.) | F42: Price ($/lb.) | G42: Variable Cost (lb.) | I42: Total Specified Cost (lb.) | L42: Weed Control | M42: SP Boom Sprayer | O42: 90' | P42: =+'Field Operations'!$F$11 -> 9.480901321 | Q42: =+'Field Operations'!$G$11 -> 0.2942877349 | R42: =+'Field Operations'!$H$11 -> 0.3719451389 | S42: =+'Field Operations'!$I$11 -> 0.318287037 | T42: 10.46542123 | U42: _________
B43: =SUM(B44-50) -> 900 | C43: =$H$24/B43 -> 0.6694763759 | D43: =($H$24+$H$35)/B43 -> 1.059504299 | F43: =SUM(F44-0.05) -> 0.47 | G43: =+$H$24/F43 -> 1281.976039 | I43: =+($H$24+$H$35)/F43 -> 2028.83802 | L43: Weed Control | M43: SP Boom Sprayer | O43: 90' | P43: =+'Field Operations'!$F$11 -> 9.480901321 | Q43: =+'Field Operations'!$G$11 -> 0.2942877349 | R43: =+'Field Operations'!$H$11 -> 0.3719451389 | S43: =+'Field Operations'!$I$11 -> 0.318287037 | T43: 10.46542123 | U43: _________
B44: 950 | C44: 0.6342407772 | D44: 1.003740915 | F44: 0.52 | G44: 1158.709112 | I44: 1833.757441 | L44: Weed Control | M44: Tractor, 215 hp | N44: Hooded Sprayer | P44: =+'Field Operations'!$F$20 -> 2.334950274 | Q44: =+'Field Operations'!$G$20 -> 0.3788848373 | R44: =+'Field Operations'!$H$20 -> 0.8583349359 | S44: =+'Field Operations'!$I$20 -> 0.5876068376 | T44: 4.159776885 | U44: _________
B45: 1000 | C45: 0.6025287383 | D45: 0.9535538695 | F45: 0.57 | G45: 1057.067962 | I45: 1672.901525 | L45: Weed Control | M45: SP Boom Sprayer | O45: 90' | P45: =+'Field Operations'!$F$11 -> 9.480901321 | Q45: =+'Field Operations'!$G$11 -> 0.2942877349 | R45: =+'Field Operations'!$H$11 -> 0.3719451389 | S45: =+'Field Operations'!$I$11 -> 0.318287037 | T45: 10.46542123 | U45: _________
B46: 1050 | C46: 0.5738368937 | D46: 0.9081465423 | F46: 0.62 | G46: 971.8205457 | I46: 1537.990112 | L46: Fertilize | M46: Tractor, 215 hp | N46: Fertilize Spreader | P46: ='Field Operations'!F10 -> 5.103029692 | Q46: ='Field Operations'!G10 -> 1.596529341 | R46: ='Field Operations'!H10 -> 2.459392347 | S46: ='Field Operations'!I10 -> 1.683673469 | T46: ='Field Operations'!J10 -> 10.84262485 | U46: _________
B47: =SUM(B48-50) -> 1100 | C47: 0.5477533985 | D47: 0.8668671541 | F47: =SUM(F48-0.05) -> 0.67 | G47: 899.2966244 | I47: 1423.214731 | L47: Spray | M47: SP Boom Sprayer | O47: 90' | P47: =+'Field Operations'!$F$11 -> 9.480901321 | Q47: =+'Field Operations'!$G$11 -> 0.2942877349 | R47: =+'Field Operations'!$H$11 -> 0.3719451389 | S47: =+'Field Operations'!$I$11 -> 0.318287037 | T47: 10.46542123 | U47: _________
B48: =+F4 -> 1150 | C48: 0.5239380333 | D48: 0.8291772778 | F48: =+G4 -> 0.72 | G48: 836.8454699 | I48: 1324.380374 | L48: Spray | M48: SP Boom Sprayer | O48: 90' | P48: =+'Field Operations'!$F$11 -> 9.480901321 | Q48: =+'Field Operations'!$G$11 -> 0.2942877349 | R48: =+'Field Operations'!$H$11 -> 0.3719451389 | S48: =+'Field Operations'!$I$11 -> 0.318287037 | T48: 10.46542123 | U48: _________
B49: =SUM(B48+50) -> 1200 | C49: 0.5021072819 | D49: 0.7946282246 | F49: =SUM(F48+0.05) -> 0.77 | G49: 782.504855 | I49: 1238.381649 | L49: Spray | M49: SP Boom Sprayer | O49: 90' | P49: =+'Field Operations'!$F$11 -> 9.480901321 | Q49: =+'Field Operations'!$G$11 -> 0.2942877349 | R49: =+'Field Operations'!$H$11 -> 0.3719451389 | S49: =+'Field Operations'!$I$11 -> 0.318287037 | T49: 10.46542123 | U49: _________
B50: =SUM(B49+50) -> 1250 | C50: 0.4820229907 | D50: 0.7628430956 | F50: =SUM(F49+0.05) -> 0.82 | G50: 734.7911443 | I50: 1162.870573 | L50: Harvest | M50: Picker/Module Builder (Round) | O50: 6-row | P50: =+'Field Operations'!$F$24 -> 68.17960813 | Q50: =+'Field Operations'!$G$24 -> 16.95163302 | R50: =+'Field Operations'!$H$24 -> 10.76570661 | S50: =+'Field Operations'!$I$24 -> 3.122918055 | T50: 99.01986581 | U50: _________
B51: 1300 | C51: 0.4634836449 | D51: 0.7335029765 | F51: 0.87 | G51: 692.5617682 | I51: 1096.03893 | L51: Harvest | M51: Tractor, 215 hp | N51: Module Handler | P51: =+'Field Operations'!$F$25 -> 3.276211575 | Q51: =+'Field Operations'!$G$25 -> 0.8396170809 | R51: =+'Field Operations'!$H$25 -> 2.280870045 | S51: =+'Field Operations'!$I$25 -> 1.561459027 | T51: 7.958157728 | U51: _________
B52: 1350 | C52: 0.446317584 | D52: 0.7063361996 | F52: 0.92 | G52: 654.9225417 | I52: 1036.471597 | L52: Other | P52: 0 | Q52: 0 | R52: 0 | S52: 0 | T52: 0 | U52: _________
B53: 1400 | C53: 0.4303776702 | D53: 0.6811099068 | F53: 0.97 | G53: 621.1636478 | I53: 983.0452263 | L53: Other | P53: 0 | Q53: 0 | R53: 0 | S53: 0 | T53: =SUM(P53:S53) -> 0 | U53: _________
L54: Total | P54: =SUM(P34:P53) -> 189.0251311 | Q54: =SUM(Q34:Q53) -> 38.69508355 | R54: =SUM(R34:R53) -> 37.58959723 | S54: =SUM(S34:S53) -> 21.86820864 | T54: =SUM(T34:T53) -> 287.1780206 | U54: _________

Sheet Cotton Irr
B1: 2025 Cotton, No-Till, Irrigated Budget | L1: Table 1. Fertilizer & Lime3
E2: Unit | F2: Quantity | G2: Price | H2: Total | J2: Your Farm | L2: Fertilizer | M2: Description | N2: Quantity (lbs.) | O2: Price ($) | P2: Total ($/Acre) | Q2: Your Farm ($/Acre)
B3: Revenue1 | E3: Gross Revenue ($/Acre) | L3: Nitrogen | M3: Urea | N3: 45 | O3: =+Inputs!C44 -> 0.52 | P3: =+N3*O3 -> 23.4 | Q3: _________
C4: Cotton | E4: lb. | F4: 1500 | G4: =+Inputs!C7 -> 0.72 | H4: =F4*G4 -> 1080 | J4: _________ | M4: UAN 32% | N4: 45 | O4: =Inputs!C47 -> 0.54 | P4: =+N4*O4 -> 24.3 | Q4: _________
C5: Government Payments | E5: $/acre | F5: 1 | G5: 0 | H5: =F5*G5 -> 0 | J5: _________ | L5: Phosphorous | M5: P2O5 | N5: 60 | O5: =+Inputs!C48 -> 0.66 | P5: =+N5*O5 -> 39.6 | Q5: _________
C6: Other Revenue | E6: $/acre | F6: 1 | G6: 0 | H6: 0 | J6: _________ | L6: Potassium | M6: K20 | N6: 90 | O6: =+Inputs!C50 -> 0.36 | P6: =+N6*O6 -> 32.4 | Q6: _________
B7: Total Revenue | H7: =SUM(H4:H6) -> 1080 | J7: _________ | L7: Sulfur | N7: 10 | O7: =Inputs!C53 -> 0.3 | P7: 3 | Q7: _________
B8: Variable Expenses | L8: Boron | N8: 0.5 | O8: =+Inputs!$C$52 -> 0.7 | P8: 0.35 | Q8: _________
C9: Seed2 | E9: Thous. | F9: 60 | G9: =+Inputs!C40 -> 3.1 | H9: =+F9*G9 -> 186 | J9: _________ | L9: Lime | N9: 1000 | O9: =+Inputs!$C$51 -> 30 | P9: =+N9/2000*O9 -> 15 | Q9: _________
C10: Wrap | E10: lb. | F10: =F4 -> 1500 | G10: =+Inputs!C21 -> 0.0165 | H10: =+F10*G10 -> 24.75 | J10: _________ | L10: Other | N10: 0 | O10: 0 | P10: =N10*O10 -> 0 | Q10: _________
C11: Fertilizer & Lime (Table 1) | E11: Acre | F11: 1 | G11: =+P12 -> 138.05 | H11: 138.05 | J11: _________ | L11: Other | N11: 0 | O11: 0 | P11: =+N11*O11 -> 0 | Q11: _________
C12: Chemical (Table 2) | E12: Acre | F12: 1 | G12: =S32 -> 176.3766667 | H12: 176.3766667 | J12: _________ | L12: Total | P12: =SUM(P3:P11) -> 138.05 | Q12: _________
C13: Crop Scout or Consultant | E13: Acre | F13: 1 | G13: =+Inputs!C19 -> 12 | H13: 12 | J13: _________
C14: Repair & Maintenance (Table 3) | E14: Acre | F14: 1 | G14: =+Q52 -> 32.66115153 | H14: 32.66115153 | J14: _________ | L14: Table 2. Chemicals4
C15: Fuel, Oil & Filter (Table 3) | E15: Acre | F15: 1 | G15: =+R52 -> 28.10393187 | H15: 28.10393187 | J15: _________ | L15: Chemical | M15: Function | N15: Description | O15: Unit | P15: Number of Apps. | Q15: Quantity | R15: Price | S15: Total ($/Acre) | T15: Your Farm ($/Acre)
C16: Operator Labor (Table 3) | E16: Acre | F16: 1 | G16: =+S52 -> 15.43808188 | H16: 15.43808188 | J16: _________ | L16: Herbicides | M16: Burndown | N16: Roundup | O16: oz. | P16: 1 | Q16: 32 | R16: =Herbicides!B92 -> 0.4375 | S16: =P16*Q16*R16 -> 14 | T16: _________
C17: Crop Insurance6 | E17: Acre | F17: 1 | G17: =+Inputs!C28 -> 11.15 | H17: =+F17*G17 -> 11.15 | J17: _________ | N17: Clarity | O17: oz. | P17: 1 | Q17: 8 | R17: =Herbicides!B27 -> 0.71875 | S17: =P17*Q17*R17 -> 5.75 | T17: _________
C18: Machinery Rental | E18: Acre | F18: 1 | G18: 0 | H18: 0 | J18: _________ | M18: Pre-Emerge | N18: Cotoran | O18: pt. | P18: 1 | Q18: 2 | R18: =Herbicides!B33 -> 6.25 | S18: =P18*Q18*R18 -> 12.5 | T18: _________
C19: Custom Work | E19: Acre | F19: 1 | G19: 0 | H19: 0 | J19: _________ | N19: Gramoxone | O19: oz. | P19: 1 | Q19: 32 | R19: =Herbicides!B61 -> 0.3125 | S19: 10 | T19: _________
C20: Other Transportation Costs | E20: Acre | F20: 1 | G20: 0 | H20: 0 | J20: _________ | M20: Post-Emerge | N20: Sequence | O20: pt. | P20: 1 | Q20: 2.5 | R20: =Herbicides!B95 -> 8.5 | S20: 21.25 | T20: _________
C21: Irrigation Energy Cost9 | E21: Ac-In | F21: 6 | G21: =+Inputs!C57 -> 6.75 | H21: =+F21*G21 -> 40.5 | J21: _________ | N21: Envoke | O21: oz. | P21: 1 | Q21: 0.1 | R21: =Herbicides!B46 -> 126.6666667 | S21: 12.66666667 | T21: _________
C22: Irrigation System R&M9 | E22: Ac-In | F22: 6 | G22: =+Inputs!C58 -> 3 | H22: =+F22*G22 -> 18 | J22: _________ | N22: Caparol | O22: pt. | P22: 1 | Q22: 1 | R22: =Herbicides!B24 -> 6 | S22: 6 | T22: _________
C23: Other Irrigation Costs | E23: Acre | F23: 1 | G23: 0 | H23: =+F23*G23 -> 0 | J23: _________ | N23: Other | P23: 0 | Q23: 0 | R23: 0 | S23: 0 | T23: _________
C24: Other | E24: Acre | F24: 0 | G24: 0 | H24: =F24*G24 -> 0 | J24: _________ | L24: Growth Regulator | N24: Mepex (Mepiquat Chloride) | O24: acre | P24: 1 | Q24: 1 | R24: =+Herbicides!$B$70 -> 2.24 | S24: 2.24 | T24: _________
C25: Other | E25: Acre | F25: 0 | G25: 0 | H25: =F25*G25 -> 0 | J25: _________ | L25: Defoliant | N25: Defoliant | O25: acre | P25: 1 | Q25: 1 | R25: =+Herbicides!$B$35 -> 18 | S25: 18 | T25: _________
C26: Operating Interest7 | E26: % | F26: =SUM(H9:H25) -> 683.0298319 | G26: =+Inputs!C14 -> 0.08 | H26: =(F26*G26)/2 -> 27.32119328 | J26: _________ | L26: Boll Opener | N26: Ethephon | O26: acre | P26: 1 | Q26: 1 | R26: =+Herbicides!$B$20 -> 8.97 | S26: 8.97 | T26: _________
B27: Total Variable Expenses | H27: =SUM(H9:H26) -> 710.3510252 | J27: _________ | L27: Insecticides | N27: Foliar | O27: acre | P27: 1 | Q27: 1 | R27: =+Insecticides!$B$3 -> 65 | S27: =P27*Q27*R27 -> 65 | T27: _________
B28: Return Above Variable Expenses | H28: =H7-H27 -> 369.6489748 | J28: _________ | N28: Other | P28: 0 | Q28: 0 | R28: 0 | S28: 0 | T28: _________
B29: Fixed Expenses | L29: Fungicides | N29: Other | P29: 0 | Q29: 0 | R29: 0 | S29: 0 | T29: _________
C30: Machinery | N30: Other | P30: 0 | Q30: 0 | R30: 0 | S30: =P30*Q30*R30 -> 0 | T30: _________
C31: Capital Recovery (Table 3) | E31: Acre | F31: 1 | G31: =+P52 -> 171.7158342 | H31: =+F31*G31 -> 171.7158342 | J31: _________ | N31: Other | P31: 0 | Q31: 0 | R31: 0 | S31: =P31*Q31*R31 -> 0 | T31: _________
C32: Other Fixed Machinery Costs | E32: Acre | F32: 1 | G32: 0 | H32: =F32*G32 -> 0 | J32: _________ | L32: Total | S32: =SUM(S16:S31) -> 176.3766667 | T32: _________
C33: Capital Recovery (Irrigation Equipment)9 | E33: Acre | F33: 1 | G33: =+Inputs!C59 -> 100 | H33: =+F33*G33 -> 100 | J33: _________
C34: Other Irrigation Costs | E34: Acre | F34: 1 | G34: 0 | H34: 0 | J34: _________ | L34: Table 3. Machinery5
C35: General Overhead | E35: Acre | F35: 1 | G35: 30 | H35: 30 | J35: _________ | M35: Power Unit | N35: Implement | O35: Size | P35: Capital Recovery | Q35: Repairs & Maintenance | R35: Fuel, Oil & Filter | S35: Labor | T35: Total | U35: Your Farm ($/Acre)
C36: Cash Rent8 | E36: Acre | F36: 1 | G36: =Inputs!C22 -> 197 | H36: =+F36*G36 -> 197 | J36: _________ | L36: Chop Stalks | M36: Tractor, 215 hp | N36: Rotary Mower | O36: 15' | P36: =+'Field Operations'!$F$18 -> 8.038168676 | Q36: =+'Field Operations'!$G$18 -> 4.215707908 | R36: =+'Field Operations'!$H$18 -> 3.586613839 | S36: =+'Field Operations'!$I$18 -> 2.455357143 | T36: =SUM(P36:S36) -> 18.29584757 | U36: _________
C37: Insurance (Non-Machinery) | E37: Acre | F37: 1 | G37: =+Inputs!C32 -> 0 | H37: 0 | J37: _________ | L37: Burndown | M37: SP Boom Sprayer | O37: 90' | P37: =+'Field Operations'!$F$11 -> 9.480901321 | Q37: =+'Field Operations'!$G$11 -> 0.2942877349 | R37: =+'Field Operations'!$H$11 -> 0.3719451389 | S37: =+'Field Operations'!$I$11 -> 0.318287037 | T37: =SUM(P37:S37) -> 10.46542123 | U37: _________
C38: Management Labor10 | E38: Acre | F38: 1 | G38: =Inputs!C33 -> 25 | H38: =+F38*G38*2 -> 50 | J38: _________ | L38: Plant | M38: Tractor, 215 hp | N38: Planter | O38: =+'Field Operations'!E19 -> 12-row | P38: =+'Field Operations'!$F$19 -> 13.31452689 | Q38: =+'Field Operations'!$G$19 -> 5.022235859 | R38: =+'Field Operations'!$H$19 -> 3.090005769 | S38: =+'Field Operations'!$I$19 -> 2.115384615 | T38: =SUM(P38:S38) -> 23.54215313 | U38: _________
C39: Other Fixed Costs | E39: Acre | F39: 1 | G39: 0 | H39: 0 | J39: _________ | L39: Fertilize | M39: Tractor, 215 hp | N39: Fertilize Spreader | P39: =+'Field Operations'!$F$10 -> 5.103029692 | Q39: =+'Field Operations'!$G$10 -> 1.596529341 | R39: =+'Field Operations'!$H$10 -> 2.459392347 | S39: =+'Field Operations'!$I$10 -> 1.683673469 | T39: =SUM(P39:S39) -> 10.84262485 | U39: _________
B40: Total Fixed Expenses | H40: =+SUM(H30:H39) -> 548.7158342 | J40: _________ | L40: Weed Control | M40: SP Boom Sprayer | O40: 90' | P40: =+'Field Operations'!$F$11 -> 9.480901321 | Q40: =+'Field Operations'!$G$11 -> 0.2942877349 | R40: =+'Field Operations'!$H$11 -> 0.3719451389 | S40: =+'Field Operations'!$I$11 -> 0.318287037 | T40: =SUM(P40:S40) -> 10.46542123 | U40: _________
B41: Total Expenses | H41: =+SUM(H27+H40) -> 1259.066859 | J41: _________ | L41: Weed Control | M41: SP Boom Sprayer | O41: 90' | P41: =+'Field Operations'!$F$11 -> 9.480901321 | Q41: =+'Field Operations'!$G$11 -> 0.2942877349 | R41: =+'Field Operations'!$H$11 -> 0.3719451389 | S41: =+'Field Operations'!$I$11 -> 0.318287037 | T41: =SUM(P41:S41) -> 10.46542123 | U41: _________
B42: Return Above Specified Expenses | H42: =H7-H41 -> -179.0668594 | J42: _________ | L42: Weed Control | M42: SP Boom Sprayer | O42: 90' | P42: =+'Field Operations'!$F$11 -> 9.480901321 | Q42: =+'Field Operations'!$G$11 -> 0.2942877349 | R42: =+'Field Operations'!$H$11 -> 0.3719451389 | S42: =+'Field Operations'!$I$11 -> 0.318287037 | T42: 10.46542123 | U42: _________
G43: Cash Cost per lb | H43: =(SUM(H9:H26)+H35+H36)/F4 -> 0.6249006835 | J43: _________ | L43: Weed Control | M43: Tractor, 215 hp | N43: Hooded Sprayer | P43: =+'Field Operations'!$F$20 -> 2.334950274 | Q43: =+'Field Operations'!$G$20 -> 0.3788848373 | R43: =+'Field Operations'!$H$20 -> 0.8583349359 | S43: =+'Field Operations'!$I$20 -> 0.5876068376 | T43: =SUM(P43:S43) -> 4.159776885 | U43: _________
G44: Economic Cost per lb | H44: =H41/F4 -> 0.8393779063 | J44: _________ | L44: Fertilize | M44: Tractor, 215 hp | N44: Fertilize Spreader | P44: ='Field Operations'!F10 -> 5.103029692 | Q44: ='Field Operations'!G10 -> 1.596529341 | R44: ='Field Operations'!H10 -> 2.459392347 | S44: ='Field Operations'!I10 -> 1.683673469 | T44: 10.84262485 | U44: _________
L45: Spray | M45: SP Boom Sprayer | O45: 90' | P45: =+'Field Operations'!$F$11 -> 9.480901321 | Q45: =+'Field Operations'!$G$11 -> 0.2942877349 | R45: =+'Field Operations'!$H$11 -> 0.3719451389 | S45: =+'Field Operations'!$I$11 -> 0.318287037 | T45: 10.46542123 | U45: _________
B46: Breakeven Price for Selected Yield | F46: Breakeven Yield for Selected Price | L46: Spray | M46: SP Boom Sprayer | O46: 90' | P46: =+'Field Operations'!$F$11 -> 9.480901321 | Q46: =+'Field Operations'!$G$11 -> 0.2942877349 | R46: =+'Field Operations'!$H$11 -> 0.3719451389 | S46: =+'Field Operations'!$I$11 -> 0.318287037 | T46: 10.46542123 | U46: _________
B47: Yield (lb.) | C47: Variable Cost ($/lb.) | D47: Total Specified Cost ($/lb.) | F47: Price ($/lb.) | G47: Variable Cost (lb.) | I47: Total Specified Cost (lb.) | L47: Spray | M47: SP Boom Sprayer | O47: 90' | P47: =+'Field Operations'!$F$11 -> 9.480901321 | Q47: =+'Field Operations'!$G$11 -> 0.2942877349 | R47: =+'Field Operations'!$H$11 -> 0.3719451389 | S47: =+'Field Operations'!$I$11 -> 0.318287037 | T47: 10.46542123 | U47: _________
B48: =SUM(B49-50) -> 1250 | C48: =$H$27/B48 -> 0.5682808202 | D48: =($H$27+$H$40)/B48 -> 1.007253488 | F48: =SUM(F49-0.05) -> 0.47 | G48: =+$H$27/F48 -> 1511.38516 | I48: =+($H$27+$H$40)/F48 -> 2678.865658 | L48: Harvest | M48: Picker/Module Builder (Round) | O48: 6-row | P48: =+'Field Operations'!$F$24 -> 68.17960813 | Q48: =+'Field Operations'!$G$24 -> 16.95163302 | R48: =+'Field Operations'!$H$24 -> 10.76570661 | S48: =+'Field Operations'!$I$24 -> 3.122918055 | T48: 99.01986581 | U48: _________
B49: 1300 | C49: 0.5464238656 | D49: 0.9685129688 | F49: 0.52 | G49: 1366.059664 | I49: 2421.282422 | L49: Harvest | M49: Tractor, 215 hp | N49: Module Handler | P49: =+'Field Operations'!$F$25 -> 3.276211575 | Q49: =+'Field Operations'!$G$25 -> 0.8396170809 | R49: =+'Field Operations'!$H$25 -> 2.280870045 | S49: =+'Field Operations'!$I$25 -> 1.561459027 | T49: 7.958157728 | U49: _________
B50: 1350 | C50: 0.5261859446 | D50: 0.9326421181 | F50: 0.57 | G50: 1246.229869 | I50: 2208.889227 | L50: Other | P50: 0 | Q50: 0 | R50: 0 | S50: 0 | T50: 0 | U50: _________
B51: 1400 | C51: 0.5073935894 | D51: 0.899333471 | F51: 0.62 | G51: 1145.72746 | I51: 2030.752999 | L51: Other | P51: 0 | Q51: 0 | R51: 0 | S51: 0 | T51: =SUM(P51:S51) -> 0 | U51: _________
B52: =SUM(B53-50) -> 1450 | C52: 0.4898972588 | D52: 0.868321972 | F52: =SUM(F53-0.05) -> 0.67 | G52: 1060.225411 | I52: 1879.204268 | L52: Total | P52: =SUM(P36:P51) -> 171.7158342 | Q52: =SUM(Q36:Q51) -> 32.66115153 | R52: =SUM(R36:R51) -> 28.10393187 | S52: =SUM(S36:S51) -> 15.43808188 | T52: =SUM(T36:T51) -> 247.9189994 | U52: _________
B53: =+F4 -> 1500 | C53: 0.4735673501 | D53: 0.8393779063 | F53: =+G4 -> 0.72 | G53: 986.5986461 | I53: 1748.703971
B54: =SUM(B53+50) -> 1550 | C54: 0.458290984 | D54: 0.8123011996 | F54: =SUM(F53+0.05) -> 0.77 | G54: 922.533799 | I54: 1635.151765
B55: =SUM(B54+50) -> 1600 | C55: 0.4439693908 | D55: 0.7869167871 | F55: =SUM(F54+0.05) -> 0.82 | G55: 866.2817381 | I55: 1535.447389
B56: 1650 | C56: 0.4305157729 | D56: 0.7630708239 | F56: 0.87 | G56: 816.4954313 | I56: 1447.203287
B57: 1700 | C57: 0.4178535442 | D57: 0.7406275643 | F57: 0.92 | G57: 772.1206796 | I57: 1368.550934
B58: 1750 | C58: 0.4059148716 | D58: 0.7194667768 | F58: 0.97 | G58: 732.3206446 | I58: 1298.007072

Sheet Canola (hidden)
B1: 2019 Canola, Conventional Tillage, Non-Irrigated Budget | L1: Table 1. Fertilizer & Lime
E2: Unit | F2: Quantity | G2: Price | H2: Total | J2: Your Farm | L2: Fertilizer | M2: Description | N2: Quantity (lbs) | O2: Price ($) | P2: Total ($/Acre) | Q2: Your Farm ($/Acre)
B3: Revenue | E3: Gross Revenue ($/Acre) | L3: Nitrogen | M3: Urea | N3: 160 | O3: =+Inputs!C44 -> 0.52 | P3: =+N3*O3 -> 83.2 | Q3: _________
C4: Canola 1 | E4: Bu | F4: 50 | G4: =Inputs!#REF! ->  | H4: =F4*G4 ->  | J4: _________ | L4: Phosphorous | M4: P2O5 | N4: 80 | O4: =Inputs!C48 -> 0.66 | P4: =+N4*O4 -> 52.8 | Q4: _________
B5: Total Revenue | H5: =SUM(H4:H4) ->  | J5: _________ | L5: Potassium | M5: K20 | N5: 130 | O5: =+Inputs!C50 -> 0.36 | P5: 46.8 | Q5: _________
B6: Variable Expenses | L6: Lime | M6: Limestone | N6: 1000 | O6: =+Inputs!C51 -> 30 | P6: =+N6/2000*O6 -> 15 | Q6: _________
C7: Seed 2 | E7: Thous. | F7: 220 | G7: =Inputs!#REF! ->  | H7: =+F7*G7 ->  | J7: _________ | L7: Other | M7: Sulfur | N7: 20 | O7: =+Inputs!C54 -> 1.67 | P7: 33.4 | Q7: _________
C8: Fertilizer & Lime (Table 1) | E8: Acre | F8: 1 | G8: =+P9 -> 231.55 | H8: =+F8*G8 -> 231.55 | J8: _________ | L8: Other | M8: Boron | N8: 0.5 | O8: =+Inputs!C52 -> 0.7 | P8: =+N8*O8 -> 0.35 | Q8: _________
C9: Chemical (Table 2) 3 | E9: Acre | F9: 1 | G9: =+S20 ->  | H9: =F9*G9 ->  | J9: _________ | L9: Total | P9: =SUM(P3:P8) -> 231.55 | Q9: _________
C10: Crop Scout | E10: Acre | F10: 1 | G10: =+Inputs!C18 -> 10 | H10: =F10*G10 -> 10 | J10: _________ | L10: Table 2. Chemicals 3
C11: Repair & Maintenance (Table 3) 4 | E11: Acre | F11: 1 | G11: =+Q35 -> 37.66871336 | H11: =+F11*G11 -> 37.66871336 | J11: _________ | L11: Chemical | M11: Function | N11: Description | O11: Unit | P11: Number of Apps. | Q11: Quantity | R11: Price | S11: Total ($/Acre) | T11: Your Farm ($/Acre)
C12: Fuel, Oil & Filter (Table 3) 4 | E12: Acre | F12: 1 | G12: =+R35 -> 19.65136678 | H12: 19.65136678 | J12: _________ | L12: Herbicides | M12: Pre-plant | N12: Treflan | O12: pt. | P12: 1 | Q12: 2 | R12: =Herbicides!B105 -> 3.375 | S12: =R12*Q12 -> 6.75 | T12: _________
C13: Operator Labor (Table 3) 4 | E13: Acre | F13: 1 | G13: =+S35 -> 12.3375088 | H13: 12.3375088 | J13: _________ | M13: Post-planting | N13: Roundup | O13: pt. | P13: 2 | Q13: 3 | R13: =Herbicides!B92 -> 0.4375 | S13: =R13*Q13 -> 1.3125 | T13: _________
C14: Machinery Rental | E14: Acre | F14: 1 | G14: 0 | H14: 0 | J14: _________ | N14: Command | O14: pt. | P14: 1 | Q14: 0.25 | R14: =Herbicides!B31 -> 23.75 | S14: 5.9375 | T14: _________
C15: Custom Work | E15: Acre | F15: 1 | G15: 0 | H15: 0 | J15: _________ | M15: Desiccant | N15: Reglone | O15: pt. | P15: 1 | Q15: 3 | R15: =Herbicides!#REF! ->  | T15: _________
C16: Drying (Fuel/Electric) | E16: Bu | F16: =+F4 -> 50 | G16: 0 | H16: 0 | J16: _________ | N16: Other | R16: 0 | S16: 0 | T16: _________
C17: Cash Rent 5 | E17: Acre | F17: 1 | G17: =+Inputs!C23 -> 117 | H17: =F17*G17 -> 117 | J17: _________ | N17: Other | R17: 0 | S17: 0 | T17: _________
C18: Crop Insurance 6 | E18: Acre | F18: 1 | G18: =+Inputs!#REF! ->  | H18: =F18*G18 ->  | J18: _________ | L18: Insecticides | N18: Seed Treatment | O18: acre | P18: 1 | Q18: 1 | R18: =+Insecticides!#REF! ->  | T18: _________
C19: Operating Interest 7 | E19: % | F19: =SUM(H7:H18,H20) ->  | G19: 0.06 | H19: =(F19*G19)/2 ->  | J19: _________ | L19: Fungicides | N19: Foliar | O19: acre | P19: 1 | Q19: 1 | R19: =+Fungicides!#REF! ->  | T19: _________
C20: Other Variable Costs | E20: Acre | F20: 1 | G20: 0 | H20: =F20*G20 -> 0 | J20: _________ | L20: Total | S20: =SUM(S12:S19) ->  | T20: _________
B21: Total Variable Expenses | H21: =SUM(H7:H20) ->  | J21: _________ | L21: Table 3. Machinery 4
B22: Return Above Variable Expenses | H22: =H5-H21 ->  | J22: _________ | M22: Power Unit | N22: Implement | O22: Size | P22: Capital Recovery | Q22: Repairs & Maintenance | R22: Fuel, Oil & Filter | S22: Labor | T22: Total | U22: Your Farm ($/Acre)
B23: Fixed Expenses | L23: Fall/Winter | M23: ='Field Operations'!C11 -> SP Boom Sprayer | O23: ='Field Operations'!E11 -> 90' | P23: ='Field Operations'!F11 -> 9.480901321 | Q23: ='Field Operations'!G11 -> 0.2942877349 | R23: ='Field Operations'!H11 -> 0.3719451389 | S23: ='Field Operations'!I11 -> 0.318287037 | T23: =SUM(P23:S23) -> 10.46542123 | U23: _________
C24: Machinery 4 | M24: ='Field Operations'!C5 -> Tractor, 215 hp | N24: ='Field Operations'!D5 -> Tandem Disk | O24: ='Field Operations'!E5 -> 29' | P24: ='Field Operations'!F5 -> 11.60044178 | Q24: ='Field Operations'!G5 -> 2.015124735 | R24: ='Field Operations'!H5 -> 2.716029412 | S24: ='Field Operations'!I5 -> 1.859364435 | T24: =SUM(P24:S24) -> 18.19096036 | U24: _________
C25: Capital Recovery (Table 3) | E25: Acre | F25: 1 | G25: =+P35 -> 117.7823268 | H25: =+F25*G25 -> 117.7823268 | J25: _________ | M25: ='Field Operations'!C9 -> Tractor, 215 hp | N25: ='Field Operations'!D9 -> Grain Drill | O25: ='Field Operations'!E9 -> 20' | P25: ='Field Operations'!F9 -> 12.48563996 | Q25: ='Field Operations'!G9 -> 5.294680402 | R25: ='Field Operations'!H9 -> 4.303936607 | S25: ='Field Operations'!I9 -> 2.946428571 | T25: =SUM(P25:S25) -> 25.03068554 | U25: _________
C26: Other Fixed Machinery Costs | E26: Acre | F26: 1 | G26: =+Inputs!C30 -> 0 | H26: =+F26*G26 -> 0 | J26: _________ | M26: ='Field Operations'!C10 -> Tractor, 215 hp | N26: ='Field Operations'!D10 -> Fertilizer Spreader | O26: ='Field Operations'!E10 -> 0 | P26: ='Field Operations'!F10 -> 5.103029692 | Q26: ='Field Operations'!G10 -> 1.596529341 | R26: ='Field Operations'!H10 -> 2.459392347 | S26: ='Field Operations'!I10 -> 1.683673469 | T26: ='Field Operations'!J10 -> 10.84262485 | U26: _________
C27: Property Taxes | E27: Acre | F27: 1 | G27: =+Inputs!C31 -> 0 | H27: =+F27*G27 -> 0 | J27: _________ | L27: Winter/Spring | M27: ='Field Operations'!C11 -> SP Boom Sprayer | O27: ='Field Operations'!E11 -> 90' | P27: ='Field Operations'!F11 -> 9.480901321 | Q27: ='Field Operations'!G11 -> 0.2942877349 | R27: ='Field Operations'!H11 -> 0.3719451389 | S27: ='Field Operations'!I11 -> 0.318287037 | T27: ='Field Operations'!J11 -> 10.46542123 | U27: _________
C28: Insurance (Non-Machinery) | E28: Acre | F28: 1 | G28: =+Inputs!C32 -> 0 | H28: =+F28*G28 -> 0 | J28: _________ | M28: ='Field Operations'!C11 -> SP Boom Sprayer | O28: ='Field Operations'!E11 -> 90' | P28: ='Field Operations'!F11 -> 9.480901321 | Q28: ='Field Operations'!G11 -> 0.2942877349 | R28: ='Field Operations'!H11 -> 0.3719451389 | S28: ='Field Operations'!I11 -> 0.318287037 | T28: ='Field Operations'!J11 -> 10.46542123 | U28: _________
C29: Management Labor 8 | E29: Acre | F29: 2 | G29: =+Inputs!C33 -> 25 | H29: =+F29*G29 -> 50 | J29: _________ | M29: ='Field Operations'!C11 -> SP Boom Sprayer | O29: ='Field Operations'!E11 -> 90' | P29: ='Field Operations'!F11 -> 9.480901321 | Q29: ='Field Operations'!G11 -> 0.2942877349 | R29: ='Field Operations'!H11 -> 0.3719451389 | S29: ='Field Operations'!I11 -> 0.318287037 | T29: =SUM(P29:S29) -> 10.46542123 | U29: _________
C30: Other Fixed Costs 9 | E30: Acre | F30: 1 | G30: 0 | H30: =+F30*G30 -> 0 | J30: _________ | M30: =+'Field Operations'!C11 -> SP Boom Sprayer | O30: =+'Field Operations'!E11 -> 90' | P30: =+'Field Operations'!F11 -> 9.480901321 | Q30: =+'Field Operations'!G11 -> 0.2942877349 | R30: =+'Field Operations'!H11 -> 0.3719451389 | S30: =+'Field Operations'!I11 -> 0.318287037 | T30: =+'Field Operations'!J11 -> 10.46542123 | U30: _________
B31: Total Fixed Expenses | H31: =+SUM(H25:H29) -> 167.7823268 | J31: _________ | L31: ='Field Operations'!B13 -> Harvest | M31: ='Field Operations'!C13 -> Combine | N31: ='Field Operations'!D13 -> Grain Head | O31: ='Field Operations'!E13 -> 30' | P31: ='Field Operations'!F13 -> 27.99694175 | Q31: ='Field Operations'!G13 -> 26.02550332 | R31: ='Field Operations'!H13 -> 6.455904911 | S31: ='Field Operations'!I13 -> 2.455357143 | T31: =SUM(P31:S31) -> 62.93370712 | U31: _________
B32: Return Above All Specified Expenses | H32: =H5-H21-H31 ->  | J32: _________ | M32: ='Field Operations'!C14 -> Tractor, 215 hp | N32: ='Field Operations'!D14 -> Grain Cart | P32: ='Field Operations'!F14 -> 7.021767002 | Q32: ='Field Operations'!G14 -> 0.8354368884 | R32: ='Field Operations'!H14 -> 1.506377813 | S32: ='Field Operations'!I14 -> 1.03125 | T32: =SUM(P32:S32) -> 10.3948317 | U32: _________
M33: ='Field Operations'!C17 -> Semi Tractor/Trailer | O33: ='Field Operations'!E14 -> 800 bu | P33: ='Field Operations'!F17 -> 6.17 | Q33: ='Field Operations'!G17 -> 0.43 | R33: ='Field Operations'!H17 -> 0.35 | S33: ='Field Operations'!I17 -> 0.77 | T33: ='Field Operations'!J17 -> 7.72 | U33: _________
B34: Breakeven Price For Selected Yield | F34: Breakeven Yield for Selected Price | M34: Other | U34: _________
B35: Yield (bu) | C35: Variable Cost ($/bu) | D35: Total Specified Cost ($/bu) | F35: Price ($/bu) | G35: Variable Cost (bu) | I35: Total Specified Cost (bu) | L35: Total | P35: =SUM(P22:P34) -> 117.7823268 | Q35: =SUM(Q22:Q34) -> 37.66871336 | R35: 19.65136678 | S35: 12.3375088 | T35: 187.4399157 | U35: _________
B36: =SUM(B37-5) -> 30 | C36: =$H$21/B36 ->  | D36: =($H$21+$H$31)/B36 ->  | F36: =SUM(F37-0.25) ->  | G36: =+$H$21/F36 ->  | I36: =+($H$21+$H$31)/F36 -> 
B37: 35 | G37: =+$H$21/F37 -> 
B38: 40
B39: =SUM(B40-5) -> 45 | F39: =SUM(F40-0.25) -> 
B40: =+F4 -> 50 | F40: =+G4 -> 
B41: =SUM(B40+5) -> 55 | F41: =SUM(F40+0.25) -> 
B42: =SUM(B41+5) -> 60 | F42: =SUM(F41+0.25) -> 
B43: 65
B44: 70
B46: FOOTNOTES
B47: 1) Canola prices will vary across regions. Additionally, access to markets in Tennessee may be problematic. Should a producer consider adding canola to their rotation, a production contract and/or marketing strategy should be fully explored prior to the planting decision, as limited buyers are available. Counter party risk is a major concern for small acreage crops. Canola yields vary tremendously across the state. Depending on growing conditions and management practices yields may range from 30-80 bu/acre.
B48: 2) Seed cost varies by seed provider, variety, and seeding rate. Check with farm suppliers for rebates, discounts, and incentives for seed and chemicals. Substantial cost savings may be available. Check with market contractor to determine if additional cost savings are available for products and services.
B49: 3) Chemical application will vary by region: Check seed supplier or production specialist for best alternatives. Since only a few herbicides are available for weed control for canola in Tennessee, producers should follow crop production recommendations. Producers should be aware that many chemicals used in the production of other row-crops in Tennessee may have a detrimental impact on canola.
B50: 4) Machinery expenses will vary dramatically by operation, financial resources, and land base. The machinery cost estimates provided in Table 3 are provided as an estimate of cost of ownership and operation for specified pieces of machinery that would be available to a "representative" row-crop farm in Tennessee. To estimate machinery costs for a specific set of equipment, interested parties can utilize the Excel version of the budgets and modify the Machinery Assumptions Table.
B51: 5) Cash rental rates are the 2018 USDA-NASS reported cash rental rates for cropland in Tennessee. Substantial differences may exist in cash rental rates reported by NASS and the prevailing rate in your location.
B52: 6) Crop insurance is an estimate and will vary by policy, county, and coverage election. The estimate provided is the average premium paid per insured acre of canola in Tennessee for the previous production year as reported by USDA RMA's Summary of Business Report.
B53: 7) Operating interest is assumed to be charged on half of all variable expenses.
B54: 8) Management labor is anticipated to be double what it is for conventional Tennessee row-crops.
B55: 9) Additional costs may be incurred due to specialized equipment required in the handling, hauling, and storage of canola.

Sheet G. Sorghum NT
B1: 2025 Grain Sorghum, No-Till, Non-Irrigated Budget | L1: Table 1. Fertilizer & Lime3
E2: Unit | F2: Quantity | G2: Price | H2: Total | J2: Your Farm | L2: Fertilizer | M2: Description | N2: Quantity (lbs.) | O2: Price ($) | P2: Total ($/Acre) | Q2: Your Farm ($/Acre)
B3: Revenue1 | E3: Gross Revenue ($/Acre) | L3: Nitrogen | M3: Urea | N3: 45 | O3: =+Inputs!C44 -> 0.52 | P3: =+N3*O3 -> 23.4 | Q3: _________
C4: Grain Sorghum | E4: Bu | F4: 110 | G4: =+Inputs!C6 -> 4.7 | H4: =F4*G4 -> 517 | J4: _________ | L4: Nitrogen | M4: 32% UAN | N4: 45 | O4: =Inputs!C47 -> 0.54 | P4: =+N4*O4 -> 24.3 | Q4: _________
B5: Total Revenue | H5: =SUM(H4:H4) -> 517 | J5: _________ | L5: Phosphorous | M5: P2O5 | N5: 30 | O5: =+Inputs!C48 -> 0.66 | P5: =+N5*O5 -> 19.8 | Q5: _________
B6: Variable Expenses | L6: Potassium | M6: K20 | N6: 30 | O6: =+Inputs!C50 -> 0.36 | P6: =+N6*O6 -> 10.8 | Q6: _________
C7: Seed 2 | E7: Thous. | F7: 85 | G7: =+Inputs!C39 -> 0.32 | H7: =+F7*G7 -> 27.2 | J7: _________ | L7: Lime | N7: 1000 | O7: =+Inputs!C51 -> 30 | P7: =+N7/2000*O7 -> 15 | Q7: _________
C8: Fertilizer & Lime (Table 1) | E8: Acre | F8: 1 | G8: =P8 -> 93.3 | H8: =+F8*G8 -> 93.3 | J8: _________ | L8: Total | P8: =SUM(P3:P7) -> 93.3 | Q8: _________
C9: Chemical (Table 2) | E9: Acre | F9: 1 | G9: =S20 -> 77.16375 | H9: =F9*G9 -> 77.16375 | J9: _________ | L9: Table 2. Chemicals 4
C10: Crop Scout | E10: Acre | F10: 1 | G10: =+Inputs!C18 -> 10 | H10: =F10*G10 -> 10 | J10: _________ | L10: Chemical | M10: Function | N10: Description | O10: Unit | P10: Number of Apps. | Q10: Quantity | R10: Price | S10: Total ($/Acre) | T10: Your Farm ($/Acre)
C11: Repair & Maintenance (Table 3) | E11: Acre | F11: 1 | G11: =+Q34 -> 35.65242588 | H11: =+F11*G11 -> 35.65242588 | J11: _________ | L11: Herbicides | M11: Burndown | N11: Gramoxone 3SL | O11: oz. | P11: 1 | Q11: 28 | R11: =+Herbicides!B61 -> 0.3125 | S11: =P11*Q11*R11 -> 8.75 | T11: _________
C12: Fuel, Oil & Filter (Table 3) | E12: Acre | F12: 1 | G12: =+R34 -> 17.84829744 | H12: 17.84829744 | J12: _________ | N12: Other | R12: 0 | S12: =P12*Q12*R12 -> 0 | T12: _________
C13: Operator Labor (Table 3) | E13: Acre | F13: 1 | G13: =+S34 -> 11.79192773 | H13: 11.79192773 | J13: _________ | M13: Pre-Emerge | N13: Bicep II Magnum | O13: qt. | P13: 1 | Q13: 1.7 | R13: =+Herbicides!B18 -> 14.3 | S13: =P13*Q13*R13 -> 24.31 | T13: _________
C14: Machinery Rental | E14: Acre | F14: 0 | G14: 0 | H14: 0 | J14: _________ | N14: Other | R14: 0 | S14: 0 | T14: _________
C15: Custom Work | E15: Acre | F15: 0 | G15: 0 | H15: 0 | J15: _________ | M15: Post-Emerge | N15: Atrazine | O15: qt. | P15: 1 | Q15: 2 | R15: =+Herbicides!B9 -> 3.38 | S15: 6.76 | T15: _________
C16: Drying (Fuel/Electric) | E16: Bu | F16: =+F4 -> 110 | G16: 0 | H16: 0 | J16: _________ | M16: Harvest Aid | N16: Aim 2EC | O16: oz. | P16: 1 | Q16: 1 | R16: =+Herbicides!B5 -> 7.34375 | S16: 7.34375 | T16: _________
C17: Crop Insurance6 | E17: Acre | F17: 1 | G17: =+Inputs!C27 -> 4.22 | H17: =F17*G17 -> 4.22 | J17: _________ | L17: Insecticides | N17: Foliar | O17: acre | P17: 1 | Q17: 1 | R17: =Insecticides!B4 -> 30 | S17: =P17*Q17*R17 -> 30 | T17: _________
C18: Other | E18: Acre | F18: 1 | G18: 0 | H18: =F18*G18 -> 0 | J18: _________ | N18: Other | O18: acre | R18: 0 | S18: 0 | T18: _________
C19: Other | E19: Acre | F19: 1 | G19: 0 | H19: =(F19*G19)/2 -> 0 | J19: _________ | N19: Other | O19: acre | R19: 0 | S19: =P19*Q19*R19 -> 0 | T19: _________
C20: Operating Interest 7 | E20: % | F20: =SUM(H7:H19) -> 277.176401 | G20: =+Inputs!C14 -> 0.08 | H20: =(F20*G20)/2 -> 11.08705604 | J20: _________ | L20: Total | S20: =SUM(S11:S19) -> 77.16375 | T20: _________
B21: Total Variable Expenses | H21: =SUM(H7:H20) -> 288.2634571 | J21: _________ | L21: Table 3. Machinery 5
B22: Return Above Variable Expenses | H22: =H5-H21 -> 228.7365429 | J22: _________ | M22: Power Unit | N22: Implement | O22: Size | P22: Capital Recovery | Q22: Repairs & Maintenance | R22: Fuel, Oil & Filter | S22: Labor | T22: Total | U22: Your Farm ($/Acre)
B23: Fixed Expenses | L23: Burndown | M23: SP Boom Sprayer | O23: 90' | P23: =+'Field Operations'!F11 -> 9.480901321 | Q23: =+'Field Operations'!G11 -> 0.2942877349 | R23: =+'Field Operations'!H11 -> 0.3719451389 | S23: =+'Field Operations'!I11 -> 0.318287037 | T23: =SUM(P23:S23) -> 10.46542123 | U23: _________
C24: Machinery | L24: Plant | M24: Tractor, 215 hp | N24: Planter | O24: 16-row | P24: =+'Field Operations'!F8 -> 15.97084823 | Q24: =+'Field Operations'!G8 -> 2.876988318 | R24: =+'Field Operations'!H8 -> 2.317504327 | S24: =+'Field Operations'!I8 -> 1.586538462 | T24: =SUM(P24:S24) -> 22.75187934 | U24: _________
C25: Capital Recovery (Table 3) | E25: Acre | F25: 1 | G25: =+P34 -> 116.280123 | H25: =+F25*G25 -> 116.280123 | J25: _________ | L25: Fertilize | M25: Tractor, 215 hp | N25: Fertilize Spreader | P25: ='Field Operations'!F10 -> 5.103029692 | Q25: ='Field Operations'!G10 -> 1.596529341 | R25: ='Field Operations'!H10 -> 2.459392347 | S25: ='Field Operations'!I10 -> 1.683673469 | T25: ='Field Operations'!J10 -> 10.84262485 | U25: _________
C26: Other Fixed Machinery Costs | E26: Acre | F26: 1 | G26: 0 | H26: =+F26*G26 -> 0 | J26: _________ | L26: Weed Control | M26: SP Boom Sprayer | O26: 90' | P26: =+'Field Operations'!F11 -> 9.480901321 | Q26: =+'Field Operations'!G11 -> 0.2942877349 | R26: =+'Field Operations'!H11 -> 0.3719451389 | S26: =+'Field Operations'!I11 -> 0.318287037 | T26: =SUM(P26:S26) -> 10.46542123 | U26: _________
C27: General Overhead | E27: Acre | F27: 1 | G27: 20 | H27: =+F27*G27 -> 20 | J27: _________ | L27: Fertilize | M27: Tractor, 215 hp | N27: Fertilize Spreader | P27: =+'Field Operations'!F10 -> 5.103029692 | Q27: =+'Field Operations'!G10 -> 1.596529341 | R27: =+'Field Operations'!H10 -> 2.459392347 | S27: =+'Field Operations'!I10 -> 1.683673469 | T27: =SUM(P27:S27) -> 10.84262485 | U27: _________
C28: Cash Rent8 | E28: Acre | F28: 1 | G28: =Inputs!C23 -> 117 | H28: =+F28*G28 -> 117 | J28: _________ | L28: Weed Control | M28: SP Boom Sprayer | O28: 90' | P28: =+'Field Operations'!F11 -> 9.480901321 | Q28: =+'Field Operations'!G11 -> 0.2942877349 | R28: =+'Field Operations'!H11 -> 0.3719451389 | S28: =+'Field Operations'!I11 -> 0.318287037 | T28: =SUM(P28:S28) -> 10.46542123 | U28: _________
C29: Management Labor10 | E29: Acre | F29: 1 | G29: =+Inputs!C13 -> 25 | H29: =+F29*G29 -> 25 | J29: _________ | L29: Insecticide | M29: SP Boom Sprayer | O29: 90' | P29: =+'Field Operations'!F11 -> 9.480901321 | Q29: =+'Field Operations'!G11 -> 0.2942877349 | R29: =+'Field Operations'!H11 -> 0.3719451389 | S29: =+'Field Operations'!I11 -> 0.318287037 | T29: =SUM(P29:S29) -> 10.46542123 | U29: _________
C30: Other Fixed Costs | E30: Acre | F30: 1 | G30: 0 | H30: =+F30*G30 -> 0 | J30: _________ | L30: Insecticide | M30: SP Boom Sprayer | O30: 90' | P30: =+'Field Operations'!F11 -> 9.480901321 | Q30: =+'Field Operations'!G11 -> 0.2942877349 | R30: =+'Field Operations'!H11 -> 0.3719451389 | S30: =+'Field Operations'!I11 -> 0.318287037 | T30: =SUM(P30:S30) -> 10.46542123 | U30: _________
B31: Total Fixed Expenses | H31: =+SUM(H25:H30) -> 278.280123 | J31: _________ | L31: Harvest | M31: Combine | N31: Grain Head | O31: 30' | P31: =+'Field Operations'!F13 -> 27.99694175 | Q31: =+'Field Operations'!G13 -> 26.02550332 | R31: =+'Field Operations'!H13 -> 6.455904911 | S31: =+'Field Operations'!I13 -> 2.455357143 | T31: 36.77389921 | U31: _________
B32: Total Expenses | H32: =H21+H31 -> 566.5435801 | J32: _________ | L32: Haul | M32: Tractor, 215 hp | N32: Grain Cart | P32: =+'Field Operations'!F14 -> 7.021767002 | Q32: =+'Field Operations'!G14 -> 0.8354368884 | R32: =+'Field Operations'!H14 -> 1.506377813 | S32: =+'Field Operations'!I14 -> 1.03125 | T32: =SUM(P32:S32) -> 10.3948317 | U32: _________
B33: Return Above All Specified Expenses | H33: =H5-H21-H31 -> -49.54358006 | J33: _________ | L33: Haul | M33: Semi Tractor/Trailer | P33: =+'Field Operations'!F16 -> 7.68 | Q33: =+'Field Operations'!G16 -> 1.25 | R33: =+'Field Operations'!H16 -> 0.79 | S33: =+'Field Operations'!I16 -> 1.76 | T33: 9.93 | U33: _________
G34: Cash Cost per lb | H34: =(SUM(H7:H20)+H27+H28)/F4 -> 3.866031428 | J34: _________ | L34: Total | P34: =SUM(P23:P33) -> 116.280123 | Q34: =SUM(Q23:Q33) -> 35.65242588 | R34: =SUM(R23:R33) -> 17.84829744 | S34: =SUM(S23:S33) -> 11.79192773 | T34: =SUM(T23:T33) -> 153.8629661 | U34: _________
G35: Economic Cost per lb | H35: =H32/F4 -> 5.150396182 | J35: _________
B37: Breakeven Price for Selected Yield | F37: Breakeven Yield for Selected Price
B38: Yield (bu) | C38: Variable Cost ($/bu) | D38: Total Specified Cost ($/bu) | F38: Price ($/bu) | G38: Variable Cost (bu) | I38: Total Specified Cost (bu)
B39: =SUM(B40-5) -> 90 | C39: =$H$21/B39 -> 3.202927301 | D39: =($H$21+$H$31)/B39 -> 6.294928667 | F39: =SUM(F40-0.05) -> 4.5 | G39: =+$H$21/F39 -> 64.05854602 | I39: =+($H$21+$H$31)/F39 -> 125.8985733
B40: 95 | C40: 3.03435218 | D40: 5.963616632 | F40: 4.55 | G40: =+$H$21/F40 -> 63.35460595 | I40: 124.5150725
B41: 100 | C41: 2.882634571 | D41: 5.665435801 | F41: 4.6 | G41: 62.66596893 | I41: 123.1616478
B42: =SUM(B43-5) -> 105 | C42: 2.745366258 | D42: 5.395653143 | F42: =SUM(F43-0.05) -> 4.65 | G42: 61.99214131 | I42: 121.837329
B43: =+F4 -> 110 | C43: 2.620576883 | D43: 5.150396182 | F43: =+G4 -> 4.7 | G43: 61.33265044 | I43: 120.5411872
B44: =SUM(B43+5) -> 115 | C44: 2.506638757 | D44: 4.926465914 | F44: =SUM(F43+0.05) -> 4.75 | G44: 60.6870436 | I44: 119.2723326
B45: =SUM(B44+5) -> 120 | C45: 2.402195476 | D45: 4.721196501 | F45: =SUM(F44+0.05) -> 4.8 | G45: 60.05488689 | I45: 118.0299125
B46: 125 | C46: 2.306107657 | D46: 4.53234864 | F46: 4.85 | G46: 59.43576435 | I46: 116.8131093
B47: 130 | C47: 2.217411208 | D47: 4.358027539 | F47: 4.9 | G47: 58.82927696 | I47: 115.6211388

Sheet Footnotes
A1: FOOTNOTES
A2: 1 Revenue
A3: Corn price was estimated using weighted average futures prices from September 2025 to July 2026, adjusted by five year average monthly basis in Tennessee. Corn yield is the predicted 2025 linear trend line yield for corn in Tennessee, using state average USDA-NASS yields from 2004-2024. Irrigated corn yield was estimated at 250 bu/acre.
A4: Soybean price was estimated using weighted average futures prices from November 2025 to August 2026, adjusted by average monthly basis in Tennessee. Soybean yield is the predicted 2025 linear trend line yield for soybeans in Tennessee, using state average USDA-NASS yields from 2004-2024. Irrigated soybean yield was estimated at 65 bu/acre.
A5: Wheat/Soybean. Soybean yield is the predicted 2025 linear trend line yield for soybeans in Tennessee, adjusted for double cropping system. Wheat price was estimated using weighted average futures prices from July 2025 to May 2026, adjusted by average monthly basis in Tennessee. Wheat yield is the predicted 2025 linear trend line yield for wheat in Tennessee, using state average yields from 2004-2024. If a market for wheat straw is available, add an appropriate amount to other revenue ($/acre) based on the expected yield and price of the straw, being sure to account for additional harvest and marketing costs.
A6: Cotton price was estimated using weighted average futures prices from December 2025 to July 2026, adjusted by average monthly basis in Tennessee. Cotton yield is the predicted 2025 linear trend line yield for cotton in Tennessee, using state average yields from 2004-2024. Most ginning arrangements provide producers cottonseed revenue net ginning costs, which should be included as additional revenue.
A7: Sorghum price is estimated 10 cents above the price of corn, based on expected market conditions. Due to low acres and limited market access, prices may swing dramatically. Recently, in Tennessee, sorghum has been 10-25 cents above the price of corn.
A9: 2 Seed Costs
A10: Corn: Assumes a bag of seed costs $310 and contains 80,000 seeds ($3.88/thousand seeds). Seeding rate of 32,000 seeds/acre (36,500 for irrigated). Seed treatment is included in the price. Seed cost varies by variety. Seed treatments included.
A11: Soybeans: Assumes a bag of seed costs $65 and contains 140,000 seeds ($0.46/thousand seeds). Seeding rate of 140,000 seeds/acre (150,000 for irrigated). Seed treatment is included in the price. Seed cost varies by variety. Seed treatments included. | H11: =3.1*50 -> 155
A12: Wheat: Assumes seeding rate of 2.5 bu/acre at $17.50 per bushel. Seed treatment is included in the price. Seed cost varies by variety. Seed treatments included.
A13: Cotton: Assumes $3.10/thousand seeds. Seeding rate of 50,000 seeds/acre (60,000 for irrigated). Seed treatment is included in the price. Seed cost varies by variety. Seed treatments included.
A14: Check with farm suppliers for rebates, discounts and incentives for seed and chemicals. Substantial cost savings may be available.
A16: 3 Fertilizer and Lime
A17: Lime is assumed to be applied once every four years at a rate of 2 tons per acre (includes the cost of application). N, P and K quantities and prices are shown in elemental lb. Check with farm suppliers for rebates, discounts and incentives for fertilizers, seed and chemicals. Substantial cost savings may be available. Substantial variation in prices for fertilizer exist based on quantity purchased, product purchased and location of purchase.
A19: 4 Chemicals
A20: Assumes a normal crop rotation with minimal weed infestation. A continuous monocrop system may require additional expenses for chemicals and/or land preparation. Weed control chemicals should be selected for specific weed or grass problems that are present. Generic chemicals may be a cost-effective option; contact your chemical supplier, qualified consultant or weed control specialist. Alternative weed control options are available in the University of Tennessee Weed Control Manual for Tennessee. Follow all labels, state and national regulations when using all chemicals. Check with farm suppliers for rebates, discounts and incentives for seed and chemicals. Substantial cost savings may be available. Seed treatments, such as some nematicide treatments, are optional and costs vary depending on product used.
A22: 5 Machinery
A23: Machinery expenses will vary dramatically by operation, financial resources and land base. The machinery cost estimates provided in Table 3 are provided as an estimate of cost of ownership and operation for specified pieces of machinery that would be available to a "representative" row-crop farm in Tennessee. To estimate machinery costs for a specific set of equipment, interested parties can utilize the Excel version of the budgets and modify the Machinery Assumptions Table.
A25: 6 Crop Insurance
A26: Crop insurance is an estimate and will vary by policy, county and coverage election. The estimate provided is the average premium paid per insured acre for each commodity in Tennessee for the previous production year, as reported by USDA RMA's Summary of Business Report.
A28: 7 Operating Interest
A29: Operating interest is assumed to be charged on half of all variable expenses.
A31: 8 Cash Rental Rates
A32: Cash rental rates are the 2024 USDA-NASS reported cash rental rates for cropland in Tennessee. Substantial differences may exist in cash rental rates reported by NASS and the prevailing rate in your location.
A34: 9 Irrigation
A35: Center-pivot irrigation costs are estimated using the following assumptions: purchase price and installation cost of $95,000; useful life of 20 years; and an irrigated acreage of 125 acres. Well depth and energy source will dramatically impact irrigation costs. Irrigation rates should be adjusted to meet commodity- and farm-specific applications. Irrigation costs are site and energy-source specific.
A37: 10 Management Labor
A38: Management labor for irrigated acreage is assumed to be double that of dryland acres.

Sheet Field Operations
A1: Field Operations | S1: Machinery Assumptions
W2: Current Price | AA2: Efficiency Factor | AB2: Field Capacity | AC2: Repair Factors | AF2: Accumulated hours | AH2: Depreciation Factors | AQ2: R&M | AT2: Depreciation | AW2: Interest | AZ2: Taxes, Insurance, & Housing | BC2: Total Capital Recovery
A3: Commodity | B3: Process | C3: Power Unit | D3: Implement | E3: Size | F3: Capital Recovery | G3: Repair & Maintenance | H3: Fuel | I3: Labor | J3: Total | T3: Power | U3: Implement | V3: Size | W3: Power | X3: Implement | Y3: Speed | Z3: Width | AC3: RF1 | AD3: RF2 | AE3: Use (hrs) | AG3: Age | AH3: DF1 | AI3: DF2 | AJ3: DF3 | AK3: RVn | AL3: RVn-1 | AM3: Fuel | AN3: Oil and Filter | AO3: Total Fuel | AP3: Labor | AQ3: Tractor | AR3: Implement | AS3: Total | AT3: Implement | AU3: Tractor | AV3: Total | AW3: Implement | AX3: Tractor | AY3: Total | AZ3: Implement | BA3: Tractor | BB3: Total
A4: All | B4: Chisel | C4: Tractor, 215 hp | D4: Chisel Plow | E4: 21' | F4: =BC4 -> 6.95270342 | G4: =AS4 -> 2.034898445 | H4: =AO4 -> 3.375636555 | I4: 2.31092437 | J4: =SUM(F4:I4) -> 14.67416279 | S4: Chisel | T4: Tractor, 215 hp | U4: Chisel Plow | V4: 21' | W4: 300000 | X4: 35000 | Y4: 5 | Z4: 21 | AA4: 85 | AB4: =(Y4*Z4*(AA4/100))/8.25 -> 10.81818182 | AC4: 0.28 | AD4: 1.4 | AE4: =$AB$32/AB4 -> 92.43697479 | AF4: =AE4*5 -> 462.1848739 | AG4: =AF4/AE4 -> 5 | AH4: 0.7382 | AI4: 0.051 | AJ4: 0 | AK4: =X4*(AH4-AI4*(AG4^0.5)-AJ4*(AE4^0.5))^2 -> 13635.17299 | AL4: =X4*(AH4-AI4*((AG4-1)^0.5)-AJ4*(AE4^0.5))^2 -> 14166.2654 | AM4: =Inputs!$C$10*0.73*(0.06*250)*(1/AB4) -> 2.935336134 | AN4: =AM4*0.15 -> 0.4403004202 | AO4: =+AM4+AN4 -> 3.375636555 | AP4: =Inputs!$C$12*1.25*(1/AB4) -> 2.31092437 | AQ4: =((W4*$AC$27*(($AF$27+$AE$27)/1000)^$AD$27)-(W4*$AC$27*($AF$27/1000)^$AD$27))/$AE$27*(1/AB4) -> 1.067647059 | AR4: =((X4*AC4*((AF4+AE4)/1000)^AD4)-(X4*AC4*(AF4/1000)^AD4))/AE4*(1/AB4) -> 0.9672513858 | AS4: =AQ4+AR4 -> 2.034898445 | AT4: =((AL4-AK4)/AE4)*(1/AB4) -> 0.5310924101 | AU4: =(($AL$27-$AK$27)/$AE$27)*(1/AB4) -> 2.118900959 | AV4: =+AT4+AU4 -> 2.649993369 | AW4: =((Inputs!$C$15*AK4)/AE4)*(1/AB4) -> 0.8862862443 | AX4: =((Inputs!$C$15*$AK$27)/$AE$27)*(1/AB4) -> 1.607180109 | AY4: =AW4+AX4 -> 2.493466354 | AZ4: =(X4*0.02/AE4)*(1/AB4) -> 0.7 | BA4: =(W4*0.02/$AE$27)*(1/AB4) -> 1.109243697 | BB4: =+AZ4+BA4 -> 1.809243697 | BC4: =+AV4+AY4+BB4 -> 6.95270342
B5: Disk | C5: Tractor, 215 hp | D5: Tandem Disk | E5: 29' | F5: 11.60044178 | G5: 2.015124735 | H5: 2.716029412 | I5: 1.859364435 | J5: 18.19096036 | S5: Disk | T5: Tractor, 215 hp | U5: Tandem Disk | V5: 29' | W5: 300000 | X5: 95000 | Y5: 4.5 | Z5: 29 | AA5: 85 | AB5: 13.44545455 | AC5: 0.18 | AD5: 1.7 | AE5: =$AB$32/AB5 -> 74.37457742 | AF5: =AE5*5 -> 371.8728871 | AG5: =AF5/AE5 -> 5 | AH5: 0.8906 | AI5: 0.1095 | AJ5: 0 | AK5: =X5*(AH5-AI5*(AG5^0.5)-AJ5*(AE5^0.5))^2 -> 39614.40921 | AL5: =X5*(AH5-AI5*((AG5-1)^0.5)-AJ5*(AE5^0.5))^2 -> 42849.4232 | AM5: =Inputs!$C$10*0.73*(0.06*250)*(1/AB5) -> 2.361764706 | AN5: 0.3542647059 | AO5: 2.716029412 | AP5: =Inputs!$C$12*1.25*(1/AB5) -> 1.859364435 | AQ5: 0.8590263692 | AR5: =((X5*AC5*((AF5+AE5)/1000)^AD5)-(X5*AC5*(AF5/1000)^AD5))/AE5*(1/AB5) -> 1.156098365 | AS5: 2.015124735 | AT5: =((AL5-AK5)/AE5)*(1/AB5) -> 3.235013989 | AU5: 1.70486284 | AV5: =+AT5+AU5 -> 4.939876829 | AW5: =((Inputs!$C$15*AK5)/AE5)*(1/AB5) -> 2.574936599 | AX5: =((Inputs!$C$15*$AK$27)/$AE$27)*(1/AB5) -> 1.293133421 | AY5: =AW5+AX5 -> 3.86807002 | AZ5: 1.9 | BA5: 0.892494929 | BB5: =+AZ5+BA5 -> 2.792494929 | BC5: =+AV5+AY5+BB5 -> 11.60044178
B6: Prepare Seedbed | C6: Tractor, 215 hp | D6: Do-All | E6: 26.5' | F6: 7.319988101 | G6: 1.736777239 | H6: 2.842222288 | I6: 1.945754717 | J6: 13.84474234 | S6: Prepare Seedbed | T6: Tractor, 215 hp | U6: Do-All | V6: 26.5' | W6: 300000 | X6: 40000 | Y6: 5 | Z6: 26.5 | AA6: 80 | AB6: 12.84848485 | AC6: 0.27 | AD6: 1.4 | AE6: 77.83018868 | AF6: 389.1509434 | AG6: 5 | AH6: 0.891 | AI6: 0.11 | AJ6: 0 | AK6: 16642.6782 | AL6: 18009.64 | AM6: =Inputs!$C$10*0.73*(0.06*250)*(1/AB6) -> 2.471497642 | AN6: 0.3707246462 | AO6: 2.842222288 | AP6: =Inputs!$C$12*1.25*(1/AB6) -> 1.945754717 | AQ6: 0.8989386792 | AR6: 0.8378385593 | AS6: 1.736777239 | AT6: 1.366961798 | AU6: 1.784074628 | AV6: 3.151036426 | AW6: =((Inputs!$C$15*AK6)/AE6)*(1/AB6) -> 1.081774083 | AX6: =((Inputs!$C$15*$AK$27)/$AE$27)*(1/AB6) -> 1.353215328 | AY6: 2.434989411 | AZ6: 0.8 | BA6: 0.9339622642 | BB6: 1.733962264 | BC6: 7.319988101
B7: Prepare Seedbed | C7: Tractor, 215 hp | D7: Cultimulcher | E7: 20' | F7: 8.237053087 | G7: 2.27819658 | H7: 3.765944531 | I7: 2.578125 | J7: 16.8593192 | S7: Prepare Seedbed | T7: Tractor, 215 hp | U7: Cultimulcher | V7: 20' | W7: 300000 | X7: 35000 | Y7: 5 | Z7: 20 | AA7: 80 | AB7: 9.696969697 | AC7: 0.27 | AD7: 1.4 | AE7: 103.125 | AF7: 515.625 | AG7: 5 | AH7: 0.891 | AI7: 0.11 | AJ7: 0 | AK7: 14562.34343 | AL7: 15758.435 | AM7: =Inputs!$C$10*0.73*(0.06*250)*(1/AB7) -> 3.274734375 | AN7: 0.4912101562 | AO7: =+AM7+AN7 -> 3.765944531 | AP7: =Inputs!$C$12*1.25*(1/AB7) -> 2.578125 | AQ7: 1.19109375 | AR7: 1.08710283 | AS7: 2.27819658 | AT7: 1.196091573 | AU7: 2.363898882 | AV7: 3.559990455 | AW7: =((Inputs!$C$15*AK7)/AE7)*(1/AB7) -> 0.9465523227 | AX7: =((Inputs!$C$15*$AK$27)/$AE$27)*(1/AB7) -> 1.793010309 | AY7: 2.739562632 | AZ7: 0.7 | BA7: 1.2375 | BB7: 1.9375 | BC7: 8.237053087
B8: Plant | C8: Tractor, 215 hp | D8: Planter | E8: 16-row | F8: =BC8 -> 15.97084823 | G8: =AS8 -> 2.876988318 | H8: =AO8 -> 2.317504327 | I8: =AP8 -> 1.586538462 | J8: 22.75187934 | S8: Plant | T8: Tractor, 215 hp | U8: Planter | V8: 16-row | W8: 300000 | X8: 160000 | Y8: 5 | Z8: 40 | AA8: 65 | AB8: 15.75757576 | AC8: 0.32 | AD8: 2.1 | AE8: 63.46153846 | AF8: 317.3076923 | AG8: 5 | AH8: 0.883 | AI8: 0.078 | AJ8: 0 | AK8: 80335.21732 | AL8: 84564.64 | AM8: =Inputs!$C$10*0.73*(0.06*250)*(1/AB8) -> 2.015221154 | AN8: 0.3022831731 | AO8: 2.317504327 | AP8: =Inputs!$C$12*1.25*(1/AB8) -> 1.586538462 | AQ8: 0.7329807692 | AR8: 2.144007549 | AS8: 2.876988318 | AT8: 4.229422682 | AU8: 1.454707004 | AV8: 5.684129687 | AW8: =((Inputs!$C$15*AK8)/AE8)*(1/AB8) -> 5.221789126 | AX8: =((Inputs!$C$15*$AK$27)/$AE$27)*(1/AB8) -> 1.10339096 | AY8: 6.325180085 | AZ8: 3.2 | BA8: 0.7615384615 | BB8: 3.961538462 | BC8: 15.97084823
B9: Plant | C9: Tractor, 215 hp | D9: Grain Drill | E9: 20' | F9: 12.48563996 | G9: 5.294680402 | H9: 4.303936607 | I9: 2.946428571 | J9: 25.03068554 | S9: Plant | T9: Tractor, 215 hp | U9: Grain Drill | V9: 20 ft | W9: 300000 | X9: 80000 | Y9: 5 | Z9: 20 | AA9: 70 | AB9: 8.484848485 | AC9: 0.32 | AD9: 2.1 | AE9: 117.8571429 | AF9: 589.2857143 | AG9: 5 | AH9: 0.8826 | AI9: 0.0778 | AJ9: 0 | AK9: 40172.96163 | AL9: 42282.32 | AM9: =Inputs!$C$10*0.73*(0.06*250)*(1/AB9) -> 3.742553571 | AN9: 0.5613830357 | AO9: 4.303936607 | AP9: =Inputs!$C$12*1.25*(1/AB9) -> 2.946428571 | AQ9: 1.36125 | AR9: 3.933430402 | AS9: 5.294680402 | AT9: 2.109358375 | AU9: 2.701598722 | AV9: 4.810957097 | AW9: =((Inputs!$C$15*AK9)/AE9)*(1/AB9) -> 2.611242506 | AX9: =((Inputs!$C$15*$AK$27)/$AE$27)*(1/AB9) -> 2.049154639 | AY9: 4.660397145 | AZ9: 1.6 | BA9: 1.414285714 | BB9: 3.014285714 | BC9: 12.48563996
B10: Fertilize | C10: Tractor, 215 hp | D10: Fertilizer Spreader | F10: 5.103029692 | G10: 1.596529341 | H10: 2.459392347 | I10: 1.683673469 | J10: 10.84262485 | S10: Fertilize | T10: Tractor, 215 hp | U10: Fertilizer Spreader | V10: 900# | W10: 300000 | X10: 20000 | Y10: 7 | Z10: 25 | AA10: 70 | AB10: 14.84848485 | AC10: 0.63 | AD10: 1.3 | AE10: 67.34693878 | AF10: 336.7346939 | AG10: 5 | AH10: 0.8826 | AI10: 0.0778 | AJ10: 0 | AK10: 10043.24041 | AL10: 10570.58 | AM10: =Inputs!$C$10*0.73*(0.06*250)*(1/AB10) -> 2.138602041 | AN10: 0.3207903061 | AO10: 2.459392347 | AP10: =Inputs!$C$12*1.25*(1/AB10) -> 1.683673469 | AQ10: 0.7778571429 | AR10: 0.8186721986 | AS10: 1.596529341 | AT10: 0.5273395937 | AU10: 1.543770698 | AV10: 2.071110292 | AW10: =((Inputs!$C$15*AK10)/AE10)*(1/AB10) -> 0.6528106264 | AX10: =((Inputs!$C$15*$AK$27)/$AE$27)*(1/AB10) -> 1.170945508 | AY10: 1.823756135 | AZ10: 0.4 | BA10: 0.8081632653 | BB10: 1.208163265 | BC10: 5.103029692
B11: Spray | C11: SP Boom Sprayer | E11: 90' | F11: 9.480901321 | G11: 0.2942877349 | H11: 0.3719451389 | I11: 0.318287037 | J11: 10.46542123 | S11: Weed Control | T11: SP Boom Sprayer | V11: 90' | X11: 300000 | Y11: 12 | Z11: 90 | AA11: 60 | AB11: =(Y11*Z11*(AA11/100))/8.25 -> 78.54545455 | AC11: 0.1 | AD11: 1.3 | AE11: =$AB$32*2.5/AB11 -> 31.8287037 | AF11: 159.1435185 | AG11: 5 | AH11: 0.8826 | AI11: 0.0778 | AJ11: 0 | AK11: 150648.6061 | AL11: 158558.7 | AM11: =Inputs!$C$10*0.73*(0.06*200)*(1/AB11) -> 0.3234305556 | AN11: 0.04851458333 | AO11: 0.3719451389 | AP11: =Inputs!$C$12*1.25*(1/AB11) -> 0.318287037 | AQ11: 0 | AR11: 0.2942877349 | AS11: 0.2942877349 | AT11: 3.164037562 | AU11: 0 | AV11: 3.164037562 | AW11: =((Inputs!$C$15*AK11)/AE11)*(1/AB11) -> 3.916863758 | AX11: 0 | AY11: 3.916863758 | AZ11: =(X11*0.02/AE11)*(1/AB11) -> 2.4 | BA11: 0 | BB11: 2.4 | BC11: =+AV11+AY11+BB11 -> 9.480901321
B12: Harvest | C12: Combine | D12: Corn Head | E12: 8-row | F12: 37.72518729 | G12: 35.05079519 | H12: 8.607873214 | I12: 3.273809524 | J12: 84.65766521 | S12: Harvest | T12: Combine | U12: Corn Head | V12: 8-row | W12: 450000 | X12: 70000 | Y12: 4.5 | Z12: 20 | AA12: 70 | AB12: 7.636363636 | AC12: 0.05 | AD12: 2.3 | AE12: 130.952381 | AF12: 654.7619048 | AG12: 5 | AH12: 1.1318 | AI12: 0.1645 | AJ12: 0 | AK12: 40855.1709 | AL12: 45114.1488 | AM12: =Inputs!$C$10*0.73*(0.06*450)*(1/AB12) -> 7.485107143 | AN12: 1.122766071 | AO12: 8.607873214 | AP12: =Inputs!$C$12*1.25*(1/AB12) -> 3.273809524 | AQ12: =((W12*$AC$28*(($AF$28+$AE$28)/1000)^$AD$28)-(W12*$AC$28*($AF$28/1000)^$AD$28))/$AE$28*(1/AB12) -> 34.3623624 | AR12: =((X12*AC12*((AF12+AE12)/1000)^AD12)-(X12*AC12*(AF12/1000)^AD12))/AE12*(1/AB12) -> 0.6884327868 | AS12: 35.05079519 | AT12: =((AL12-AK12)/AE12)*(1/AB12) -> 4.258977902 | AU12: =(($AL$28-$AK$28)/$AE$28)*(1/AB12) -> 15.37017198 | AV12: 19.62914988 | AW12: =((Inputs!$C$15*AK12)/AE12)*(1/AB12) -> 2.655586108 | AX12: =((Inputs!$C$15*$AK$28)/$AE$28)*(1/AB12) -> 8.147594151 | AY12: 10.80318026 | AZ12: =(X12*0.02/AE12)*(1/AB12) -> 1.4 | BA12: =(W12*0.02/$AE$28)*(1/AB12) -> 5.892857143 | BB12: =+AZ12+BA12 -> 7.292857143 | BC12: 37.72518729
B13: Harvest | C13: Combine | D13: Grain Head | E13: 30' | F13: 27.99694175 | G13: 26.02550332 | H13: 6.455904911 | I13: 2.455357143 | J13: 62.93370712 | S13: Harvest | T13: Combine | U13: Grain Head | V13: 30 ft | W13: 450000 | X13: 50000 | Y13: 4 | Z13: 30 | AA13: 70 | AB13: 10.18181818 | AC13: 0.05 | AD13: 2.3 | AE13: =$AB$32/AB13 -> 98.21428571 | AF13: 491.0714286 | AG13: 5 | AH13: 1.1318 | AI13: 0.1645 | AJ13: 0 | AK13: 29182.26493 | AL13: 32224.392 | AM13: =Inputs!$C$10*0.73*(0.06*450)*(1/AB13) -> 5.613830357 | AN13: 0.8420745536 | AO13: 6.455904911 | AP13: =Inputs!$C$12*1.25*(1/AB13) -> 2.455357143 | AQ13: =((W13*$AC$28*(($AF$28+$AE$28)/1000)^$AD$28)-(W13*$AC$28*($AF$28/1000)^$AD$28))/$AE$28*(1/AB13) -> 25.7717718 | AR13: =((X13*AC13*((AF13+AE13)/1000)^AD13)-(X13*AC13*(AF13/1000)^AD13))/AE13*(1/AB13) -> 0.2537315168 | AS13: 26.02550332 | AT13: =((AL13-AK13)/AE13)*(1/AB13) -> 3.042127073 | AU13: =(($AL$28-$AK$28)/$AE$28)*(1/AB13) -> 11.52762899 | AV13: 14.56975606 | AW13: =((Inputs!$C$15*AK13)/AE13)*(1/AB13) -> 1.89684722 | AX13: =((Inputs!$C$15*$AK$28)/$AE$28)*(1/AB13) -> 6.110695613 | AY13: 8.007542833 | AZ13: =(X13*0.02/AE13)*(1/AB13) -> 1 | BA13: =(W13*0.02/$AE$28)*(1/AB13) -> 4.419642857 | BB13: =+AZ13+BA13 -> 5.419642857 | BC13: 27.99694175
B14: Haul | C14: Tractor, 215 hp | D14: Grain Cart | E14: 800 bu | F14: 7.021767002 | G14: 0.8354368884 | H14: 1.506377813 | I14: 1.03125 | J14: 10.3948317 | S14: Haul | T14: Tractor, 215 hp | U14: Grain Cart | W14: 300000 | X14: 55000 | Y14: 8 | Z14: 25 | AA14: 100 | AB14: 24.24242424 | AC14: 0.19 | AD14: 1.3 | AE14: 41.25 | AF14: 206.25 | AG14: 5 | AH14: 0.9427 | AI14: 0.1111 | AJ14: 0 | AK14: 26510.81329 | AL14: 28551.61375 | AM14: =Inputs!$C$10*0.73*(0.06*250)*(1/AB14) -> 1.30989375 | AN14: 0.1964840625 | AO14: 1.506377813 | AP14: =Inputs!$C$12*1.25*(1/AB14) -> 1.03125 | AQ14: =((W14*$AC$27*(($AF$27+$AE$27)/1000)^$AD$27)-(W14*$AC$27*($AF$27/1000)^$AD$27))/$AE$27*(1/AB14) -> 0.4764375 | AR14: =((X14*AC14*((AF14+AE14)/1000)^AD14)-(X14*AC14*(AF14/1000)^AD14))/AE14*(1/AB14) -> 0.3589993884 | AS14: 0.8354368884 | AT14: =((AL14-AK14)/AE14)*(1/AB14) -> 2.040800462 | AU14: =(($AL$27-$AK$27)/$AE$27)*(1/AB14) -> 0.9455595527 | AV14: 2.986360015 | AW14: =((Inputs!$C$15*AK14)/AE14)*(1/AB14) -> 1.723202864 | AX14: =((Inputs!$C$15*$AK$27)/$AE$27)*(1/AB14) -> 0.7172041238 | AY14: =AW14+AX14 -> 2.440406987 | AZ14: =(X14*0.02/AE14)*(1/AB14) -> 1.1 | BA14: =(W14*0.02/$AE$27)*(1/AB14) -> 0.495 | BB14: =+AZ14+BA14 -> 1.595 | BC14: 7.021767002
B15: Haul (soybean) | C15: Semi Tractor/Trailer | F15: 5.91 | G15: 0.32 | H15: 0.25 | I15: 0.55 | J15: 7.03
B16: Haul (corn) | C16: Semi Tractor/Trailer | F16: 7.68 | G16: 1.25 | H16: 0.79 | I16: 1.76 | J16: 11.48
B17: Haul (wheat) | C17: Semi Tractor/Trailer | F17: 6.17 | G17: 0.43 | H17: 0.35 | I17: 0.77 | J17: 7.72
A18: Cotton | B18: Chop Stalks | C18: Tractor, 215 hp | D18: Rotary Mower | E18: 15' | F18: 8.038168676 | G18: 4.215707908 | H18: 3.586613839 | I18: 2.455357143 | J18: 18.29584757 | S18: Chop Stalks | T18: Tractor, 215 hp | U18: Rotary Mower | V18: 15' | W18: 300000 | X18: 55000 | Y18: 7 | Z18: 15 | AA18: 80 | AB18: 10.18181818 | AC18: 0.44 | AD18: 2 | AE18: =$AB$33/AB18 -> 117.8571429 | AF18: 589.2857143 | AG18: 5 | AH18: 0.7557 | AI18: 0.0672 | AJ18: 0 | AK18: 20160.4167 | AL18: 21230.75295 | AM18: =Inputs!$C$10*0.73*(0.06*250)*(1/AB18) -> 3.118794643 | AN18: 0.4678191964 | AO18: 3.586613839 | AP18: =Inputs!$C$12*1.25*(1/AB18) -> 2.455357143 | AQ18: =((W18*$AC$27*(($AF$27+$AE$27)/1000)^$AD$27)-(W18*$AC$27*($AF$27/1000)^$AD$27))/$AE$27*(1/AB18) -> 1.134375 | AR18: =((X18*AC18*((AF18+AE18)/1000)^AD18)-(X18*AC18*(AF18/1000)^AD18))/AE18*(1/AB18) -> 3.081332908 | AS18: 4.215707908 | AT18: =((AL18-AK18)/AE18)*(1/AB18) -> 0.8919468749 | AU18: =(($AL$27-$AK$27)/$AE$27)*(1/AB18) -> 2.251332268 | AV18: 3.143279143 | AW18: =((Inputs!$C$15*AK18)/AE18)*(1/AB18) -> 1.092022571 | AX18: =((Inputs!$C$15*$AK$27)/$AE$27)*(1/AB18) -> 1.707628866 | AY18: =AW18+AX18 -> 2.799651437 | AZ18: =(X18*0.02/AE18)*(1/AB18) -> 0.9166666667 | BA18: =(W18*0.02/$AE$27)*(1/AB18) -> 1.178571429 | BB18: =+AZ18+BA18 -> 2.095238095 | BC18: =+AV18+AY18+BB18 -> 8.038168676
B19: Plant | C19: Tractor, 215 hp | D19: Planter | E19: 12-row | F19: 13.31452689 | G19: 5.022235859 | H19: 3.090005769 | I19: 2.115384615 | J19: 23.54215313 | S19: Plant | T19: Tractor, 215 hp | U19: Planter | V19: 12-row | W19: 300000 | X19: 135000 | Y19: 5 | Z19: 30 | AA19: 65 | AB19: 11.81818182 | AC19: 0.32 | AD19: 2.1 | AE19: =$AB$33/AB19 -> 101.5384615 | AF19: 507.6923077 | AG19: 5 | AH19: 0.8826 | AI19: 0.0778 | AJ19: 0 | AK19: 67791.87274 | AL19: 71351.415 | AM19: =Inputs!$C$10*0.73*(0.06*250)*(1/AB19) -> 2.686961538 | AN19: 0.4030442308 | AO19: 3.090005769 | AP19: =Inputs!$C$12*1.25*(1/AB19) -> 2.115384615 | AQ19: =((W19*$AC$27*(($AF$27+$AE$27)/1000)^$AD$27)-(W19*$AC$27*($AF$27/1000)^$AD$27))/$AE$27*(1/AB19) -> 0.9773076923 | AR19: 4.044928167 | AS19: 5.022235859 | AT19: 2.966285214 | AU19: =(($AL$27-$AK$27)/$AE$27)*(1/AB19) -> 1.939609339 | AV19: 4.905894553 | AW19: =((Inputs!$C$15*AK19)/AE19)*(1/AB19) -> 3.672059774 | AX19: =((Inputs!$C$15*$AK$27)/$AE$27)*(1/AB19) -> 1.471187946 | AY19: 5.14324772 | AZ19: 2.25 | BA19: =(W19*0.02/$AE$27)*(1/AB19) -> 1.015384615 | BB19: 3.265384615 | BC19: 13.31452689
B20: Weed Control | C20: Tractor, 215 hp | D20: Hooded Sprayer | E20: 90 | F20: 2.334950274 | G20: 0.3788848373 | H20: 0.8583349359 | I20: 0.5876068376 | J20: 4.159776885 | S20: Spray | T20: Tractor, 215 hp | U20: Hooded Sprayer | W20: 300000 | X20: 15000 | Y20: 6 | Z20: 90 | AA20: 65 | AB20: 42.54545455 | AC20: 0.41 | AD20: 1.3 | AE20: 28.20512821 | AF20: 141.025641 | AG20: 5 | AH20: 0.9427 | AI20: 0.1111 | AJ20: 0 | AK20: 7230.221806 | AL20: 7786.80375 | AM20: =Inputs!$C$10*0.73*(0.06*250)*(1/AB20) -> 0.7463782051 | AN20: 0.1119567308 | AO20: 0.8583349359 | AP20: =Inputs!$C$12*1.25*(1/AB20) -> 0.5876068376 | AQ20: =((W20*$AC$27*(($AF$27+$AE$27)/1000)^$AD$27)-(W20*$AC$27*($AF$27/1000)^$AD$27))/$AE$27*(1/AB20) -> 0.271474359 | AR20: 0.1074104784 | AS20: 0.3788848373 | AT20: 0.4638182868 | AU20: =(($AL$27-$AK$27)/$AE$27)*(1/AB20) -> 0.5387803719 | AV20: 1.002598659 | AW20: =((Inputs!$C$15*AK20)/AE20)*(1/AB20) -> 0.3916370145 | AX20: =((Inputs!$C$15*$AK$27)/$AE$27)*(1/AB20) -> 0.4086633184 | AY20: 0.8003003329 | AZ20: 0.25 | BA20: =(W20*0.02/$AE$27)*(1/AB20) -> 0.2820512821 | BB20: =+AZ20+BA20 -> 0.5320512821 | BC20: 2.334950274
B21: Harvest | C21: SP Cotton Picker | E21: 6-row | F21: 29.43109804 | G21: 9.980475073 | H21: 9.683857366 | I21: 3.683035714 | J21: 52.77846619 | S21: Harvest | T21: SP Cotton Picker | X21: 350000 | Y21: 4 | Z21: 20 | AA21: 70 | AB21: =(Y21*Z21*(AA21/100))/8.25 -> 6.787878788 | AC21: 0.11 | AD21: 1.8 | AE21: =$AB$33/AB21 -> 176.7857143 | AF21: 883.9285714 | AG21: 5 | AH21: 1.1318 | AI21: 0.1645 | AJ21: 0.0079 | AK21: 151965.0434 | AL21: =X21*(AH21-AI21*((AG21-1)^0.5)-AJ21*(AE21^0.5))^2 -> 170404.6332 | AM21: =Inputs!$C$10*0.73*(0.06*450)*(1/AB21) -> 8.420745536 | AN21: 1.26311183 | AO21: 9.683857366 | AP21: =Inputs!$C$12*1.25*(1/AB21) -> 3.683035714 | AR21: 9.980475073 | AS21: 9.980475073 | AT21: 15.36632486 | AV21: 15.36632486 | AW21: =((Inputs!$C$15*AK21)/AE21)*(1/AB21) -> 8.231439848 | AY21: 8.231439848 | AZ21: 5.833333333 | BB21: 5.833333333 | BC21: 29.43109804
B22: Harvest | C22: Tractor, 215 hp | D22: Boll Buggy | F22: 7.658900095 | G22: 1.199650371 | H22: 3.765944531 | I22: 2.578125 | J22: 15.20262 | S22: Haul-Boll Buggy | T22: Tractor, 215 hp | U22: Boll Buggy | W22: 300000 | X22: 45000 | Y22: 4 | Z22: 20 | AA22: 100 | AB22: 9.696969697 | AC22: 0.19 | AD22: 1.3 | AE22: 123.75 | AF22: 618.75 | AG22: 5 | AH22: 0.9427 | AI22: 0.1111 | AJ22: 0 | AK22: =X22*(AH22-AI22*(AG22^0.5)-AJ22*(AE22^0.5))^2 -> 21690.66542 | AL22: =X22*(AH22-AI22*((AG22-1)^0.5)-AJ22*(AE22^0.5))^2 -> 23360.41125 | AM22: =Inputs!$C$10*0.73*(0.06*250)*(1/AB22) -> 3.274734375 | AN22: =AM22*0.15 -> 0.4912101562 | AO22: 3.765944531 | AP22: =Inputs!$C$12*1.25*(1/AB22) -> 2.578125 | AQ22: =((X22*$AC$27*(($AF$27+$AE$27)/1000)^$AD$27)-(X22*$AC$27*($AF$27/1000)^$AD$27))/$AE$27*(1/AB22) -> 0.1786640625 | AR22: =((X22*AC22*((AF22+AE22)/1000)^AD22)-(X22*AC22*(AF22/1000)^AD22))/AE22*(1/AB22) -> 1.020986308 | AS22: 1.199650371 | AT22: =((AL22-AK22)/AE22)*(1/AB22) -> 1.391454861 | AU22: =(($AL$27-$AK$27)/$AE$27)*(1/AB22) -> 2.363898882 | AV22: 3.755353742 | AW22: =((Inputs!$C$15*AK22)/AE22)*(1/AB22) -> 1.174911043 | AX22: =((Inputs!$C$15*$AK$27)/$AE$27)*(1/AB22) -> 1.793010309 | AY22: =AW22+AX22 -> 2.967921353 | AZ22: =(X22*0.02/AE22)*(1/AB22) -> 0.75 | BA22: =(X22*0.02/$AE$27)*(1/AB22) -> 0.185625 | BB22: 0.935625 | BC22: 7.658900095
B23: Harvest | C23: Tractor, 215 hp | D23: Module Builder | E23: 32' | F23: 7.967429133 | G23: 1.271898692 | H23: 3.362450474 | I23: 2.301897321 | J23: 14.90367562 | S23: Module Builder | T23: Tractor, 215 hp | U23: Module Builder | V23: 32' | W23: 300000 | X23: 55000 | Y23: 4 | Z23: 32 | AA23: 70 | AB23: 10.86060606 | AC23: 0.19 | AD23: 1.3 | AE23: 110.4910714 | AF23: 552.4553571 | AG23: 5 | AH23: 0.9427 | AI23: 0.1111 | AJ23: 0 | AK23: 26510.81329 | AL23: =X23*(AH23-AI23*((AG23-1)^0.5)-AJ23*(AE23^0.5))^2 -> 28551.61375 | AM23: =Inputs!$C$10*0.73*(0.06*250)*(1/AB23) -> 2.923869978 | AN23: =AM23*0.15 -> 0.4385804967 | AO23: 3.362450474 | AP23: =Inputs!$C$12*1.25*(1/AB23) -> 2.301897321 | AQ23: =((X23*$AC$27*(($AF$27+$AE$27)/1000)^$AD$27)-(X23*$AC$27*($AF$27/1000)^$AD$27))/$AE$27*(1/AB23) -> 0.1949707031 | AR23: 1.076927989 | AS23: 1.271898692 | AT23: =((AL23-AK23)/AE23)*(1/AB23) -> 1.700667052 | AU23: =(($AL$27-$AK$27)/$AE$27)*(1/AB23) -> 2.110624002 | AV23: 3.811291053 | AW23: =((Inputs!$C$15*AK23)/AE23)*(1/AB23) -> 1.436002386 | AX23: =((Inputs!$C$15*$AK$27)/$AE$27)*(1/AB23) -> 1.600902062 | AY23: 3.036904448 | AZ23: 0.9166666667 | BA23: =(X23*0.02/$AE$27)*(1/AB23) -> 0.2025669643 | BB23: 1.119233631 | BC23: =+AV23+AY23+BB23 -> 7.967429133
B24: Harvest | C24: Picker/Module Builder (Round) | E24: 6-row | F24: =BC24 -> 68.17960813 | G24: =AS24 -> 16.95163302 | H24: =AO24 -> 10.76570661 | I24: =AP24 -> 3.122918055 | J24: 99.01986581 | S24: Harvest | T24: Picker/Module Builder (Round) | W24: 800000 | Y24: 4.4 | Z24: =38/12*6 -> 19 | AA24: 79 | AB24: =(Y24*Z24*(AA24/100))/8.25 -> 8.005333333 | AC24: 0.11 | AD24: 1.8 | AE24: =$AB$33/AB24 -> 149.9000666 | AF24: 749.5003331 | AG24: 5 | AH24: 1.1318 | AI24: 0.1645 | AJ24: 0.0079 | AK24: =W24*(AH24-AI24*(AG24^0.5)-AJ24*(AE24^0.5))^2 -> 356171.8669 | AL24: =W24*(AH24-AI24*((AG24-1)^0.5)-AJ24*(AE24^0.5))^2 -> 398836.2253 | AM24: =Inputs!$C$10*0.73*(0.06*590)*(1/AB24) -> 9.361484011 | AN24: =AM24*0.15 -> 1.404222602 | AO24: 10.76570661 | AP24: =Inputs!$C$12*1.25*(1/AB24) -> 3.122918055 | AQ24: =((W24*$AC$24*(($AF$24+$AE$24)/1000)^$AD$24)-(W24*$AC$24*($AF$24/1000)^$AD$24))/$AE$24*(1/AB24) -> 16.95163302 | AS24: 16.95163302 | AT24: =((AL24-AK24)/AE24)*(1/AB24) -> 35.55363201 | AV24: 35.55363201 | AW24: =((Inputs!$C$15*AK24)/AE24)*(1/AB24) -> 19.29264279 | AY24: 19.29264279 | AZ24: =(W24*0.02/AE24)*(1/AB24) -> 13.33333333 | BB24: 13.33333333 | BC24: 68.17960813
B25: Harvest | C25: Tractor, 215 hp | D25: Module Handler | F25: =BC25 -> 3.276211575 | G25: =AS25 -> 0.8396170809 | H25: =AO25 -> 2.280870045 | I25: =AP25 -> 1.561459027 | J25: =SUM(F25:I25) -> 7.958157728 | S25: Harvest | T25: Tractor, 215 hp | U25: Round Module Mover | W25: 300000 | X25: 10000 | AB25: =AB24*2 -> 16.01066667 | AC25: 0.19 | AD25: 1.3 | AE25: =AE24/2 -> 74.95003331 | AF25: =AF24/2 -> 374.7501666 | AG25: 5 | AH25: 0.94 | AI25: 0.11 | AJ25: 0 | AK25: =X25*(AH25-AI25*(AG25^0.5)-AJ25*(AE25^0.5))^2 -> 4816.811423 | AL25: =X25*(AH25-AI25*((AG25-1)^0.5)-AJ25*(AE25^0.5))^2 -> 5184 | AM25: =Inputs!$C$10*0.73*(0.06*250)*(1/AB25) -> 1.983365256 | AN25: =AM25*0.15 -> 0.2975047885 | AO25: 2.280870045 | AP25: =Inputs!$C$12*1.25*(1/AB25) -> 1.561459027 | AQ25: =((W25*$AC$27*(($AF$27+$AE$27)/1000)^$AD$27)-(W25*$AC$27*($AF$27/1000)^$AD$27))/$AE$27*(1/AB25) -> 0.7213940706 | AR25: =((X25*AC25*((AF25+AE25)/1000)^AD25)-(X25*AC25*(AF25/1000)^AD25))/AE25*(1/AB25) -> 0.1182230103 | AS25: =AQ25+AR25 -> 0.8396170809 | AT25: =((AL25-AK25)/AE25)*(1/AB25) -> 0.3059904812 | AU25: =(($AL$27-$AK$27)/$AE$27)*(1/AB25) -> 1.431711515 | AV25: 1.737701996 | AW25: =((Inputs!$C$15*AK25)/AE25)*(1/AB25) -> 0.2609106187 | AX25: =((Inputs!$C$15*$AK$27)/$AE$27)*(1/AB25) -> 1.085948949 | AY25: =AW25+AX25 -> 1.346859568 | AZ25: =(X25*0.02/AE25)*(1/AB25) -> 0.1666666667 | BA25: =(X25*0.02/$AE$27)*(1/AB25) -> 0.02498334444 | BB25: 0.1916500111 | BC25: =+AV25+AY25+BB25 -> 3.276211575
AB27: Tractor | AC27: 0.007 | AD27: 2 | AE27: 500 | AF27: =+AE27*5 -> 2500 | AG27: =+AF27/AE27 -> 5 | AH27: 0.9756 | AI27: 0.1187 | AJ27: 0.0019 | AK27: =W4*(AH27-AI27*(AG27^0.5)-AJ27*(AE27^0.5))^2 -> 133744.3587 | AL27: =W4*(AH27-AI27*((AG27-1)^0.5)-AJ27*(AE27^0.5))^2 -> 145205.6867
AB28: Combine | AC28: 0.25 | AD28: 2.1 | AE28: 200 | AF28: =+AE28*5 -> 1000 | AG28: =+AF28/AE28 -> 5 | AH28: 1.1318 | AI28: 0.1645 | AJ28: 0.0079 | AK28: =W12*(AH28-AI28*(AG28^0.5)-AJ28*(AE28^0.5))^2 -> 191439.9745 | AL28: =W12*(AH28-AI28*((AG28-1)^0.5)-AJ28*(AE28^0.5))^2 -> 214914.4189
Z32: Acres | AA32: Corn | AB32: 1000
AA33: Cotton | AB33: 1200

Sheet Budget Summary
B1: Summary of Revenue, Variable and Fixed Expenses, and Profit or Loss for Each Commodity and Production Method
B3: Commodity & Production Process | C3: Revenue ($/Acre) | D3: Variable Expenses ($/Acre) | E3: Fixed Expenses ($/Acre) | F3: Returns Over Specified Costs
B4: Corn No-Till, Non-Irrigated | C4: ='Corn NT Non-Irr'!H7 -> 805 | D4: ='Corn NT Non-Irr'!H23 -> 533.8147764 | E4: ='Corn NT Non-Irr'!H34 -> 283.6304969 | F4: ='Corn NT Non-Irr'!H36 -> -12.44527328
B5: Corn Conventional Tillage, Non-Irrigated | C5: ='Corn CT Non-Irr'!H7 -> 805 | D5: ='Corn CT Non-Irr'!H23 -> 535.7410772 | E5: ='Corn CT Non-Irr'!H34 -> 300.0227289 | F5: ='Corn CT Non-Irr'!H36 -> -30.76380603
B6: Corn No-Till, Irrigated | C6: ='Corn Irr'!H7 -> 1150 | D6: ='Corn Irr'!H26 -> 699.3001578 | E6: ='Corn Irr'!H39 -> 496.6834161 | F6: ='Corn Irr'!H41 -> -45.9835739
B7: Soybeans No-Till, Non-Irrigated | C7: ='Soybeans NT Non-Irr'!H7 -> 520 | D7: ='Soybeans NT Non-Irr'!H23 -> 315.2297781 | E7: ='Soybeans NT Non-Irr'!H34 -> 271.4070933 | F7: ='Soybeans NT Non-Irr'!H36 -> -66.6368714
B8: Soybeans No-Till, Irrigated | C8: ='Soybeans Irr'!H7 -> 676 | D8: ='Soybeans Irr'!H26 -> 380.4768912 | E8: ='Soybeans Irr'!H39 -> 478.8481802 | F8: ='Soybeans Irr'!H41 -> -183.3250714
B9: SRW Wheat | C9: ='SRW Wheat'!H7 -> 468 | D9: ='SRW Wheat'!H24 -> 309.8803714 | E9: ='SRW Wheat'!H35 -> 263.8040134 | F9: ='SRW Wheat'!H37 -> -105.6843848
B10: Wheat & Soybean, Double Cropped | C10: ='Wheat & Soybean DC'!H8 -> 884 | D10: ='Wheat & Soybean DC'!H26 -> 545.0753882 | E10: ='Wheat & Soybean DC'!H37 -> 385.3306471 | F10: ='Wheat & Soybean DC'!H39 -> -46.40603529
B11: Cotton No-Till, Non-Irrigated | C11: ='Cotton NT'!H7 -> 828 | D11: ='Cotton NT'!H24 -> 598.4426919 | E11: ='Cotton NT'!H35 -> 333.7158342 | F11: ='Cotton NT'!H37 -> -104.1585261
B12: Cotton Conventional Tillage, Non-Irrigated | C12: ='Cotton CT'!H7 -> 828 | D12: ='Cotton CT'!H24 -> 602.5287383 | E12: ='Cotton CT'!H35 -> 351.0251311 | F12: ='Cotton CT'!H37 -> -125.5538695
B13: Cotton No-Till, Irrigated | C13: ='Cotton Irr'!H7 -> 1080 | D13: ='Cotton Irr'!H27 -> 710.3510252 | E13: ='Cotton Irr'!H40 -> 548.7158342 | F13: ='Cotton Irr'!H42 -> -179.0668594
B14: Grain Sorghum, No-Till, Non-Irrigated | C14: =+'G. Sorghum NT'!H5 -> 517 | D14: =+'G. Sorghum NT'!H21 -> 288.2634571 | E14: =+'G. Sorghum NT'!H31 -> 278.280123 | F14: =+'G. Sorghum NT'!H33 -> -49.54358006

Sheet Enterprise Summary
B1: Enterprise Summary
B3: Commodity & Production Process | C3: Acres | D3: Total Revenue ($) | E3: Variable Expenses ($/Acre) | F3: Fixed Expenses ($/Acre) | G3: Profit (Loss)
B4: ='Budget Summary'!B4 -> Corn No-Till, Non-Irrigated | C4: 200 | D4: =C4*'Budget Summary'!C4 -> 161000 | E4: ='Budget Summary'!D4*C4 -> 106762.9553 | F4: ='Budget Summary'!E4*C4 -> 56726.09938 | G4: =D4-E4-F4 -> -2489.054656
B5: ='Budget Summary'!B5 -> Corn Conventional Tillage, Non-Irrigated | C5: 0 | D5: =C5*'Budget Summary'!C5 -> 0 | E5: ='Budget Summary'!D5*C5 -> 0 | F5: ='Budget Summary'!E5*C5 -> 0 | G5: =D5-E5-F5 -> 0
B6: ='Budget Summary'!B6 -> Corn No-Till, Irrigated | C6: 250 | D6: =C6*'Budget Summary'!C6 -> 287500 | E6: ='Budget Summary'!D6*C6 -> 174825.0394 | F6: ='Budget Summary'!E6*C6 -> 124170.854 | G6: -11495.89348
B7: ='Budget Summary'!B7 -> Soybeans No-Till, Non-Irrigated | C7: 200 | D7: =C7*'Budget Summary'!C7 -> 104000 | E7: ='Budget Summary'!D7*C7 -> 63045.95562 | F7: ='Budget Summary'!E7*C7 -> 54281.41866 | G7: -13327.37428
B8: ='Budget Summary'!B8 -> Soybeans No-Till, Irrigated | C8: 0 | D8: =C8*'Budget Summary'!C8 -> 0 | E8: ='Budget Summary'!D8*C8 -> 0 | F8: ='Budget Summary'!E8*C8 -> 0 | G8: 0
B9: Wheat | C9: 0 | D9: =C9*'Budget Summary'!C9 -> 0 | E9: =C9*'Budget Summary'!D9 -> 0 | F9: =C9*'Budget Summary'!E9 -> 0 | G9: =D9-E9-F9 -> 0
B10: ='Budget Summary'!B10 -> Wheat & Soybean, Double Cropped | C10: 100 | D10: =C10*'Budget Summary'!C10 -> 88400 | E10: ='Budget Summary'!D10*C10 -> 54507.53882 | F10: ='Budget Summary'!E10*C10 -> 38533.06471 | G10: -4640.603529
B11: ='Budget Summary'!B11 -> Cotton No-Till, Non-Irrigated | C11: 0 | D11: =C11*'Budget Summary'!C11 -> 0 | E11: ='Budget Summary'!D11*C11 -> 0 | F11: ='Budget Summary'!E11*C11 -> 0 | G11: 0
B12: ='Budget Summary'!B12 -> Cotton Conventional Tillage, Non-Irrigated | C12: 250 | D12: =C12*'Budget Summary'!C12 -> 207000 | E12: ='Budget Summary'!D12*C12 -> 150632.1846 | F12: ='Budget Summary'!E12*C12 -> 87756.28278 | G12: -31388.46737
B13: ='Budget Summary'!B14 -> Grain Sorghum, No-Till, Non-Irrigated | C13: 0 | D13: =C13*'Budget Summary'!C14 -> 0 | E13: ='Budget Summary'!D14*C13 -> 0 | F13: ='Budget Summary'!E14*C13 -> 0 | G13: 0
B14: Total | C14: =SUM(C4:C13) -> 1000 | D14: =SUM(D4:D13) -> 847900 | E14: =SUM(E4:E13) -> 549773.6737 | F14: =SUM(F4:F13) -> 361467.7196 | G14: =SUM(G4:G13) -> -63341.39331
B16: This worksheet allows the user to enter acreage for different commodities and production processes in order to obtain an estimated profit and loss statement for the entire enterprise. This worksheet will automatically update the information contained in individual budgets, As such users should only adjust acreage for each commodity/production process on this worksheet.
